Workbook

Sheet AVISO LEGAL
H2: Fecha de actualización: | J2: 2018-11-14
J23: www.ree.es

Sheet RdT anual Nacional
L1: 3
I3: Concepto
I4: Sistema eléctrico
I5: Horizonte temporal
I6: Periodo
C8: =OFFSET('Red de transporte'!C7,0,($L$1-1)*10) -> 2018 | D8: =OFFSET('Red de transporte'!D7,0,($L$1-1)*10) -> 2019 | E8: =OFFSET('Red de transporte'!E7,0,($L$1-1)*10) -> 2020 | F8: =OFFSET('Red de transporte'!F7,0,($L$1-1)*10) -> 2021 | G8: =OFFSET('Red de transporte'!G7,0,($L$1-1)*10) -> 2022 | H8: =OFFSET('Red de transporte'!H7,0,($L$1-1)*10) -> 2023 | I8: =OFFSET('Red de transporte'!I7,0,($L$1-1)*10) -> 2024 | J8: =OFFSET('Red de transporte'!J7,0,($L$1-1)*10) -> 2025 | K8: =OFFSET('Red de transporte'!K7,0,($L$1-1)*10) -> 2026 | L8: =OFFSET('Red de transporte'!L7,0,($L$1-1)*10) -> 2027
B10: Kilómetros de circuito a 400 kV | C10: =OFFSET('Red de transporte'!C104,0,($L$1-1)*10) -> 21732.689 | D10: =OFFSET('Red de transporte'!D104,0,($L$1-1)*10) -> - | E10: =OFFSET('Red de transporte'!E104,0,($L$1-1)*10) -> - | F10: =OFFSET('Red de transporte'!F104,0,($L$1-1)*10) -> - | G10: =OFFSET('Red de transporte'!G104,0,($L$1-1)*10) -> - | H10: =OFFSET('Red de transporte'!H104,0,($L$1-1)*10) -> - | I10: =OFFSET('Red de transporte'!I104,0,($L$1-1)*10) -> - | J10: =OFFSET('Red de transporte'!J104,0,($L$1-1)*10) -> - | K10: =OFFSET('Red de transporte'!K104,0,($L$1-1)*10) -> - | L10: =OFFSET('Red de transporte'!L104,0,($L$1-1)*10) -> -
B11: Kilómetros de circuito ≤ 220 kV | C11: =OFFSET('Red de transporte'!C105,0,($L$1-1)*10) -> 22331.24827 | D11: =OFFSET('Red de transporte'!D105,0,($L$1-1)*10) -> - | E11: =OFFSET('Red de transporte'!E105,0,($L$1-1)*10) -> - | F11: =OFFSET('Red de transporte'!F105,0,($L$1-1)*10) -> - | G11: =OFFSET('Red de transporte'!G105,0,($L$1-1)*10) -> - | H11: =OFFSET('Red de transporte'!H105,0,($L$1-1)*10) -> - | I11: =OFFSET('Red de transporte'!I105,0,($L$1-1)*10) -> - | J11: =OFFSET('Red de transporte'!J105,0,($L$1-1)*10) -> - | K11: =OFFSET('Red de transporte'!K105,0,($L$1-1)*10) -> - | L11: =OFFSET('Red de transporte'!L105,0,($L$1-1)*10) -> -
B12: Total Kilómetros | C12: =OFFSET('Red de transporte'!C106,0,($L$1-1)*10) -> 44063.93727 | D12: =OFFSET('Red de transporte'!D106,0,($L$1-1)*10) -> - | E12: =OFFSET('Red de transporte'!E106,0,($L$1-1)*10) -> - | F12: =OFFSET('Red de transporte'!F106,0,($L$1-1)*10) -> - | G12: =OFFSET('Red de transporte'!G106,0,($L$1-1)*10) -> - | H12: =OFFSET('Red de transporte'!H106,0,($L$1-1)*10) -> - | I12: =OFFSET('Red de transporte'!I106,0,($L$1-1)*10) -> - | J12: =OFFSET('Red de transporte'!J106,0,($L$1-1)*10) -> - | K12: =OFFSET('Red de transporte'!K106,0,($L$1-1)*10) -> - | L12: =OFFSET('Red de transporte'!L106,0,($L$1-1)*10) -> -
B13: =IF(MONTH(FACT)=1,"Datos a 31 de diciembre.",CONCATENATE("Datos a 31 de diciembre. Para el año ",YEAR(FACT), " datos hasta ",TEXT(FACT-30,"mmmm"),".")) -> Datos a 31 de diciembre. Para el año 2018 datos hasta octubre.
B14: Incluye los activos de la red de transporte del resto de empresas.

Sheet RdT anual Peninsular
I3: Concepto
I4: Sistema eléctrico
I5: Horizonte temporal | M5: 3
I6: Periodo
C8: =OFFSET('Red de transporte'!C2,0,($M$5-1)*10) -> 2010 | D8: =OFFSET('Red de transporte'!D2,0,($M$5-1)*10) -> 2011 | E8: =OFFSET('Red de transporte'!E2,0,($M$5-1)*10) -> 2012 | F8: =OFFSET('Red de transporte'!F2,0,($M$5-1)*10) -> 2013 | G8: =OFFSET('Red de transporte'!G2,0,($M$5-1)*10) -> 2014 | H8: =OFFSET('Red de transporte'!H2,0,($M$5-1)*10) -> 2015 | I8: =OFFSET('Red de transporte'!I2,0,($M$5-1)*10) -> 2016 | J8: =OFFSET('Red de transporte'!J2,0,($M$5-1)*10) -> 2017 | K8: =OFFSET('Red de transporte'!K2,0,($M$5-1)*10) -> 2018 | L8: =OFFSET('Red de transporte'!L2,0,($M$5-1)*10) -> 2019
B10: Kilómetros de circuito a 400 kV | C10: =OFFSET('Red de transporte'!C3,0,($M$5-1)*10) -> 18792.419 | D10: =OFFSET('Red de transporte'!D3,0,($M$5-1)*10) -> 19671.35 | E10: =OFFSET('Red de transporte'!E3,0,($M$5-1)*10) -> 20108.846 | F10: =OFFSET('Red de transporte'!F3,0,($M$5-1)*10) -> 20639.478 | G10: =OFFSET('Red de transporte'!G3,0,($M$5-1)*10) -> 21093.728 | H10: =OFFSET('Red de transporte'!H3,0,($M$5-1)*10) -> 21183.826 | I10: =OFFSET('Red de transporte'!I3,0,($M$5-1)*10) -> 21619.966 | J10: =OFFSET('Red de transporte'!J3,0,($M$5-1)*10) -> 21728.155 | K10: =OFFSET('Red de transporte'!K3,0,($M$5-1)*10) -> 21732.689 | L10: =OFFSET('Red de transporte'!L3,0,($M$5-1)*10) -> -
B11: Kilómetros de circuito ≤ 220 kV | C11: =OFFSET('Red de transporte'!C4,0,($M$5-1)*10) -> 17403.404 | D11: =OFFSET('Red de transporte'!D4,0,($M$5-1)*10) -> 18003.668 | E11: =OFFSET('Red de transporte'!E4,0,($M$5-1)*10) -> 18372.54106 | F11: =OFFSET('Red de transporte'!F4,0,($M$5-1)*10) -> 18645.84106 | G11: =OFFSET('Red de transporte'!G4,0,($M$5-1)*10) -> 18784.95856 | H11: =OFFSET('Red de transporte'!H4,0,($M$5-1)*10) -> 18925.26156 | I11: =OFFSET('Red de transporte'!I4,0,($M$5-1)*10) -> 19013.23856 | J11: =OFFSET('Red de transporte'!J4,0,($M$5-1)*10) -> 19038.60127 | K11: =OFFSET('Red de transporte'!K4,0,($M$5-1)*10) -> 19069.70127 | L11: =OFFSET('Red de transporte'!L4,0,($M$5-1)*10) -> -
B12: Total Kilómetros | C12: =OFFSET('Red de transporte'!C5,0,($M$5-1)*10) -> 36195.823 | D12: =OFFSET('Red de transporte'!D5,0,($M$5-1)*10) -> 37675.018 | E12: =OFFSET('Red de transporte'!E5,0,($M$5-1)*10) -> 38481.38706 | F12: =OFFSET('Red de transporte'!F5,0,($M$5-1)*10) -> 39285.31906 | G12: =OFFSET('Red de transporte'!G5,0,($M$5-1)*10) -> 39878.68656 | H12: =OFFSET('Red de transporte'!H5,0,($M$5-1)*10) -> 40109.08756 | I12: =OFFSET('Red de transporte'!I5,0,($M$5-1)*10) -> 40633.20456 | J12: =OFFSET('Red de transporte'!J5,0,($M$5-1)*10) -> 40766.75627 | K12: =OFFSET('Red de transporte'!K5,0,($M$5-1)*10) -> 40802.39027 | L12: =OFFSET('Red de transporte'!L5,0,($M$5-1)*10) -> -
B13: =IF(MONTH(FACT)=1,"Datos a 31 de diciembre.",CONCATENATE("Datos a 31 de diciembre. Para el año ",YEAR(FACT), " datos hasta ",TEXT(FACT-30,"mmmm"),".")) -> Datos a 31 de diciembre. Para el año 2018 datos hasta octubre.
B14: Incluye los activos de la red de transporte del resto de empresas.

Sheet RdT anual Baleares
L1: 3
I3: Concepto
I4: Sistema eléctrico
I5: Horizonte temporal
I6: Periodo
C8: =OFFSET('Red de transporte'!C7,0,($L$1-1)*10) -> 2018 | D8: =OFFSET('Red de transporte'!D7,0,($L$1-1)*10) -> 2019 | E8: =OFFSET('Red de transporte'!E7,0,($L$1-1)*10) -> 2020 | F8: =OFFSET('Red de transporte'!F7,0,($L$1-1)*10) -> 2021 | G8: =OFFSET('Red de transporte'!G7,0,($L$1-1)*10) -> 2022 | H8: =OFFSET('Red de transporte'!H7,0,($L$1-1)*10) -> 2023 | I8: =OFFSET('Red de transporte'!I7,0,($L$1-1)*10) -> 2024 | J8: =OFFSET('Red de transporte'!J7,0,($L$1-1)*10) -> 2025 | K8: =OFFSET('Red de transporte'!K7,0,($L$1-1)*10) -> 2026 | L8: =OFFSET('Red de transporte'!L7,0,($L$1-1)*10) -> 2027
B10: Kilómetros de circuito a 220 kV | C10: =OFFSET('Red de transporte'!C8,0,($L$1-1)*10) -> 432.214 | D10: =OFFSET('Red de transporte'!D8,0,($L$1-1)*10) -> - | E10: =OFFSET('Red de transporte'!E8,0,($L$1-1)*10) -> - | F10: =OFFSET('Red de transporte'!F8,0,($L$1-1)*10) -> - | G10: =OFFSET('Red de transporte'!G8,0,($L$1-1)*10) -> - | H10: =OFFSET('Red de transporte'!H8,0,($L$1-1)*10) -> - | I10: =OFFSET('Red de transporte'!I8,0,($L$1-1)*10) -> - | J10: =OFFSET('Red de transporte'!J8,0,($L$1-1)*10) -> - | K10: =OFFSET('Red de transporte'!K8,0,($L$1-1)*10) -> - | L10: =OFFSET('Red de transporte'!L8,0,($L$1-1)*10) -> -
B11: Kilómetros de circuito ≤ 132 kV | C11: =OFFSET('Red de transporte'!C9,0,($L$1-1)*10) -> 1376.19 | D11: =OFFSET('Red de transporte'!D9,0,($L$1-1)*10) -> - | E11: =OFFSET('Red de transporte'!E9,0,($L$1-1)*10) -> - | F11: =OFFSET('Red de transporte'!F9,0,($L$1-1)*10) -> - | G11: =OFFSET('Red de transporte'!G9,0,($L$1-1)*10) -> - | H11: =OFFSET('Red de transporte'!H9,0,($L$1-1)*10) -> - | I11: =OFFSET('Red de transporte'!I9,0,($L$1-1)*10) -> - | J11: =OFFSET('Red de transporte'!J9,0,($L$1-1)*10) -> - | K11: =OFFSET('Red de transporte'!K9,0,($L$1-1)*10) -> - | L11: =OFFSET('Red de transporte'!L9,0,($L$1-1)*10) -> -
B12: Total Kilómetros | C12: =OFFSET('Red de transporte'!C10,0,($L$1-1)*10) -> 1808.404 | D12: =OFFSET('Red de transporte'!D10,0,($L$1-1)*10) -> - | E12: =OFFSET('Red de transporte'!E10,0,($L$1-1)*10) -> - | F12: =OFFSET('Red de transporte'!F10,0,($L$1-1)*10) -> - | G12: =OFFSET('Red de transporte'!G10,0,($L$1-1)*10) -> - | H12: =OFFSET('Red de transporte'!H10,0,($L$1-1)*10) -> - | I12: =OFFSET('Red de transporte'!I10,0,($L$1-1)*10) -> - | J12: =OFFSET('Red de transporte'!J10,0,($L$1-1)*10) -> - | K12: =OFFSET('Red de transporte'!K10,0,($L$1-1)*10) -> - | L12: =OFFSET('Red de transporte'!L10,0,($L$1-1)*10) -> -
B13: =IF(MONTH(FACT)=1,"Datos a 31 de diciembre.",CONCATENATE("Datos a 31 de diciembre. Para el año ",YEAR(FACT), " datos hasta ",TEXT(FACT-30,"mmmm"),".")) -> Datos a 31 de diciembre. Para el año 2018 datos hasta octubre.
B14: Incluye los activos de la red de transporte del resto de empresas.

Sheet RdT anual Canarias
L1: 3
I3: Concepto
I4: Sistema eléctrico
I5: Horizonte temporal
I6: Periodo
C8: =OFFSET('Red de transporte'!C12,0,($L$1-1)*10) -> 2018 | D8: =OFFSET('Red de transporte'!D12,0,($L$1-1)*10) -> 2019 | E8: =OFFSET('Red de transporte'!E12,0,($L$1-1)*10) -> 2020 | F8: =OFFSET('Red de transporte'!F12,0,($L$1-1)*10) -> 2021 | G8: =OFFSET('Red de transporte'!G12,0,($L$1-1)*10) -> 2022 | H8: =OFFSET('Red de transporte'!H12,0,($L$1-1)*10) -> 2023 | I8: =OFFSET('Red de transporte'!I12,0,($L$1-1)*10) -> 2024 | J8: =OFFSET('Red de transporte'!J12,0,($L$1-1)*10) -> 2025 | K8: =OFFSET('Red de transporte'!K12,0,($L$1-1)*10) -> 2026 | L8: =OFFSET('Red de transporte'!L12,0,($L$1-1)*10) -> 2027
B10: Kilómetros de circuito a 220 kV | C10: =OFFSET('Red de transporte'!C13,0,($L$1-1)*10) -> 220.243 | D10: =OFFSET('Red de transporte'!D13,0,($L$1-1)*10) -> - | E10: =OFFSET('Red de transporte'!E13,0,($L$1-1)*10) -> - | F10: =OFFSET('Red de transporte'!F13,0,($L$1-1)*10) -> - | G10: =OFFSET('Red de transporte'!G13,0,($L$1-1)*10) -> - | H10: =OFFSET('Red de transporte'!H13,0,($L$1-1)*10) -> - | I10: =OFFSET('Red de transporte'!I13,0,($L$1-1)*10) -> - | J10: =OFFSET('Red de transporte'!J13,0,($L$1-1)*10) -> - | K10: =OFFSET('Red de transporte'!K13,0,($L$1-1)*10) -> - | L10: =OFFSET('Red de transporte'!L13,0,($L$1-1)*10) -> -
B11: Kilómetros de circuito ≤ 132 kV | C11: =OFFSET('Red de transporte'!C14,0,($L$1-1)*10) -> 1232.9 | D11: =OFFSET('Red de transporte'!D14,0,($L$1-1)*10) -> - | E11: =OFFSET('Red de transporte'!E14,0,($L$1-1)*10) -> - | F11: =OFFSET('Red de transporte'!F14,0,($L$1-1)*10) -> - | G11: =OFFSET('Red de transporte'!G14,0,($L$1-1)*10) -> - | H11: =OFFSET('Red de transporte'!H14,0,($L$1-1)*10) -> - | I11: =OFFSET('Red de transporte'!I14,0,($L$1-1)*10) -> - | J11: =OFFSET('Red de transporte'!J14,0,($L$1-1)*10) -> - | K11: =OFFSET('Red de transporte'!K14,0,($L$1-1)*10) -> - | L11: =OFFSET('Red de transporte'!L14,0,($L$1-1)*10) -> -
B12: Total Kilómetros | C12: =OFFSET('Red de transporte'!C15,0,($L$1-1)*10) -> 1453.143 | D12: =OFFSET('Red de transporte'!D15,0,($L$1-1)*10) -> - | E12: =OFFSET('Red de transporte'!E15,0,($L$1-1)*10) -> - | F12: =OFFSET('Red de transporte'!F15,0,($L$1-1)*10) -> - | G12: =OFFSET('Red de transporte'!G15,0,($L$1-1)*10) -> - | H12: =OFFSET('Red de transporte'!H15,0,($L$1-1)*10) -> - | I12: =OFFSET('Red de transporte'!I15,0,($L$1-1)*10) -> - | J12: =OFFSET('Red de transporte'!J15,0,($L$1-1)*10) -> - | K12: =OFFSET('Red de transporte'!K15,0,($L$1-1)*10) -> - | L12: =OFFSET('Red de transporte'!L15,0,($L$1-1)*10) -> -
B13: =IF(MONTH(FACT)=1,"Datos a 31 de diciembre.",CONCATENATE("Datos a 31 de diciembre. Para el año ",YEAR(FACT), " datos hasta ",TEXT(FACT-30,"mmmm"),".")) -> Datos a 31 de diciembre. Para el año 2018 datos hasta octubre.

Sheet Calidad anual Peninsular
L1: 2
I3: Concepto
I4: Sistema eléctrico
I5: Horizonte temporal
I6: Periodo
C8: =OFFSET('Red de transporte'!C60,0,($L$1-1)*10) -> 2013 | D8: =OFFSET('Red de transporte'!D60,0,($L$1-1)*10) -> 2014 | E8: =OFFSET('Red de transporte'!E60,0,($L$1-1)*10) -> 2015 | F8: =OFFSET('Red de transporte'!F60,0,($L$1-1)*10) -> 2016 | G8: =OFFSET('Red de transporte'!G60,0,($L$1-1)*10) -> 2017 | H8: =OFFSET('Red de transporte'!H60,0,($L$1-1)*10) -> 2018 | I8: =OFFSET('Red de transporte'!I60,0,($L$1-1)*10) -> 2019 | J8: =OFFSET('Red de transporte'!J60,0,($L$1-1)*10) -> 2020 | K8: =OFFSET('Red de transporte'!K60,0,($L$1-1)*10) -> 2021 | L8: =OFFSET('Red de transporte'!L60,0,($L$1-1)*10) -> 2022
B10: Número de cortes | C10: =OFFSET('Red de transporte'!C61,0,($L$1-1)*10) -> 18 | D10: =OFFSET('Red de transporte'!D61,0,($L$1-1)*10) -> 24 | E10: =OFFSET('Red de transporte'!E61,0,($L$1-1)*10) -> 18 | F10: =OFFSET('Red de transporte'!F61,0,($L$1-1)*10) -> 15 | G10: =OFFSET('Red de transporte'!G61,0,($L$1-1)*10) -> 12 | H10: =OFFSET('Red de transporte'!H61,0,($L$1-1)*10) -> 11 | I10: =OFFSET('Red de transporte'!I61,0,($L$1-1)*10) -> - | J10: =OFFSET('Red de transporte'!J61,0,($L$1-1)*10) -> - | K10: =OFFSET('Red de transporte'!K61,0,($L$1-1)*10) -> - | L10: =OFFSET('Red de transporte'!L61,0,($L$1-1)*10) -> -
B11: Energía no suministrada (MWh) | C11: =OFFSET('Red de transporte'!C62,0,($L$1-1)*10) -> 1156.18 | D11: =OFFSET('Red de transporte'!D62,0,($L$1-1)*10) -> 204.34 | E11: =OFFSET('Red de transporte'!E62,0,($L$1-1)*10) -> 52.77 | F11: =OFFSET('Red de transporte'!F62,0,($L$1-1)*10) -> 77.965 | G11: =OFFSET('Red de transporte'!G62,0,($L$1-1)*10) -> 60.153 | H11: =OFFSET('Red de transporte'!H62,0,($L$1-1)*10) -> 207.96 | I11: =OFFSET('Red de transporte'!I62,0,($L$1-1)*10) -> - | J11: =OFFSET('Red de transporte'!J62,0,($L$1-1)*10) -> - | K11: =OFFSET('Red de transporte'!K62,0,($L$1-1)*10) -> - | L11: =OFFSET('Red de transporte'!L62,0,($L$1-1)*10) -> -
B12: Tiempo de interrupción medio (minutos) | C12: =OFFSET('Red de transporte'!C63,0,($L$1-1)*10) -> 2.467 | D12: =OFFSET('Red de transporte'!D63,0,($L$1-1)*10) -> 0.441 | E12: =OFFSET('Red de transporte'!E63,0,($L$1-1)*10) -> 0.112 | F12: =OFFSET('Red de transporte'!F63,0,($L$1-1)*10) -> 0.164 | G12: =OFFSET('Red de transporte'!G63,0,($L$1-1)*10) -> 0.125 | H12: =OFFSET('Red de transporte'!H63,0,($L$1-1)*10) -> 0.427 | I12: =OFFSET('Red de transporte'!I63,0,($L$1-1)*10) -> - | J12: =OFFSET('Red de transporte'!J63,0,($L$1-1)*10) -> - | K12: =OFFSET('Red de transporte'!K63,0,($L$1-1)*10) -> - | L12: =OFFSET('Red de transporte'!L63,0,($L$1-1)*10) -> -
B13: TIM = ENS / Potencia media del sistema.
B14: =IF(MONTH(FACT)=1,"Datos acumulados a 31 de diciembre.",CONCATENATE("Datos acumulados a 31 de diciembre. Para el año ",YEAR(FACT), " datos acumulados a ",TEXT(FACT-30,"mmmm")," de ",YEAR(FACT),".")) -> Datos acumulados a 31 de diciembre. Para el año 2018 datos acumulados a octubre de 2018.
B15: Los indicadores de calidad del servicio de cada año son auditados en septiembre del año siguiente.
B16: (1) Datos acumulados a julio de 2013.

Sheet Calidad mensual Peninsular
O1: 16
L3: Concepto
L4: Sistema eléctrico
L5: Horizonte temporal
L6: Periodo
C8: Ene. | D8: Feb. | E8: Mar. | F8: Abr. | G8: May. | H8: Jun. | I8: Jul. | J8: Ago. | K8: Sep. | L8: Oct. | M8: Nov. | N8: Dic. | O8: =OFFSET(Año!D2,($O$1-1),0) -> 2018
B10: Número de cortes | C10: =OFFSET('Red de transporte'!C18,0,($O$1-1)*13) -> 0 | D10: =OFFSET('Red de transporte'!D18,0,($O$1-1)*13) -> 1 | E10: =OFFSET('Red de transporte'!E18,0,($O$1-1)*13) -> 1 | F10: =OFFSET('Red de transporte'!F18,0,($O$1-1)*13) -> 1 | G10: =OFFSET('Red de transporte'!G18,0,($O$1-1)*13) -> 2 | H10: =OFFSET('Red de transporte'!H18,0,($O$1-1)*13) -> 2 | I10: =OFFSET('Red de transporte'!I18,0,($O$1-1)*13) -> 1 | J10: =OFFSET('Red de transporte'!J18,0,($O$1-1)*13) -> 1 | K10: =OFFSET('Red de transporte'!K18,0,($O$1-1)*13) -> 2 | L10: =OFFSET('Red de transporte'!L18,0,($O$1-1)*13) -> 0 | M10: =OFFSET('Red de transporte'!M18,0,($O$1-1)*13) -> - | N10: =OFFSET('Red de transporte'!N18,0,($O$1-1)*13) -> - | O10: =OFFSET('Red de transporte'!O18,0,($O$1-1)*13) -> 11
B11: Energía no suministrada (MWh) | C11: =OFFSET('Red de transporte'!C19,0,($O$1-1)*13) -> 0 | D11: =OFFSET('Red de transporte'!D19,0,($O$1-1)*13) -> 0.065 | E11: =OFFSET('Red de transporte'!E19,0,($O$1-1)*13) -> 17.77 | F11: =OFFSET('Red de transporte'!F19,0,($O$1-1)*13) -> 0.41 | G11: =OFFSET('Red de transporte'!G19,0,($O$1-1)*13) -> 5.43 | H11: =OFFSET('Red de transporte'!H19,0,($O$1-1)*13) -> 0.175 | I11: =OFFSET('Red de transporte'!I19,0,($O$1-1)*13) -> 8.75 | J11: =OFFSET('Red de transporte'!J19,0,($O$1-1)*13) -> 174.98 | K11: =OFFSET('Red de transporte'!K19,0,($O$1-1)*13) -> 0.38 | L11: =OFFSET('Red de transporte'!L19,0,($O$1-1)*13) -> 0 | M11: =OFFSET('Red de transporte'!M19,0,($O$1-1)*13) -> - | N11: =OFFSET('Red de transporte'!N19,0,($O$1-1)*13) -> - | O11: =OFFSET('Red de transporte'!O19,0,($O$1-1)*13) -> 207.96
B12: Tiempo de interrupción medio (minutos) | C12: =OFFSET('Red de transporte'!C20,0,($O$1-1)*13) -> 0 | D12: =OFFSET('Red de transporte'!D20,0,($O$1-1)*13) -> 0.00012 | E12: =OFFSET('Red de transporte'!E20,0,($O$1-1)*13) -> 0.03598 | F12: =OFFSET('Red de transporte'!F20,0,($O$1-1)*13) -> 0.00089 | G12: =OFFSET('Red de transporte'!G20,0,($O$1-1)*13) -> 0.01208 | H12: =OFFSET('Red de transporte'!H20,0,($O$1-1)*13) -> 0.00037 | I12: =OFFSET('Red de transporte'!I20,0,($O$1-1)*13) -> 0.01762 | J12: =OFFSET('Red de transporte'!J20,0,($O$1-1)*13) -> 0.35552 | K12: =OFFSET('Red de transporte'!K20,0,($O$1-1)*13) -> 0.00079 | L12: =OFFSET('Red de transporte'!L20,0,($O$1-1)*13) -> 0 | M12: =OFFSET('Red de transporte'!M20,0,($O$1-1)*13) -> - | N12: =OFFSET('Red de transporte'!N20,0,($O$1-1)*13) -> - | O12: =OFFSET('Red de transporte'!O20,0,($O$1-1)*13) -> 0.43
B13: TIM = ENS / Potencia media del sistema.
B14: ='Calidad anual Peninsular'!B15 -> Los indicadores de calidad del servicio de cada año son auditados en septiembre del año siguiente.

Sheet Calidad anual Baleares
L1: 2
I3: Concepto
I4: Sistema eléctrico
I5: Horizonte temporal
I6: Periodo
C8: =OFFSET('Red de transporte'!C65,0,($L$1-1)*10) -> 2015 | D8: =OFFSET('Red de transporte'!D65,0,($L$1-1)*10) -> 2016 | E8: =OFFSET('Red de transporte'!E65,0,($L$1-1)*10) -> 2017 | F8: =OFFSET('Red de transporte'!F65,0,($L$1-1)*10) -> 2018 | G8: =OFFSET('Red de transporte'!G65,0,($L$1-1)*10) -> 2019 | H8: =OFFSET('Red de transporte'!H65,0,($L$1-1)*10) -> 2020 | I8: =OFFSET('Red de transporte'!I65,0,($L$1-1)*10) -> 2021 | J8: =OFFSET('Red de transporte'!J65,0,($L$1-1)*10) -> 2022 | K8: =OFFSET('Red de transporte'!K65,0,($L$1-1)*10) -> 2023 | L8: =OFFSET('Red de transporte'!L65,0,($L$1-1)*10) -> 2024
B10: Número de cortes | C10: =OFFSET('Red de transporte'!C66,0,($L$1-1)*10) -> 5 | D10: =OFFSET('Red de transporte'!D66,0,($L$1-1)*10) -> 1 | E10: =OFFSET('Red de transporte'!E66,0,($L$1-1)*10) -> 5 | F10: =OFFSET('Red de transporte'!F66,0,($L$1-1)*10) -> 2 | G10: =OFFSET('Red de transporte'!G66,0,($L$1-1)*10) -> - | H10: =OFFSET('Red de transporte'!H66,0,($L$1-1)*10) -> - | I10: =OFFSET('Red de transporte'!I66,0,($L$1-1)*10) -> - | J10: =OFFSET('Red de transporte'!J66,0,($L$1-1)*10) -> - | K10: =OFFSET('Red de transporte'!K66,0,($L$1-1)*10) -> - | L10: =OFFSET('Red de transporte'!L66,0,($L$1-1)*10) -> -
B11: Energía no suministrada (MWh) | C11: =OFFSET('Red de transporte'!C67,0,($L$1-1)*10) -> 29.36 | D11: =OFFSET('Red de transporte'!D67,0,($L$1-1)*10) -> 0.3 | E11: =OFFSET('Red de transporte'!E67,0,($L$1-1)*10) -> 33.07 | F11: =OFFSET('Red de transporte'!F67,0,($L$1-1)*10) -> 33.81 | G11: =OFFSET('Red de transporte'!G67,0,($L$1-1)*10) -> - | H11: =OFFSET('Red de transporte'!H67,0,($L$1-1)*10) -> - | I11: =OFFSET('Red de transporte'!I67,0,($L$1-1)*10) -> - | J11: =OFFSET('Red de transporte'!J67,0,($L$1-1)*10) -> - | K11: =OFFSET('Red de transporte'!K67,0,($L$1-1)*10) -> - | L11: =OFFSET('Red de transporte'!L67,0,($L$1-1)*10) -> -
B12: Tiempo de interrupción medio (minutos) | C12: =OFFSET('Red de transporte'!C68,0,($L$1-1)*10) -> 2.662 | D12: =OFFSET('Red de transporte'!D68,0,($L$1-1)*10) -> 0.027 | E12: =OFFSET('Red de transporte'!E68,0,($L$1-1)*10) -> 2.883 | F12: =OFFSET('Red de transporte'!F68,0,($L$1-1)*10) -> 2.788 | G12: =OFFSET('Red de transporte'!G68,0,($L$1-1)*10) -> - | H12: =OFFSET('Red de transporte'!H68,0,($L$1-1)*10) -> - | I12: =OFFSET('Red de transporte'!I68,0,($L$1-1)*10) -> - | J12: =OFFSET('Red de transporte'!J68,0,($L$1-1)*10) -> - | K12: =OFFSET('Red de transporte'!K68,0,($L$1-1)*10) -> - | L12: =OFFSET('Red de transporte'!L68,0,($L$1-1)*10) -> -
B13: TIM = ENS / Potencia media del sistema.
B14: =IF(MONTH(FACT)=1,"Datos acumulados a 31 de diciembre.",CONCATENATE("Datos acumulados a 31 de diciembre. Para el año ",YEAR(FACT), " datos acumulados a ",TEXT(FACT-30,"mmmm")," de ",YEAR(FACT),".")) -> Datos acumulados a 31 de diciembre. Para el año 2018 datos acumulados a octubre de 2018.
B15: ='Calidad anual Peninsular'!B15 -> Los indicadores de calidad del servicio de cada año son auditados en septiembre del año siguiente.
B16: (1) Datos acumulados a julio de 2013.

Sheet Calidad mensual Baleares
O1: 14
L3: Concepto
L4: Sistema eléctrico
L5: Horizonte temporal
L6: Periodo
C8: Ene. | D8: Feb. | E8: Mar. | F8: Abr. | G8: May. | H8: Jun. | I8: Jul. | J8: Ago. | K8: Sep. | L8: Oct. | M8: Nov. | N8: Dic. | O8: =OFFSET(Año!D4,($O$1-1),0) -> 2018
B10: Número de cortes | C10: =OFFSET('Red de transporte'!C23,0,($O$1-1)*13) -> 0 | D10: =OFFSET('Red de transporte'!D23,0,($O$1-1)*13) -> 0 | E10: =OFFSET('Red de transporte'!E23,0,($O$1-1)*13) -> 0 | F10: =OFFSET('Red de transporte'!F23,0,($O$1-1)*13) -> 0 | G10: =OFFSET('Red de transporte'!G23,0,($O$1-1)*13) -> 0 | H10: =OFFSET('Red de transporte'!H23,0,($O$1-1)*13) -> 0 | I10: =OFFSET('Red de transporte'!I23,0,($O$1-1)*13) -> 0 | J10: =OFFSET('Red de transporte'!J23,0,($O$1-1)*13) -> 1 | K10: =OFFSET('Red de transporte'!K23,0,($O$1-1)*13) -> 1 | L10: =OFFSET('Red de transporte'!L23,0,($O$1-1)*13) -> 0 | M10: =OFFSET('Red de transporte'!M23,0,($O$1-1)*13) -> - | N10: =OFFSET('Red de transporte'!N23,0,($O$1-1)*13) -> - | O10: =OFFSET('Red de transporte'!O23,0,($O$1-1)*13) -> 2
B11: Energía no suministrada (MWh) | C11: =OFFSET('Red de transporte'!C24,0,($O$1-1)*13) -> 0 | D11: =OFFSET('Red de transporte'!D24,0,($O$1-1)*13) -> 0 | E11: =OFFSET('Red de transporte'!E24,0,($O$1-1)*13) -> 0 | F11: =OFFSET('Red de transporte'!F24,0,($O$1-1)*13) -> 0 | G11: =OFFSET('Red de transporte'!G24,0,($O$1-1)*13) -> 0 | H11: =OFFSET('Red de transporte'!H24,0,($O$1-1)*13) -> 0 | I11: =OFFSET('Red de transporte'!I24,0,($O$1-1)*13) -> 0 | J11: =OFFSET('Red de transporte'!J24,0,($O$1-1)*13) -> 33.11 | K11: =OFFSET('Red de transporte'!K24,0,($O$1-1)*13) -> 0.7 | L11: =OFFSET('Red de transporte'!L24,0,($O$1-1)*13) -> 0 | M11: =OFFSET('Red de transporte'!M24,0,($O$1-1)*13) -> - | N11: =OFFSET('Red de transporte'!N24,0,($O$1-1)*13) -> - | O11: =OFFSET('Red de transporte'!O24,0,($O$1-1)*13) -> 33.81
B12: Tiempo de interrupción medio (minutos) | C12: =OFFSET('Red de transporte'!C25,0,($O$1-1)*13) -> 0 | D12: =OFFSET('Red de transporte'!D25,0,($O$1-1)*13) -> 0 | E12: =OFFSET('Red de transporte'!E25,0,($O$1-1)*13) -> 0 | F12: =OFFSET('Red de transporte'!F25,0,($O$1-1)*13) -> 0 | G12: =OFFSET('Red de transporte'!G25,0,($O$1-1)*13) -> 0 | H12: =OFFSET('Red de transporte'!H25,0,($O$1-1)*13) -> 0 | I12: =OFFSET('Red de transporte'!I25,0,($O$1-1)*13) -> 0 | J12: =OFFSET('Red de transporte'!J25,0,($O$1-1)*13) -> 2.1 | K12: =OFFSET('Red de transporte'!K25,0,($O$1-1)*13) -> 0.052 | L12: =OFFSET('Red de transporte'!L25,0,($O$1-1)*13) -> 0 | M12: =OFFSET('Red de transporte'!M25,0,($O$1-1)*13) -> - | N12: =OFFSET('Red de transporte'!N25,0,($O$1-1)*13) -> - | O12: =OFFSET('Red de transporte'!O25,0,($O$1-1)*13) -> 2.825
B13: TIM = ENS / Potencia media del sistema.
B14: ='Calidad anual Peninsular'!B15 -> Los indicadores de calidad del servicio de cada año son auditados en septiembre del año siguiente.

Sheet Calidad anual Canarias
L1: 2
I3: Concepto
I4: Sistema eléctrico
I5: Horizonte temporal
I6: Periodo
C8: =OFFSET('Red de transporte'!C70,0,($L$1-1)*10) -> 2015 | D8: =OFFSET('Red de transporte'!D70,0,($L$1-1)*10) -> 2016 | E8: =OFFSET('Red de transporte'!E70,0,($L$1-1)*10) -> 2017 | F8: =OFFSET('Red de transporte'!F70,0,($L$1-1)*10) -> 2018 | G8: =OFFSET('Red de transporte'!G70,0,($L$1-1)*10) -> 2019 | H8: =OFFSET('Red de transporte'!H70,0,($L$1-1)*10) -> 2020 | I8: =OFFSET('Red de transporte'!I70,0,($L$1-1)*10) -> 2021 | J8: =OFFSET('Red de transporte'!J70,0,($L$1-1)*10) -> 2022 | K8: =OFFSET('Red de transporte'!K70,0,($L$1-1)*10) -> 2023 | L8: =OFFSET('Red de transporte'!L70,0,($L$1-1)*10) -> 2024
B10: Número de cortes | C10: =OFFSET('Red de transporte'!C71,0,($L$1-1)*10) -> 12 | D10: =OFFSET('Red de transporte'!D71,0,($L$1-1)*10) -> 14 | E10: =OFFSET('Red de transporte'!E71,0,($L$1-1)*10) -> 12 | F10: =OFFSET('Red de transporte'!F71,0,($L$1-1)*10) -> 3 | G10: =OFFSET('Red de transporte'!G71,0,($L$1-1)*10) -> - | H10: =OFFSET('Red de transporte'!H71,0,($L$1-1)*10) -> - | I10: =OFFSET('Red de transporte'!I71,0,($L$1-1)*10) -> - | J10: =OFFSET('Red de transporte'!J71,0,($L$1-1)*10) -> - | K10: =OFFSET('Red de transporte'!K71,0,($L$1-1)*10) -> - | L10: =OFFSET('Red de transporte'!L71,0,($L$1-1)*10) -> -
B11: Energía no suministrada (MWh) | C11: =OFFSET('Red de transporte'!C72,0,($L$1-1)*10) -> 149.717 | D11: =OFFSET('Red de transporte'!D72,0,($L$1-1)*10) -> 457.11 | E11: =OFFSET('Red de transporte'!E72,0,($L$1-1)*10) -> 46.91 | F11: =OFFSET('Red de transporte'!F72,0,($L$1-1)*10) -> 7.91 | G11: =OFFSET('Red de transporte'!G72,0,($L$1-1)*10) -> - | H11: =OFFSET('Red de transporte'!H72,0,($L$1-1)*10) -> - | I11: =OFFSET('Red de transporte'!I72,0,($L$1-1)*10) -> - | J11: =OFFSET('Red de transporte'!J72,0,($L$1-1)*10) -> - | K11: =OFFSET('Red de transporte'!K72,0,($L$1-1)*10) -> - | L11: =OFFSET('Red de transporte'!L72,0,($L$1-1)*10) -> -
B12: Tiempo de interrupción medio (minutos) | C12: =OFFSET('Red de transporte'!C73,0,($L$1-1)*10) -> 9.078 | D12: =OFFSET('Red de transporte'!D73,0,($L$1-1)*10) -> 27.447 | E12: =OFFSET('Red de transporte'!E73,0,($L$1-1)*10) -> 2.752 | F12: =OFFSET('Red de transporte'!F73,0,($L$1-1)*10) -> 0.207 | G12: =OFFSET('Red de transporte'!G73,0,($L$1-1)*10) -> - | H12: =OFFSET('Red de transporte'!H73,0,($L$1-1)*10) -> - | I12: =OFFSET('Red de transporte'!I73,0,($L$1-1)*10) -> - | J12: =OFFSET('Red de transporte'!J73,0,($L$1-1)*10) -> - | K12: =OFFSET('Red de transporte'!K73,0,($L$1-1)*10) -> - | L12: =OFFSET('Red de transporte'!L73,0,($L$1-1)*10) -> -
B13: TIM = ENS / Potencia media del sistema.
B14: =IF(MONTH(FACT)=1,"Datos acumulados a 31 de diciembre.",CONCATENATE("Datos acumulados a 31 de diciembre. Para el año ",YEAR(FACT), " datos acumulados a ",TEXT(FACT-30,"mmmm")," de ",YEAR(FACT),".")) -> Datos acumulados a 31 de diciembre. Para el año 2018 datos acumulados a octubre de 2018.
B15: ='Calidad anual Peninsular'!B15 -> Los indicadores de calidad del servicio de cada año son auditados en septiembre del año siguiente.
B16: (1) Datos acumulados a julio de 2013.

Sheet Calidad mensual Canarias
O1: 14
L3: Concepto
L4: Sistema eléctrico
L5: Horizonte temporal
L6: Periodo
C8: Ene. | D8: Feb. | E8: Mar. | F8: Abr. | G8: May. | H8: Jun. | I8: Jul. | J8: Ago. | K8: Sep. | L8: Oct. | M8: Nov. | N8: Dic. | O8: =OFFSET(Año!D4,($O$1-1),0) -> 2018
B10: Número de cortes | C10: =OFFSET('Red de transporte'!C28,0,($O$1-1)*13) -> 0 | D10: =OFFSET('Red de transporte'!D28,0,($O$1-1)*13) -> 0 | E10: =OFFSET('Red de transporte'!E28,0,($O$1-1)*13) -> 1 | F10: =OFFSET('Red de transporte'!F28,0,($O$1-1)*13) -> 1 | G10: =OFFSET('Red de transporte'!G28,0,($O$1-1)*13) -> 1 | H10: =OFFSET('Red de transporte'!H28,0,($O$1-1)*13) -> 0 | I10: =OFFSET('Red de transporte'!I28,0,($O$1-1)*13) -> 0 | J10: =OFFSET('Red de transporte'!J28,0,($O$1-1)*13) -> 0 | K10: =OFFSET('Red de transporte'!K28,0,($O$1-1)*13) -> 0 | L10: =OFFSET('Red de transporte'!L28,0,($O$1-1)*13) -> 1 | M10: =OFFSET('Red de transporte'!M28,0,($O$1-1)*13) -> - | N10: =OFFSET('Red de transporte'!N28,0,($O$1-1)*13) -> - | O10: =OFFSET('Red de transporte'!O28,0,($O$1-1)*13) -> 4
B11: Energía no suministrada (MWh) | C11: =OFFSET('Red de transporte'!C29,0,($O$1-1)*13) -> 0 | D11: =OFFSET('Red de transporte'!D29,0,($O$1-1)*13) -> 0 | E11: =OFFSET('Red de transporte'!E29,0,($O$1-1)*13) -> 1.55 | F11: =OFFSET('Red de transporte'!F29,0,($O$1-1)*13) -> 1.04 | G11: =OFFSET('Red de transporte'!G29,0,($O$1-1)*13) -> 5.32 | H11: =OFFSET('Red de transporte'!H29,0,($O$1-1)*13) -> 0 | I11: =OFFSET('Red de transporte'!I29,0,($O$1-1)*13) -> 0 | J11: =OFFSET('Red de transporte'!J29,0,($O$1-1)*13) -> 0 | K11: =OFFSET('Red de transporte'!K29,0,($O$1-1)*13) -> 0 | L11: =OFFSET('Red de transporte'!L29,0,($O$1-1)*13) -> 63.5 | M11: =OFFSET('Red de transporte'!M29,0,($O$1-1)*13) -> - | N11: =OFFSET('Red de transporte'!N29,0,($O$1-1)*13) -> - | O11: =OFFSET('Red de transporte'!O29,0,($O$1-1)*13) -> 71.41
B12: Tiempo de interrupción medio (minutos) | C12: =OFFSET('Red de transporte'!C30,0,($O$1-1)*13) -> 0 | D12: =OFFSET('Red de transporte'!D30,0,($O$1-1)*13) -> 0 | E12: =OFFSET('Red de transporte'!E30,0,($O$1-1)*13) -> 0.095 | F12: =OFFSET('Red de transporte'!F30,0,($O$1-1)*13) -> 0.064 | G12: =OFFSET('Red de transporte'!G30,0,($O$1-1)*13) -> 0.332 | H12: =OFFSET('Red de transporte'!H30,0,($O$1-1)*13) -> 0 | I12: =OFFSET('Red de transporte'!I30,0,($O$1-1)*13) -> 0 | J12: =OFFSET('Red de transporte'!J30,0,($O$1-1)*13) -> 0 | K12: =OFFSET('Red de transporte'!K30,0,($O$1-1)*13) -> 0 | L12: =OFFSET('Red de transporte'!L30,0,($O$1-1)*13) -> 3.672 | M12: =OFFSET('Red de transporte'!M30,0,($O$1-1)*13) -> - | N12: =OFFSET('Red de transporte'!N30,0,($O$1-1)*13) -> - | O12: =OFFSET('Red de transporte'!O30,0,($O$1-1)*13) -> 1.674
B13: TIM = ENS / Potencia media del sistema.
B14: ='Calidad anual Peninsular'!B15 -> Los indicadores de calidad del servicio de cada año son auditados en septiembre del año siguiente.

Sheet Indisp. anual peninsular
L1: 2
I3: Concepto
I4: Sistema eléctrico
I5: Horizonte temporal
I6: Periodo
C8: =OFFSET('Red de transporte'!C75,0,($L$1-1)*10) -> 2014 | D8: =OFFSET('Red de transporte'!D75,0,($L$1-1)*10) -> 2015 | E8: =OFFSET('Red de transporte'!E75,0,($L$1-1)*10) -> 2016 | F8: =OFFSET('Red de transporte'!F75,0,($L$1-1)*10) -> 2017 | G8: =OFFSET('Red de transporte'!G75,0,($L$1-1)*10) -> 2018 | H8: =OFFSET('Red de transporte'!H75,0,($L$1-1)*10) -> 2019 | I8: =OFFSET('Red de transporte'!I75,0,($L$1-1)*10) -> 2020 | J8: =OFFSET('Red de transporte'!J75,0,($L$1-1)*10) -> 2021 | K8: =OFFSET('Red de transporte'!K75,0,($L$1-1)*10) -> 2022 | L8: =OFFSET('Red de transporte'!L75,0,($L$1-1)*10) -> 2023
B10: Mantenimiento preventivo y predictivo | C10: =OFFSET('Red de transporte'!C77,0,($L$1-1)*10) -> 0.62 | D10: =OFFSET('Red de transporte'!D77,0,($L$1-1)*10) -> 0.64 | E10: =OFFSET('Red de transporte'!E77,0,($L$1-1)*10) -> 0.73 | F10: =OFFSET('Red de transporte'!F77,0,($L$1-1)*10) -> 0.76 | G10: =OFFSET('Red de transporte'!G77,0,($L$1-1)*10) -> 0.73 | H10: =OFFSET('Red de transporte'!H77,0,($L$1-1)*10) -> - | I10: =OFFSET('Red de transporte'!I77,0,($L$1-1)*10) -> - | J10: =OFFSET('Red de transporte'!J77,0,($L$1-1)*10) -> - | K10: =OFFSET('Red de transporte'!K77,0,($L$1-1)*10) -> - | L10: =OFFSET('Red de transporte'!L77,0,($L$1-1)*10) -> -
B11: Causas ajenas al mantenimiento | C11: =OFFSET('Red de transporte'!C78,0,($L$1-1)*10) -> 1.02 | D11: =OFFSET('Red de transporte'!D78,0,($L$1-1)*10) -> 1.23 | E11: =OFFSET('Red de transporte'!E78,0,($L$1-1)*10) -> 0.84 | F11: =OFFSET('Red de transporte'!F78,0,($L$1-1)*10) -> 0.82 | G11: =OFFSET('Red de transporte'!G78,0,($L$1-1)*10) -> 0.91 | H11: =OFFSET('Red de transporte'!H78,0,($L$1-1)*10) -> - | I11: =OFFSET('Red de transporte'!I78,0,($L$1-1)*10) -> - | J11: =OFFSET('Red de transporte'!J78,0,($L$1-1)*10) -> - | K11: =OFFSET('Red de transporte'!K78,0,($L$1-1)*10) -> - | L11: =OFFSET('Red de transporte'!L78,0,($L$1-1)*10) -> -
B12: Mantenimiento correctivo | C12: =OFFSET('Red de transporte'!C79,0,($L$1-1)*10) -> 0.17 | D12: =OFFSET('Red de transporte'!D79,0,($L$1-1)*10) -> 0.18 | E12: =OFFSET('Red de transporte'!E79,0,($L$1-1)*10) -> 0.11 | F12: =OFFSET('Red de transporte'!F79,0,($L$1-1)*10) -> 0.12 | G12: =OFFSET('Red de transporte'!G79,0,($L$1-1)*10) -> 0.12 | H12: =OFFSET('Red de transporte'!H79,0,($L$1-1)*10) -> - | I12: =OFFSET('Red de transporte'!I79,0,($L$1-1)*10) -> - | J12: =OFFSET('Red de transporte'!J79,0,($L$1-1)*10) -> - | K12: =OFFSET('Red de transporte'!K79,0,($L$1-1)*10) -> - | L12: =OFFSET('Red de transporte'!L79,0,($L$1-1)*10) -> -
B13: Circunstancias fortuitas previstas en las condiciones de diseño | C13: =OFFSET('Red de transporte'!C80,0,($L$1-1)*10) -> 0 | D13: =OFFSET('Red de transporte'!D80,0,($L$1-1)*10) -> 0.01 | E13: =OFFSET('Red de transporte'!E80,0,($L$1-1)*10) -> 0.01 | F13: =OFFSET('Red de transporte'!F80,0,($L$1-1)*10) -> 0.01 | G13: =OFFSET('Red de transporte'!G80,0,($L$1-1)*10) -> 0.01 | H13: =OFFSET('Red de transporte'!H80,0,($L$1-1)*10) -> - | I13: =OFFSET('Red de transporte'!I80,0,($L$1-1)*10) -> - | J13: =OFFSET('Red de transporte'!J80,0,($L$1-1)*10) -> - | K13: =OFFSET('Red de transporte'!K80,0,($L$1-1)*10) -> - | L13: =OFFSET('Red de transporte'!L80,0,($L$1-1)*10) -> -
B14: Causa de fuerza mayor o acciones de terceros | C14: =OFFSET('Red de transporte'!C81,0,($L$1-1)*10) -> 0.23 | D14: =OFFSET('Red de transporte'!D81,0,($L$1-1)*10) -> 0.16 | E14: =OFFSET('Red de transporte'!E81,0,($L$1-1)*10) -> 0.19 | F14: =OFFSET('Red de transporte'!F81,0,($L$1-1)*10) -> 0.45 | G14: =OFFSET('Red de transporte'!G81,0,($L$1-1)*10) -> 0.24 | H14: =OFFSET('Red de transporte'!H81,0,($L$1-1)*10) -> - | I14: =OFFSET('Red de transporte'!I81,0,($L$1-1)*10) -> - | J14: =OFFSET('Red de transporte'!J81,0,($L$1-1)*10) -> - | K14: =OFFSET('Red de transporte'!K81,0,($L$1-1)*10) -> - | L14: =OFFSET('Red de transporte'!L81,0,($L$1-1)*10) -> -
B15: Sin clasificar (1) | C15: =OFFSET('Red de transporte'!C82,0,($L$1-1)*10) -> 0 | D15: =OFFSET('Red de transporte'!D82,0,($L$1-1)*10) -> 0 | E15: =OFFSET('Red de transporte'!E82,0,($L$1-1)*10) -> 0 | F15: =OFFSET('Red de transporte'!F82,0,($L$1-1)*10) -> 0 | G15: =OFFSET('Red de transporte'!G82,0,($L$1-1)*10) -> 0 | H15: =OFFSET('Red de transporte'!H82,0,($L$1-1)*10) -> - | I15: =OFFSET('Red de transporte'!I82,0,($L$1-1)*10) -> - | J15: =OFFSET('Red de transporte'!J82,0,($L$1-1)*10) -> - | K15: =OFFSET('Red de transporte'!K82,0,($L$1-1)*10) -> - | L15: =OFFSET('Red de transporte'!L82,0,($L$1-1)*10) -> -
B16: Total (2) | C16: =OFFSET('Red de transporte'!C83,0,($L$1-1)*10) -> 1.81 | D16: =OFFSET('Red de transporte'!D83,0,($L$1-1)*10) -> 2.06 | E16: =OFFSET('Red de transporte'!E83,0,($L$1-1)*10) -> 1.67 | F16: =OFFSET('Red de transporte'!F83,0,($L$1-1)*10) -> 1.71 | G16: =OFFSET('Red de transporte'!G83,0,($L$1-1)*10) -> 1.77 | H16: =OFFSET('Red de transporte'!H83,0,($L$1-1)*10) -> - | I16: =OFFSET('Red de transporte'!I83,0,($L$1-1)*10) -> - | J16: =OFFSET('Red de transporte'!J83,0,($L$1-1)*10) -> - | K16: =OFFSET('Red de transporte'!K83,0,($L$1-1)*10) -> - | L16: =OFFSET('Red de transporte'!L83,0,($L$1-1)*10) -> -
B17: (1) Datos facilitados por otros transportistas pendientes de clasificar.
B18: (2) Según lo establecido en el Real Decreto 1955/2000, para el cálculo de la indisponibilidad de la red de transporte no se incluyen las indisponibilidades por causas de fuerza mayor o acciones de terceros.
B19: =IF(MONTH(FACT)=1,"Datos acumulados a 31 de diciembre.",CONCATENATE("Datos acumulados a 31 de diciembre. Para el año ",YEAR(FACT), " datos acumulados a ",TEXT(FACT-30,"mmmm")," de ",YEAR(FACT),".")) -> Datos acumulados a 31 de diciembre. Para el año 2018 datos acumulados a octubre de 2018.
B20: ='Calidad anual Peninsular'!B15 -> Los indicadores de calidad del servicio de cada año son auditados en septiembre del año siguiente.
B21: (3) Datos acumulados a julio de 2013.

Sheet Indisp. mensual peninsular
O1: 15
L3: Concepto
L4: Sistema eléctrico
L5: Horizonte temporal
L6: Periodo
C8: Ene. | D8: Feb. | E8: Mar. | F8: Abr. | G8: May. | H8: Jun. | I8: Jul. | J8: Ago. | K8: Sep. | L8: Oct. | M8: Nov. | N8: Dic. | O8: =OFFSET(Año!D3,($O$1-1),0) -> 2018
B10: Mantenimiento preventivo y predictivo | C10: =OFFSET('Red de transporte'!C34,0,($O$1-1)*13) -> 0.1 | D10: =OFFSET('Red de transporte'!D34,0,($O$1-1)*13) -> 0.48 | E10: =OFFSET('Red de transporte'!E34,0,($O$1-1)*13) -> 0.32 | F10: =OFFSET('Red de transporte'!F34,0,($O$1-1)*13) -> 0.94 | G10: =OFFSET('Red de transporte'!G34,0,($O$1-1)*13) -> 1.2 | H10: =OFFSET('Red de transporte'!H34,0,($O$1-1)*13) -> 0.75 | I10: =OFFSET('Red de transporte'!I34,0,($O$1-1)*13) -> 0.53 | J10: =OFFSET('Red de transporte'!J34,0,($O$1-1)*13) -> 0.64 | K10: =OFFSET('Red de transporte'!K34,0,($O$1-1)*13) -> 1.4 | L10: =OFFSET('Red de transporte'!L34,0,($O$1-1)*13) -> 1.27 | M10: =OFFSET('Red de transporte'!M34,0,($O$1-1)*13) -> - | N10: =OFFSET('Red de transporte'!N34,0,($O$1-1)*13) -> - | O10: =OFFSET('Red de transporte'!O34,0,($O$1-1)*13) -> 0.76
B11: Causas ajenas al mantenimiento | C11: =OFFSET('Red de transporte'!C35,0,($O$1-1)*13) -> 0.08 | D11: =OFFSET('Red de transporte'!D35,0,($O$1-1)*13) -> 0.38 | E11: =OFFSET('Red de transporte'!E35,0,($O$1-1)*13) -> 0.73 | F11: =OFFSET('Red de transporte'!F35,0,($O$1-1)*13) -> 1.12 | G11: =OFFSET('Red de transporte'!G35,0,($O$1-1)*13) -> 1.25 | H11: =OFFSET('Red de transporte'!H35,0,($O$1-1)*13) -> 1.28 | I11: =OFFSET('Red de transporte'!I35,0,($O$1-1)*13) -> 0.97 | J11: =OFFSET('Red de transporte'!J35,0,($O$1-1)*13) -> 1.13 | K11: =OFFSET('Red de transporte'!K35,0,($O$1-1)*13) -> 1.38 | L11: =OFFSET('Red de transporte'!L35,0,($O$1-1)*13) -> 1.64 | M11: =OFFSET('Red de transporte'!M35,0,($O$1-1)*13) -> - | N11: =OFFSET('Red de transporte'!N35,0,($O$1-1)*13) -> - | O11: =OFFSET('Red de transporte'!O35,0,($O$1-1)*13) -> 1
B12: Mantenimiento correctivo | C12: =OFFSET('Red de transporte'!C36,0,($O$1-1)*13) -> 0.1 | D12: =OFFSET('Red de transporte'!D36,0,($O$1-1)*13) -> 0.28 | E12: =OFFSET('Red de transporte'!E36,0,($O$1-1)*13) -> 0.25 | F12: =OFFSET('Red de transporte'!F36,0,($O$1-1)*13) -> 0.1 | G12: =OFFSET('Red de transporte'!G36,0,($O$1-1)*13) -> 0.06 | H12: =OFFSET('Red de transporte'!H36,0,($O$1-1)*13) -> 0.06 | I12: =OFFSET('Red de transporte'!I36,0,($O$1-1)*13) -> 0.05 | J12: =OFFSET('Red de transporte'!J36,0,($O$1-1)*13) -> 0.08 | K12: =OFFSET('Red de transporte'!K36,0,($O$1-1)*13) -> 0.05 | L12: =OFFSET('Red de transporte'!L36,0,($O$1-1)*13) -> 0.16 | M12: =OFFSET('Red de transporte'!M36,0,($O$1-1)*13) -> - | N12: =OFFSET('Red de transporte'!N36,0,($O$1-1)*13) -> - | O12: =OFFSET('Red de transporte'!O36,0,($O$1-1)*13) -> 0.12
B13: Circunstancias fortuitas previstas en las condiciones de diseño | C13: =OFFSET('Red de transporte'!C37,0,($O$1-1)*13) -> 0 | D13: =OFFSET('Red de transporte'!D37,0,($O$1-1)*13) -> 0.03 | E13: =OFFSET('Red de transporte'!E37,0,($O$1-1)*13) -> 0.01 | F13: =OFFSET('Red de transporte'!F37,0,($O$1-1)*13) -> 0 | G13: =OFFSET('Red de transporte'!G37,0,($O$1-1)*13) -> 0 | H13: =OFFSET('Red de transporte'!H37,0,($O$1-1)*13) -> 0 | I13: =OFFSET('Red de transporte'!I37,0,($O$1-1)*13) -> 0 | J13: =OFFSET('Red de transporte'!J37,0,($O$1-1)*13) -> 0 | K13: =OFFSET('Red de transporte'!K37,0,($O$1-1)*13) -> 0.01 | L13: =OFFSET('Red de transporte'!L37,0,($O$1-1)*13) -> 0 | M13: =OFFSET('Red de transporte'!M37,0,($O$1-1)*13) -> - | N13: =OFFSET('Red de transporte'!N37,0,($O$1-1)*13) -> - | O13: =OFFSET('Red de transporte'!O37,0,($O$1-1)*13) -> 0.01
B14: Causa de fuerza mayor o acciones de terceros | C14: =OFFSET('Red de transporte'!C38,0,($O$1-1)*13) -> 0.05 | D14: =OFFSET('Red de transporte'!D38,0,($O$1-1)*13) -> 0.01 | E14: =OFFSET('Red de transporte'!E38,0,($O$1-1)*13) -> 0.59 | F14: =OFFSET('Red de transporte'!F38,0,($O$1-1)*13) -> 0.51 | G14: =OFFSET('Red de transporte'!G38,0,($O$1-1)*13) -> 0.16 | H14: =OFFSET('Red de transporte'!H38,0,($O$1-1)*13) -> 0.2 | I14: =OFFSET('Red de transporte'!I38,0,($O$1-1)*13) -> 0.3 | J14: =OFFSET('Red de transporte'!J38,0,($O$1-1)*13) -> 0.17 | K14: =OFFSET('Red de transporte'!K38,0,($O$1-1)*13) -> 0.16 | L14: =OFFSET('Red de transporte'!L38,0,($O$1-1)*13) -> 0.33 | M14: =OFFSET('Red de transporte'!M38,0,($O$1-1)*13) -> - | N14: =OFFSET('Red de transporte'!N38,0,($O$1-1)*13) -> - | O14: =OFFSET('Red de transporte'!O38,0,($O$1-1)*13) -> 0.25
B15: Sin clasificar (1) | C15: =OFFSET('Red de transporte'!C39,0,($O$1-1)*13) -> 0 | D15: =OFFSET('Red de transporte'!D39,0,($O$1-1)*13) -> 0 | E15: =OFFSET('Red de transporte'!E39,0,($O$1-1)*13) -> 0 | F15: =OFFSET('Red de transporte'!F39,0,($O$1-1)*13) -> 0 | G15: =OFFSET('Red de transporte'!G39,0,($O$1-1)*13) -> 0 | H15: =OFFSET('Red de transporte'!H39,0,($O$1-1)*13) -> 0 | I15: =OFFSET('Red de transporte'!I39,0,($O$1-1)*13) -> 0 | J15: =OFFSET('Red de transporte'!J39,0,($O$1-1)*13) -> 0 | K15: =OFFSET('Red de transporte'!K39,0,($O$1-1)*13) -> 0 | L15: =OFFSET('Red de transporte'!L39,0,($O$1-1)*13) -> 0 | M15: =OFFSET('Red de transporte'!M39,0,($O$1-1)*13) -> - | N15: =OFFSET('Red de transporte'!N39,0,($O$1-1)*13) -> - | O15: =OFFSET('Red de transporte'!O39,0,($O$1-1)*13) -> 0
B16: Total (2) | C16: =OFFSET('Red de transporte'!C40,0,($O$1-1)*13) -> 0.28 | D16: =OFFSET('Red de transporte'!D40,0,($O$1-1)*13) -> 1.17 | E16: =OFFSET('Red de transporte'!E40,0,($O$1-1)*13) -> 1.31 | F16: =OFFSET('Red de transporte'!F40,0,($O$1-1)*13) -> 2.16 | G16: =OFFSET('Red de transporte'!G40,0,($O$1-1)*13) -> 2.51 | H16: =OFFSET('Red de transporte'!H40,0,($O$1-1)*13) -> 2.09 | I16: =OFFSET('Red de transporte'!I40,0,($O$1-1)*13) -> 1.55 | J16: =OFFSET('Red de transporte'!J40,0,($O$1-1)*13) -> 1.85 | K16: =OFFSET('Red de transporte'!K40,0,($O$1-1)*13) -> 2.84 | L16: =OFFSET('Red de transporte'!L40,0,($O$1-1)*13) -> 3.07 | M16: =OFFSET('Red de transporte'!M40,0,($O$1-1)*13) -> - | N16: =OFFSET('Red de transporte'!N40,0,($O$1-1)*13) -> - | O16: =OFFSET('Red de transporte'!O40,0,($O$1-1)*13) -> 1.89
B17: (1) Datos facilitados por otros transportistas pendientes de clasificar.
B18: (2) Según lo establecido en el Real Decreto 1955/2000, para el cálculo de la indisponibilidad de la red de transporte no se incluyen las indisponibilidades por causas de fuerza mayor o acciones de terceros.
B19: ='Calidad anual Peninsular'!B15 -> Los indicadores de calidad del servicio de cada año son auditados en septiembre del año siguiente.

Sheet Indisp. anual Baleares
L1: 2
I3: Concepto
I4: Sistema eléctrico
I5: Horizonte temporal
I6: Periodo
C8: =OFFSET('Red de transporte'!C85,0,($L$1-1)*10) -> 2015 | D8: =OFFSET('Red de transporte'!D85,0,($L$1-1)*10) -> 2016 | E8: =OFFSET('Red de transporte'!E85,0,($L$1-1)*10) -> 2017 | F8: =OFFSET('Red de transporte'!F85,0,($L$1-1)*10) -> 2018 | G8: =OFFSET('Red de transporte'!G85,0,($L$1-1)*10) -> 2019 | H8: =OFFSET('Red de transporte'!H85,0,($L$1-1)*10) -> 2020 | I8: =OFFSET('Red de transporte'!I85,0,($L$1-1)*10) -> 2021 | J8: =OFFSET('Red de transporte'!J85,0,($L$1-1)*10) -> 2022 | K8: =OFFSET('Red de transporte'!K85,0,($L$1-1)*10) -> 2023 | L8: =OFFSET('Red de transporte'!L85,0,($L$1-1)*10) -> 2024
B10: Mantenimiento preventivo y predictivo | C10: =OFFSET('Red de transporte'!C86,0,($L$1-1)*10) -> 0.8 | D10: =OFFSET('Red de transporte'!D86,0,($L$1-1)*10) -> 0.67 | E10: =OFFSET('Red de transporte'!E86,0,($L$1-1)*10) -> 0.8 | F10: =OFFSET('Red de transporte'!F86,0,($L$1-1)*10) -> 1.21 | G10: =OFFSET('Red de transporte'!G86,0,($L$1-1)*10) -> - | H10: =OFFSET('Red de transporte'!H86,0,($L$1-1)*10) -> - | I10: =OFFSET('Red de transporte'!I86,0,($L$1-1)*10) -> - | J10: =OFFSET('Red de transporte'!J86,0,($L$1-1)*10) -> - | K10: =OFFSET('Red de transporte'!K86,0,($L$1-1)*10) -> - | L10: =OFFSET('Red de transporte'!L86,0,($L$1-1)*10) -> -
B11: Causas ajenas al mantenimiento | C11: =OFFSET('Red de transporte'!C87,0,($L$1-1)*10) -> 2.28 | D11: =OFFSET('Red de transporte'!D87,0,($L$1-1)*10) -> 2.27 | E11: =OFFSET('Red de transporte'!E87,0,($L$1-1)*10) -> 1.29 | F11: =OFFSET('Red de transporte'!F87,0,($L$1-1)*10) -> 1.05 | G11: =OFFSET('Red de transporte'!G87,0,($L$1-1)*10) -> - | H11: =OFFSET('Red de transporte'!H87,0,($L$1-1)*10) -> - | I11: =OFFSET('Red de transporte'!I87,0,($L$1-1)*10) -> - | J11: =OFFSET('Red de transporte'!J87,0,($L$1-1)*10) -> - | K11: =OFFSET('Red de transporte'!K87,0,($L$1-1)*10) -> - | L11: =OFFSET('Red de transporte'!L87,0,($L$1-1)*10) -> -
B12: Mantenimiento correctivo | C12: =OFFSET('Red de transporte'!C88,0,($L$1-1)*10) -> 0.04 | D12: =OFFSET('Red de transporte'!D88,0,($L$1-1)*10) -> 0.11 | E12: =OFFSET('Red de transporte'!E88,0,($L$1-1)*10) -> 0.06 | F12: =OFFSET('Red de transporte'!F88,0,($L$1-1)*10) -> 0.03 | G12: =OFFSET('Red de transporte'!G88,0,($L$1-1)*10) -> - | H12: =OFFSET('Red de transporte'!H88,0,($L$1-1)*10) -> - | I12: =OFFSET('Red de transporte'!I88,0,($L$1-1)*10) -> - | J12: =OFFSET('Red de transporte'!J88,0,($L$1-1)*10) -> - | K12: =OFFSET('Red de transporte'!K88,0,($L$1-1)*10) -> - | L12: =OFFSET('Red de transporte'!L88,0,($L$1-1)*10) -> -
B13: Circunstancias fortuitas previstas en las condiciones de diseño | C13: =OFFSET('Red de transporte'!C89,0,($L$1-1)*10) -> 0.01 | D13: =OFFSET('Red de transporte'!D89,0,($L$1-1)*10) -> 0.01 | E13: =OFFSET('Red de transporte'!E89,0,($L$1-1)*10) -> 0 | F13: =OFFSET('Red de transporte'!F89,0,($L$1-1)*10) -> 0 | G13: =OFFSET('Red de transporte'!G89,0,($L$1-1)*10) -> - | H13: =OFFSET('Red de transporte'!H89,0,($L$1-1)*10) -> - | I13: =OFFSET('Red de transporte'!I89,0,($L$1-1)*10) -> - | J13: =OFFSET('Red de transporte'!J89,0,($L$1-1)*10) -> - | K13: =OFFSET('Red de transporte'!K89,0,($L$1-1)*10) -> - | L13: =OFFSET('Red de transporte'!L89,0,($L$1-1)*10) -> -
B14: Causa de fuerza mayor o acciones de terceros | C14: =OFFSET('Red de transporte'!C90,0,($L$1-1)*10) -> 0.14 | D14: =OFFSET('Red de transporte'!D90,0,($L$1-1)*10) -> 0.04 | E14: =OFFSET('Red de transporte'!E90,0,($L$1-1)*10) -> 0 | F14: =OFFSET('Red de transporte'!F90,0,($L$1-1)*10) -> 0.01 | G14: =OFFSET('Red de transporte'!G90,0,($L$1-1)*10) -> - | H14: =OFFSET('Red de transporte'!H90,0,($L$1-1)*10) -> - | I14: =OFFSET('Red de transporte'!I90,0,($L$1-1)*10) -> - | J14: =OFFSET('Red de transporte'!J90,0,($L$1-1)*10) -> - | K14: =OFFSET('Red de transporte'!K90,0,($L$1-1)*10) -> - | L14: =OFFSET('Red de transporte'!L90,0,($L$1-1)*10) -> -
B15: Sin clasificar (1) | C15: =OFFSET('Red de transporte'!C91,0,($L$1-1)*10) -> 0 | D15: =OFFSET('Red de transporte'!D91,0,($L$1-1)*10) -> 0 | E15: =OFFSET('Red de transporte'!E91,0,($L$1-1)*10) -> 0 | F15: =OFFSET('Red de transporte'!F91,0,($L$1-1)*10) -> 0 | G15: =OFFSET('Red de transporte'!G91,0,($L$1-1)*10) -> - | H15: =OFFSET('Red de transporte'!H91,0,($L$1-1)*10) -> - | I15: =OFFSET('Red de transporte'!I91,0,($L$1-1)*10) -> - | J15: =OFFSET('Red de transporte'!J91,0,($L$1-1)*10) -> - | K15: =OFFSET('Red de transporte'!K91,0,($L$1-1)*10) -> - | L15: =OFFSET('Red de transporte'!L91,0,($L$1-1)*10) -> -
B16: Total (2) | C16: =OFFSET('Red de transporte'!C92,0,($L$1-1)*10) -> 3.12 | D16: =OFFSET('Red de transporte'!D92,0,($L$1-1)*10) -> 3.06 | E16: =OFFSET('Red de transporte'!E92,0,($L$1-1)*10) -> 2.15 | F16: =OFFSET('Red de transporte'!F92,0,($L$1-1)*10) -> 2.29 | G16: =OFFSET('Red de transporte'!G92,0,($L$1-1)*10) -> - | H16: =OFFSET('Red de transporte'!H92,0,($L$1-1)*10) -> - | I16: =OFFSET('Red de transporte'!I92,0,($L$1-1)*10) -> - | J16: =OFFSET('Red de transporte'!J92,0,($L$1-1)*10) -> - | K16: =OFFSET('Red de transporte'!K92,0,($L$1-1)*10) -> - | L16: =OFFSET('Red de transporte'!L92,0,($L$1-1)*10) -> -
B17: (1) Datos facilitados por otros transportistas pendientes de clasificar.
B18: (2) Según lo establecido en el Real Decreto 1955/2000, para el cálculo de la indisponibilidad de la red de transporte no se incluyen las indisponibilidades por causas de fuerza mayor o acciones de terceros.
B19: =IF(MONTH(FACT)=1,"Datos acumulados a 31 de diciembre.",CONCATENATE("Datos acumulados a 31 de diciembre. Para el año ",YEAR(FACT), " datos acumulados a ",TEXT(FACT-30,"mmmm")," de ",YEAR(FACT),".")) -> Datos acumulados a 31 de diciembre. Para el año 2018 datos acumulados a octubre de 2018.
B20: ='Calidad anual Peninsular'!B15 -> Los indicadores de calidad del servicio de cada año son auditados en septiembre del año siguiente.
B21: (3) Datos acumulados a julio de 2013.

Sheet Indisp. mensual Baleares
O1: 14
L3: Concepto
L4: Sistema eléctrico
L5: Horizonte temporal
L6: Periodo
C8: Ene. | D8: Feb. | E8: Mar. | F8: Abr. | G8: May. | H8: Jun. | I8: Jul. | J8: Ago. | K8: Sep. | L8: Oct. | M8: Nov. | N8: Dic. | O8: =OFFSET(Año!D4,($O$1-1),0) -> 2018
B10: Mantenimiento preventivo y predictivo | C10: =OFFSET('Red de transporte'!C43,0,($O$1-1)*13) -> 0.78 | D10: =OFFSET('Red de transporte'!D43,0,($O$1-1)*13) -> 1.13 | E10: =OFFSET('Red de transporte'!E43,0,($O$1-1)*13) -> 1.2 | F10: =OFFSET('Red de transporte'!F43,0,($O$1-1)*13) -> 2.19 | G10: =OFFSET('Red de transporte'!G43,0,($O$1-1)*13) -> 1.53 | H10: =OFFSET('Red de transporte'!H43,0,($O$1-1)*13) -> 0.88 | I10: =OFFSET('Red de transporte'!I43,0,($O$1-1)*13) -> 0.48 | J10: =OFFSET('Red de transporte'!J43,0,($O$1-1)*13) -> 1.07 | K10: =OFFSET('Red de transporte'!K43,0,($O$1-1)*13) -> 1.64 | L10: =OFFSET('Red de transporte'!L43,0,($O$1-1)*13) -> 1.72 | M10: =OFFSET('Red de transporte'!M43,0,($O$1-1)*13) -> - | N10: =OFFSET('Red de transporte'!N43,0,($O$1-1)*13) -> - | O10: =OFFSET('Red de transporte'!O43,0,($O$1-1)*13) -> 1.26
B11: Causas ajenas al mantenimiento | C11: =OFFSET('Red de transporte'!C44,0,($O$1-1)*13) -> 0.26 | D11: =OFFSET('Red de transporte'!D44,0,($O$1-1)*13) -> 0.59 | E11: =OFFSET('Red de transporte'!E44,0,($O$1-1)*13) -> 0.71 | F11: =OFFSET('Red de transporte'!F44,0,($O$1-1)*13) -> 3.49 | G11: =OFFSET('Red de transporte'!G44,0,($O$1-1)*13) -> 2.48 | H11: =OFFSET('Red de transporte'!H44,0,($O$1-1)*13) -> 1.4 | I11: =OFFSET('Red de transporte'!I44,0,($O$1-1)*13) -> 0.18 | J11: =OFFSET('Red de transporte'!J44,0,($O$1-1)*13) -> 0.31 | K11: =OFFSET('Red de transporte'!K44,0,($O$1-1)*13) -> 0.1 | L11: =OFFSET('Red de transporte'!L44,0,($O$1-1)*13) -> 2.23 | M11: =OFFSET('Red de transporte'!M44,0,($O$1-1)*13) -> - | N11: =OFFSET('Red de transporte'!N44,0,($O$1-1)*13) -> - | O11: =OFFSET('Red de transporte'!O44,0,($O$1-1)*13) -> 1.17
B12: Mantenimiento correctivo | C12: =OFFSET('Red de transporte'!C45,0,($O$1-1)*13) -> 0.03 | D12: =OFFSET('Red de transporte'!D45,0,($O$1-1)*13) -> 0.01 | E12: =OFFSET('Red de transporte'!E45,0,($O$1-1)*13) -> 0.01 | F12: =OFFSET('Red de transporte'!F45,0,($O$1-1)*13) -> 0.02 | G12: =OFFSET('Red de transporte'!G45,0,($O$1-1)*13) -> 0.02 | H12: =OFFSET('Red de transporte'!H45,0,($O$1-1)*13) -> 0.04 | I12: =OFFSET('Red de transporte'!I45,0,($O$1-1)*13) -> 0 | J12: =OFFSET('Red de transporte'!J45,0,($O$1-1)*13) -> 0.01 | K12: =OFFSET('Red de transporte'!K45,0,($O$1-1)*13) -> 0.09 | L12: =OFFSET('Red de transporte'!L45,0,($O$1-1)*13) -> 0.24 | M12: =OFFSET('Red de transporte'!M45,0,($O$1-1)*13) -> - | N12: =OFFSET('Red de transporte'!N45,0,($O$1-1)*13) -> - | O12: =OFFSET('Red de transporte'!O45,0,($O$1-1)*13) -> 0.05
B13: Circunstancias fortuitas previstas en las condiciones de diseño | C13: =OFFSET('Red de transporte'!C46,0,($O$1-1)*13) -> 0 | D13: =OFFSET('Red de transporte'!D46,0,($O$1-1)*13) -> 0 | E13: =OFFSET('Red de transporte'!E46,0,($O$1-1)*13) -> 0 | F13: =OFFSET('Red de transporte'!F46,0,($O$1-1)*13) -> 0 | G13: =OFFSET('Red de transporte'!G46,0,($O$1-1)*13) -> 0 | H13: =OFFSET('Red de transporte'!H46,0,($O$1-1)*13) -> 0 | I13: =OFFSET('Red de transporte'!I46,0,($O$1-1)*13) -> 0 | J13: =OFFSET('Red de transporte'!J46,0,($O$1-1)*13) -> 0 | K13: =OFFSET('Red de transporte'!K46,0,($O$1-1)*13) -> 0 | L13: =OFFSET('Red de transporte'!L46,0,($O$1-1)*13) -> 0 | M13: =OFFSET('Red de transporte'!M46,0,($O$1-1)*13) -> - | N13: =OFFSET('Red de transporte'!N46,0,($O$1-1)*13) -> - | O13: =OFFSET('Red de transporte'!O46,0,($O$1-1)*13) -> 0
B14: Causa de fuerza mayor o acciones de terceros | C14: =OFFSET('Red de transporte'!C47,0,($O$1-1)*13) -> 0.01 | D14: =OFFSET('Red de transporte'!D47,0,($O$1-1)*13) -> 0 | E14: =OFFSET('Red de transporte'!E47,0,($O$1-1)*13) -> 0 | F14: =OFFSET('Red de transporte'!F47,0,($O$1-1)*13) -> 0.03 | G14: =OFFSET('Red de transporte'!G47,0,($O$1-1)*13) -> 0 | H14: =OFFSET('Red de transporte'!H47,0,($O$1-1)*13) -> 0 | I14: =OFFSET('Red de transporte'!I47,0,($O$1-1)*13) -> 0.01 | J14: =OFFSET('Red de transporte'!J47,0,($O$1-1)*13) -> 0.02 | K14: =OFFSET('Red de transporte'!K47,0,($O$1-1)*13) -> 0 | L14: =OFFSET('Red de transporte'!L47,0,($O$1-1)*13) -> 0.16 | M14: =OFFSET('Red de transporte'!M47,0,($O$1-1)*13) -> - | N14: =OFFSET('Red de transporte'!N47,0,($O$1-1)*13) -> - | O14: =OFFSET('Red de transporte'!O47,0,($O$1-1)*13) -> 0.02
B15: Sin clasificar (1) | C15: =OFFSET('Red de transporte'!C48,0,($O$1-1)*13) -> 0 | D15: =OFFSET('Red de transporte'!D48,0,($O$1-1)*13) -> 0 | E15: =OFFSET('Red de transporte'!E48,0,($O$1-1)*13) -> 0 | F15: =OFFSET('Red de transporte'!F48,0,($O$1-1)*13) -> 0 | G15: =OFFSET('Red de transporte'!G48,0,($O$1-1)*13) -> 0 | H15: =OFFSET('Red de transporte'!H48,0,($O$1-1)*13) -> 0 | I15: =OFFSET('Red de transporte'!I48,0,($O$1-1)*13) -> 0 | J15: =OFFSET('Red de transporte'!J48,0,($O$1-1)*13) -> 0 | K15: =OFFSET('Red de transporte'!K48,0,($O$1-1)*13) -> 0 | L15: =OFFSET('Red de transporte'!L48,0,($O$1-1)*13) -> 0 | M15: =OFFSET('Red de transporte'!M48,0,($O$1-1)*13) -> - | N15: =OFFSET('Red de transporte'!N48,0,($O$1-1)*13) -> - | O15: =OFFSET('Red de transporte'!O48,0,($O$1-1)*13) -> 0
B16: Total (2) | C16: =OFFSET('Red de transporte'!C49,0,($O$1-1)*13) -> 1.07 | D16: =OFFSET('Red de transporte'!D49,0,($O$1-1)*13) -> 1.73 | E16: =OFFSET('Red de transporte'!E49,0,($O$1-1)*13) -> 1.92 | F16: =OFFSET('Red de transporte'!F49,0,($O$1-1)*13) -> 5.7 | G16: =OFFSET('Red de transporte'!G49,0,($O$1-1)*13) -> 4.03 | H16: =OFFSET('Red de transporte'!H49,0,($O$1-1)*13) -> 2.32 | I16: =OFFSET('Red de transporte'!I49,0,($O$1-1)*13) -> 0.66 | J16: =OFFSET('Red de transporte'!J49,0,($O$1-1)*13) -> 1.39 | K16: =OFFSET('Red de transporte'!K49,0,($O$1-1)*13) -> 1.83 | L16: =OFFSET('Red de transporte'!L49,0,($O$1-1)*13) -> 4.19 | M16: =OFFSET('Red de transporte'!M49,0,($O$1-1)*13) -> - | N16: =OFFSET('Red de transporte'!N49,0,($O$1-1)*13) -> - | O16: =OFFSET('Red de transporte'!O49,0,($O$1-1)*13) -> 2.48
B17: (1) Datos facilitados por otros transportistas pendientes de clasificar.
B18: (2) Según lo establecido en el Real Decreto 1955/2000, para el cálculo de la indisponibilidad de la red de transporte no se incluyen las indisponibilidades por causas de fuerza mayor o acciones de terceros.
B19: ='Calidad anual Peninsular'!B15 -> Los indicadores de calidad del servicio de cada año son auditados en septiembre del año siguiente.

Sheet Indisp. anual Canarias
L1: 2
I3: Concepto
I4: Sistema eléctrico
I5: Horizonte temporal
I6: Periodo
C8: =OFFSET('Red de transporte'!C94,0,($L$1-1)*10) -> 2015 | D8: =OFFSET('Red de transporte'!D94,0,($L$1-1)*10) -> 2016 | E8: =OFFSET('Red de transporte'!E94,0,($L$1-1)*10) -> 2017 | F8: =OFFSET('Red de transporte'!F94,0,($L$1-1)*10) -> 2018 | G8: =OFFSET('Red de transporte'!G94,0,($L$1-1)*10) -> 2019 | H8: =OFFSET('Red de transporte'!H94,0,($L$1-1)*10) -> 2020 | I8: =OFFSET('Red de transporte'!I94,0,($L$1-1)*10) -> 2021 | J8: =OFFSET('Red de transporte'!J94,0,($L$1-1)*10) -> 2022 | K8: =OFFSET('Red de transporte'!K94,0,($L$1-1)*10) -> 2023 | L8: =OFFSET('Red de transporte'!L94,0,($L$1-1)*10) -> 2024
B10: Mantenimiento preventivo y predictivo | C10: =OFFSET('Red de transporte'!C95,0,($L$1-1)*10) -> 0.65 | D10: =OFFSET('Red de transporte'!D95,0,($L$1-1)*10) -> 0.68 | E10: =OFFSET('Red de transporte'!E95,0,($L$1-1)*10) -> 0.78 | F10: =OFFSET('Red de transporte'!F95,0,($L$1-1)*10) -> 1.01 | G10: =OFFSET('Red de transporte'!G95,0,($L$1-1)*10) -> - | H10: =OFFSET('Red de transporte'!H95,0,($L$1-1)*10) -> - | I10: =OFFSET('Red de transporte'!I95,0,($L$1-1)*10) -> - | J10: =OFFSET('Red de transporte'!J95,0,($L$1-1)*10) -> - | K10: =OFFSET('Red de transporte'!K95,0,($L$1-1)*10) -> - | L10: =OFFSET('Red de transporte'!L95,0,($L$1-1)*10) -> -
B11: Causas ajenas al mantenimiento | C11: =OFFSET('Red de transporte'!C96,0,($L$1-1)*10) -> 1.2 | D11: =OFFSET('Red de transporte'!D96,0,($L$1-1)*10) -> 0.81 | E11: =OFFSET('Red de transporte'!E96,0,($L$1-1)*10) -> 1.03 | F11: =OFFSET('Red de transporte'!F96,0,($L$1-1)*10) -> 0.67 | G11: =OFFSET('Red de transporte'!G96,0,($L$1-1)*10) -> - | H11: =OFFSET('Red de transporte'!H96,0,($L$1-1)*10) -> - | I11: =OFFSET('Red de transporte'!I96,0,($L$1-1)*10) -> - | J11: =OFFSET('Red de transporte'!J96,0,($L$1-1)*10) -> - | K11: =OFFSET('Red de transporte'!K96,0,($L$1-1)*10) -> - | L11: =OFFSET('Red de transporte'!L96,0,($L$1-1)*10) -> -
B12: Mantenimiento correctivo | C12: =OFFSET('Red de transporte'!C97,0,($L$1-1)*10) -> 1.41 | D12: =OFFSET('Red de transporte'!D97,0,($L$1-1)*10) -> 0.45 | E12: =OFFSET('Red de transporte'!E97,0,($L$1-1)*10) -> 0.07 | F12: =OFFSET('Red de transporte'!F97,0,($L$1-1)*10) -> 0.03 | G12: =OFFSET('Red de transporte'!G97,0,($L$1-1)*10) -> - | H12: =OFFSET('Red de transporte'!H97,0,($L$1-1)*10) -> - | I12: =OFFSET('Red de transporte'!I97,0,($L$1-1)*10) -> - | J12: =OFFSET('Red de transporte'!J97,0,($L$1-1)*10) -> - | K12: =OFFSET('Red de transporte'!K97,0,($L$1-1)*10) -> - | L12: =OFFSET('Red de transporte'!L97,0,($L$1-1)*10) -> -
B13: Circunstancias fortuitas previstas en las condiciones de diseño | C13: =OFFSET('Red de transporte'!C98,0,($L$1-1)*10) -> 0 | D13: =OFFSET('Red de transporte'!D98,0,($L$1-1)*10) -> 0 | E13: =OFFSET('Red de transporte'!E98,0,($L$1-1)*10) -> 0 | F13: =OFFSET('Red de transporte'!F98,0,($L$1-1)*10) -> 0 | G13: =OFFSET('Red de transporte'!G98,0,($L$1-1)*10) -> - | H13: =OFFSET('Red de transporte'!H98,0,($L$1-1)*10) -> - | I13: =OFFSET('Red de transporte'!I98,0,($L$1-1)*10) -> - | J13: =OFFSET('Red de transporte'!J98,0,($L$1-1)*10) -> - | K13: =OFFSET('Red de transporte'!K98,0,($L$1-1)*10) -> - | L13: =OFFSET('Red de transporte'!L98,0,($L$1-1)*10) -> -
B14: Causa de fuerza mayor o acciones de terceros | C14: =OFFSET('Red de transporte'!C99,0,($L$1-1)*10) -> 0.08 | D14: =OFFSET('Red de transporte'!D99,0,($L$1-1)*10) -> 0.01 | E14: =OFFSET('Red de transporte'!E99,0,($L$1-1)*10) -> 0.01 | F14: =OFFSET('Red de transporte'!F99,0,($L$1-1)*10) -> 0.05 | G14: =OFFSET('Red de transporte'!G99,0,($L$1-1)*10) -> - | H14: =OFFSET('Red de transporte'!H99,0,($L$1-1)*10) -> - | I14: =OFFSET('Red de transporte'!I99,0,($L$1-1)*10) -> - | J14: =OFFSET('Red de transporte'!J99,0,($L$1-1)*10) -> - | K14: =OFFSET('Red de transporte'!K99,0,($L$1-1)*10) -> - | L14: =OFFSET('Red de transporte'!L99,0,($L$1-1)*10) -> -
B15: Sin clasificar | C15: =OFFSET('Red de transporte'!C100,0,($L$1-1)*10) -> 0 | D15: =OFFSET('Red de transporte'!D100,0,($L$1-1)*10) -> 0 | E15: =OFFSET('Red de transporte'!E100,0,($L$1-1)*10) -> 0 | F15: =OFFSET('Red de transporte'!F100,0,($L$1-1)*10) -> 0 | G15: =OFFSET('Red de transporte'!G100,0,($L$1-1)*10) -> - | H15: =OFFSET('Red de transporte'!H100,0,($L$1-1)*10) -> - | I15: =OFFSET('Red de transporte'!I100,0,($L$1-1)*10) -> - | J15: =OFFSET('Red de transporte'!J100,0,($L$1-1)*10) -> - | K15: =OFFSET('Red de transporte'!K100,0,($L$1-1)*10) -> - | L15: =OFFSET('Red de transporte'!L100,0,($L$1-1)*10) -> -
B16: Total (1) | C16: =OFFSET('Red de transporte'!C101,0,($L$1-1)*10) -> 3.26 | D16: =OFFSET('Red de transporte'!D101,0,($L$1-1)*10) -> 1.94 | E16: =OFFSET('Red de transporte'!E101,0,($L$1-1)*10) -> 1.88 | F16: =OFFSET('Red de transporte'!F101,0,($L$1-1)*10) -> 1.71 | G16: =OFFSET('Red de transporte'!G101,0,($L$1-1)*10) -> - | H16: =OFFSET('Red de transporte'!H101,0,($L$1-1)*10) -> - | I16: =OFFSET('Red de transporte'!I101,0,($L$1-1)*10) -> - | J16: =OFFSET('Red de transporte'!J101,0,($L$1-1)*10) -> - | K16: =OFFSET('Red de transporte'!K101,0,($L$1-1)*10) -> - | L16: =OFFSET('Red de transporte'!L101,0,($L$1-1)*10) -> -
B17: (1) Según lo establecido en el Real Decreto 1955/2000, para el cálculo de la indisponibilidad de la red de transporte no se incluyen las indisponibilidades por causas de fuerza mayor o acciones de terceros.
B18: =IF(MONTH(FACT)=1,"Datos acumulados a 31 de diciembre.",CONCATENATE("Datos acumulados a 31 de diciembre. Para el año ",YEAR(FACT), " datos acumulados a ",TEXT(FACT-30,"mmmm")," de ",YEAR(FACT),".")) -> Datos acumulados a 31 de diciembre. Para el año 2018 datos acumulados a octubre de 2018.
B19: ='Calidad anual Peninsular'!B15 -> Los indicadores de calidad del servicio de cada año son auditados en septiembre del año siguiente.
B20: (3) Datos acumulados a julio de 2013.

Sheet Indisp. mensual Canarias
O1: 14
L3: Concepto
L4: Sistema eléctrico
L5: Horizonte temporal
L6: Periodo
C8: Ene. | D8: Feb. | E8: Mar. | F8: Abr. | G8: May. | H8: Jun. | I8: Jul. | J8: Ago. | K8: Sep. | L8: Oct. | M8: Nov. | N8: Dic. | O8: =OFFSET(Año!D4,($O$1-1),0) -> 2018
B10: Mantenimiento preventivo y predictivo | C10: =OFFSET('Red de transporte'!C52,0,($O$1-1)*13) -> 0.13 | D10: =OFFSET('Red de transporte'!D52,0,($O$1-1)*13) -> 0.34 | E10: =OFFSET('Red de transporte'!E52,0,($O$1-1)*13) -> 0.64 | F10: =OFFSET('Red de transporte'!F52,0,($O$1-1)*13) -> 0.7 | G10: =OFFSET('Red de transporte'!G52,0,($O$1-1)*13) -> 0.35 | H10: =OFFSET('Red de transporte'!H52,0,($O$1-1)*13) -> 0.33 | I10: =OFFSET('Red de transporte'!I52,0,($O$1-1)*13) -> 0.17 | J10: =OFFSET('Red de transporte'!J52,0,($O$1-1)*13) -> 0.19 | K10: =OFFSET('Red de transporte'!K52,0,($O$1-1)*13) -> 0.34 | L10: =OFFSET('Red de transporte'!L52,0,($O$1-1)*13) -> 0.56 | M10: =OFFSET('Red de transporte'!M52,0,($O$1-1)*13) -> - | N10: =OFFSET('Red de transporte'!N52,0,($O$1-1)*13) -> - | O10: =OFFSET('Red de transporte'!O52,0,($O$1-1)*13) -> 0.37
B11: Causas ajenas al mantenimiento | C11: =OFFSET('Red de transporte'!C53,0,($O$1-1)*13) -> 0.23 | D11: =OFFSET('Red de transporte'!D53,0,($O$1-1)*13) -> 0.46 | E11: =OFFSET('Red de transporte'!E53,0,($O$1-1)*13) -> 0.04 | F11: =OFFSET('Red de transporte'!F53,0,($O$1-1)*13) -> 0.07 | G11: =OFFSET('Red de transporte'!G53,0,($O$1-1)*13) -> 0.26 | H11: =OFFSET('Red de transporte'!H53,0,($O$1-1)*13) -> 0.9 | I11: =OFFSET('Red de transporte'!I53,0,($O$1-1)*13) -> 1.36 | J11: =OFFSET('Red de transporte'!J53,0,($O$1-1)*13) -> 1.52 | K11: =OFFSET('Red de transporte'!K53,0,($O$1-1)*13) -> 1.55 | L11: =OFFSET('Red de transporte'!L53,0,($O$1-1)*13) -> 1.31 | M11: =OFFSET('Red de transporte'!M53,0,($O$1-1)*13) -> - | N11: =OFFSET('Red de transporte'!N53,0,($O$1-1)*13) -> - | O11: =OFFSET('Red de transporte'!O53,0,($O$1-1)*13) -> 0.78
B12: Mantenimiento correctivo | C12: =OFFSET('Red de transporte'!C54,0,($O$1-1)*13) -> 0.04 | D12: =OFFSET('Red de transporte'!D54,0,($O$1-1)*13) -> 0.01 | E12: =OFFSET('Red de transporte'!E54,0,($O$1-1)*13) -> 0.01 | F12: =OFFSET('Red de transporte'!F54,0,($O$1-1)*13) -> 0.06 | G12: =OFFSET('Red de transporte'!G54,0,($O$1-1)*13) -> 0.04 | H12: =OFFSET('Red de transporte'!H54,0,($O$1-1)*13) -> 0.04 | I12: =OFFSET('Red de transporte'!I54,0,($O$1-1)*13) -> 0.03 | J12: =OFFSET('Red de transporte'!J54,0,($O$1-1)*13) -> 0.02 | K12: =OFFSET('Red de transporte'!K54,0,($O$1-1)*13) -> 0.01 | L12: =OFFSET('Red de transporte'!L54,0,($O$1-1)*13) -> 0.11 | M12: =OFFSET('Red de transporte'!M54,0,($O$1-1)*13) -> - | N12: =OFFSET('Red de transporte'!N54,0,($O$1-1)*13) -> - | O12: =OFFSET('Red de transporte'!O54,0,($O$1-1)*13) -> 0.04
B13: Circunstancias fortuitas previstas en las condiciones de diseño | C13: =OFFSET('Red de transporte'!C55,0,($O$1-1)*13) -> 0 | D13: =OFFSET('Red de transporte'!D55,0,($O$1-1)*13) -> 0 | E13: =OFFSET('Red de transporte'!E55,0,($O$1-1)*13) -> 0.01 | F13: =OFFSET('Red de transporte'!F55,0,($O$1-1)*13) -> 0.01 | G13: =OFFSET('Red de transporte'!G55,0,($O$1-1)*13) -> 0 | H13: =OFFSET('Red de transporte'!H55,0,($O$1-1)*13) -> 0 | I13: =OFFSET('Red de transporte'!I55,0,($O$1-1)*13) -> 0 | J13: =OFFSET('Red de transporte'!J55,0,($O$1-1)*13) -> 0 | K13: =OFFSET('Red de transporte'!K55,0,($O$1-1)*13) -> 0 | L13: =OFFSET('Red de transporte'!L55,0,($O$1-1)*13) -> 0 | M13: =OFFSET('Red de transporte'!M55,0,($O$1-1)*13) -> - | N13: =OFFSET('Red de transporte'!N55,0,($O$1-1)*13) -> - | O13: =OFFSET('Red de transporte'!O55,0,($O$1-1)*13) -> 0
B14: Causa de fuerza mayor o acciones de terceros | C14: =OFFSET('Red de transporte'!C56,0,($O$1-1)*13) -> 0.05 | D14: =OFFSET('Red de transporte'!D56,0,($O$1-1)*13) -> 0.03 | E14: =OFFSET('Red de transporte'!E56,0,($O$1-1)*13) -> 0.07 | F14: =OFFSET('Red de transporte'!F56,0,($O$1-1)*13) -> 0.14 | G14: =OFFSET('Red de transporte'!G56,0,($O$1-1)*13) -> 0 | H14: =OFFSET('Red de transporte'!H56,0,($O$1-1)*13) -> 0.16 | I14: =OFFSET('Red de transporte'!I56,0,($O$1-1)*13) -> 0 | J14: =OFFSET('Red de transporte'!J56,0,($O$1-1)*13) -> 0.01 | K14: =OFFSET('Red de transporte'!K56,0,($O$1-1)*13) -> 0 | L14: =OFFSET('Red de transporte'!L56,0,($O$1-1)*13) -> 0.05 | M14: =OFFSET('Red de transporte'!M56,0,($O$1-1)*13) -> - | N14: =OFFSET('Red de transporte'!N56,0,($O$1-1)*13) -> - | O14: =OFFSET('Red de transporte'!O56,0,($O$1-1)*13) -> 0.05
B15: Sin clasificar | C15: =OFFSET('Red de transporte'!C57,0,($O$1-1)*13) -> 0 | D15: =OFFSET('Red de transporte'!D57,0,($O$1-1)*13) -> 0 | E15: =OFFSET('Red de transporte'!E57,0,($O$1-1)*13) -> 0 | F15: =OFFSET('Red de transporte'!F57,0,($O$1-1)*13) -> 0 | G15: =OFFSET('Red de transporte'!G57,0,($O$1-1)*13) -> 0 | H15: =OFFSET('Red de transporte'!H57,0,($O$1-1)*13) -> 0 | I15: =OFFSET('Red de transporte'!I57,0,($O$1-1)*13) -> 0 | J15: =OFFSET('Red de transporte'!J57,0,($O$1-1)*13) -> 0 | K15: =OFFSET('Red de transporte'!K57,0,($O$1-1)*13) -> 0 | L15: =OFFSET('Red de transporte'!L57,0,($O$1-1)*13) -> 0.04 | M15: =OFFSET('Red de transporte'!M57,0,($O$1-1)*13) -> - | N15: =OFFSET('Red de transporte'!N57,0,($O$1-1)*13) -> - | O15: =OFFSET('Red de transporte'!O57,0,($O$1-1)*13) -> 0
B16: Total (1) | C16: =OFFSET('Red de transporte'!C58,0,($O$1-1)*13) -> 0.4 | D16: =OFFSET('Red de transporte'!D58,0,($O$1-1)*13) -> 0.81 | E16: =OFFSET('Red de transporte'!E58,0,($O$1-1)*13) -> 0.7 | F16: =OFFSET('Red de transporte'!F58,0,($O$1-1)*13) -> 0.84 | G16: =OFFSET('Red de transporte'!G58,0,($O$1-1)*13) -> 0.65 | H16: =OFFSET('Red de transporte'!H58,0,($O$1-1)*13) -> 1.27 | I16: =OFFSET('Red de transporte'!I58,0,($O$1-1)*13) -> 1.56 | J16: =OFFSET('Red de transporte'!J58,0,($O$1-1)*13) -> 1.73 | K16: =OFFSET('Red de transporte'!K58,0,($O$1-1)*13) -> 1.9 | L16: =OFFSET('Red de transporte'!L58,0,($O$1-1)*13) -> 2.02 | M16: =OFFSET('Red de transporte'!M58,0,($O$1-1)*13) -> - | N16: =OFFSET('Red de transporte'!N58,0,($O$1-1)*13) -> - | O16: =OFFSET('Red de transporte'!O58,0,($O$1-1)*13) -> 1.19
B17: (1) Según lo establecido en el Real Decreto 1955/2000, para el cálculo de la indisponibilidad de la red de transporte no se incluyen las indisponibilidades por causas de fuerza mayor o acciones de terceros.
B18: ='Calidad anual Peninsular'!B15 -> Los indicadores de calidad del servicio de cada año son auditados en septiembre del año siguiente.

Sheet Red de transporte (hidden)
B2: Datos RdT peninsular | C2: 1990 | D2: 1991 | E2: 1992 | F2: 1993 | G2: 1994 | H2: 1995 | I2: 1996 | J2: 1997 | K2: 1998 | L2: 1999 | M2: 2000 | N2: 2001 | O2: 2002 | P2: 2003 | Q2: 2004 | R2: 2005 | S2: 2006 | T2: 2007 | U2: 2008 | V2: 2009 | W2: 2010 | X2: 2011 | Y2: 2012 | Z2: 2013 | AA2: 2014 | AB2: 2015 | AC2: 2016 | AD2: 2017 | AE2: 2018 | AF2: 2019 | AG2: 2020
B3: km de circuito a 400 kV | C3: 12686 | D3: 12883 | E3: 13222 | F3: 13611.17 | G3: 13737.17 | H3: 13969.73 | I3: 14083.63 | J3: 14243.65 | K3: 14538.47 | L3: 14538.47 | M3: 14918 | N3: 15364.269 | O3: 16066.739 | P3: 16592.459 | Q3: 16840.612 | R3: 16845.694 | S3: 17051.9434 | T3: 17190.6064 | U3: 17764.621 | V3: 18056.47 | W3: 18792.419 | X3: 19671.35 | Y3: 20108.846 | Z3: 20639.478 | AA3: 21093.728 | AB3: 21183.826 | AC3: 21619.966 | AD3: 21728.155 | AE3: 21732.689 | AF3: - | AG3: -
B4: km de circuito ≤ 220 kV | C4: 15034.5 | D4: 15108.94 | E4: 15356.14 | F4: 15441.94 | G4: 15585.94 | H4: 15628.94 | I4: 15733.54 | J4: 15776.14 | K4: 15875.92 | L4: 15974.92 | M4: 16077.74 | N4: 16121.467 | O4: 16296.158 | P4: 16347.168 | Q4: 16467.0718 | R4: 16532.7999 | S4: 16755.72906 | T4: 16819.93306 | U4: 17177.70406 | V4: 17310.09206 | W4: 17403.404 | X4: 18003.668 | Y4: 18372.54106 | Z4: 18645.84106 | AA4: 18784.95856 | AB4: 18925.26156 | AC4: 19013.23856 | AD4: 19038.60127 | AE4: 19069.70127 | AF4: - | AG4: -
B5: Total km | C5: 27720.5 | D5: 27991.94 | E5: 28578.14 | F5: 29053.11 | G5: 29323.11 | H5: 29598.67 | I5: 29817.17 | J5: 30019.79 | K5: 30414.39 | L5: 30513.39 | M5: 30995.74 | N5: 31485.736 | O5: 32362.897 | P5: 32939.627 | Q5: 33307.6838 | R5: 33378.4939 | S5: 33807.67246 | T5: 34010.53946 | U5: 34942.32506 | V5: 35366.56206 | W5: 36195.823 | X5: 37675.018 | Y5: 38481.38706 | Z5: 39285.31906 | AA5: 39878.68656 | AB5: 40109.08756 | AC5: 40633.20456 | AD5: 40766.75627 | AE5: 40802.39027 | AF5: - | AG5: -
B7: Datos RdT Islas Baleares | C7: 1998 | D7: 1999 | E7: 2000 | F7: 2001 | G7: 2002 | H7: 2003 | I7: 2004 | J7: 2005 | K7: 2006 | L7: 2007 | M7: 2008 | N7: 2009 | O7: 2010 | P7: 2011 | Q7: 2012 | R7: 2013 | S7: 2014 | T7: 2015 | U7: 2016 | V7: 2017 | W7: 2018 | X7: 2019 | Y7: 2020 | Z7: 2021 | AA7: 2022 | AB7: 2023 | AC7: 2024 | AD7: 2025 | AE7: 2026 | AF7: 2027
B8: km de circuito a 220 kV | C8: 163 | D8: 163 | E8: 163 | F8: 163 | G8: 165 | H8: 165 | I8: 165 | J8: 165 | K8: 177 | L8: 176.9 | M8: 176.9 | N8: 184.904 | O8: 184.904 | P8: 430.372 | Q8: 430.372 | R8: 430.372 | S8: 431.088 | T8: 431.36 | U8: 432.214 | V8: 432.214 | W8: 432.214 | X8: - | Y8: - | Z8: - | AA8: - | AB8: - | AC8: - | AD8: - | AE8: - | AF8: -
B9: km de circuito ≤ 132 kV | C9: 945 | D9: 958 | E9: 973 | F9: 974 | G9: 990 | H9: 997 | I9: 1002 | J9: 971 | K9: 1003 | L9: 1053.72 | M9: 1074.72 | N9: 1083.967 | O9: 1095.278 | P9: 1110.144 | Q9: 1113.149 | R9: 1113.149 | S9: 1113.884 | T9: 1242.322 | U9: 1367.822 | V9: 1376.105 | W9: 1376.19 | X9: - | Y9: - | Z9: - | AA9: - | AB9: - | AC9: - | AD9: - | AE9: - | AF9: -
B10: Total km | C10: 1108 | D10: 1121 | E10: 1136 | F10: 1137 | G10: 1155 | H10: 1162 | I10: 1167 | J10: 1136 | K10: 1180 | L10: 1230.62 | M10: 1251.62 | N10: 1268.871 | O10: 1280.182 | P10: 1540.516 | Q10: 1543.521 | R10: 1543.521 | S10: 1544.972 | T10: 1673.682 | U10: 1800.036 | V10: 1808.319 | W10: 1808.404 | X10: - | Y10: - | Z10: - | AA10: - | AB10: - | AC10: - | AD10: - | AE10: - | AF10: -
B12: Datos RdT Islas Canarias | C12: 1998 | D12: 1999 | E12: 2000 | F12: 2001 | G12: 2002 | H12: 2003 | I12: 2004 | J12: 2005 | K12: 2006 | L12: 2007 | M12: 2008 | N12: 2009 | O12: 2010 | P12: 2011 | Q12: 2012 | R12: 2013 | S12: 2014 | T12: 2015 | U12: 2016 | V12: 2017 | W12: 2018 | X12: 2019 | Y12: 2020 | Z12: 2021 | AA12: 2022 | AB12: 2023 | AC12: 2024 | AD12: 2025 | AE12: 2026 | AF12: 2027
B13: km de circuito a 220 kV | C13: 160 | D13: 160 | E13: 160 | F13: 160 | G13: 160 | H13: 164 | I13: 164 | J13: 164 | K13: 163 | L13: 163.35 | M13: 163.35 | N13: 163.153 | O13: 163.353 | P13: 163.353 | Q13: 163.353 | R13: 163.353 | S13: 163.353 | T13: 215.867 | U13: 220.437 | V13: 220.243 | W13: 220.243 | X13: - | Y13: - | Z13: - | AA13: - | AB13: - | AC13: - | AD13: - | AE13: - | AF13: -
B14: km de circuito ≤ 132 kV | C14: 831 | D14: 868 | E14: 882 | F14: 885 | G14: 890 | H14: 893 | I14: 893 | J14: 892 | K14: 990 | L14: 993 | M14: 1014.952 | N14: 1071.957 | O14: 1125.697 | P14: 1125.697 | Q14: 1125.697 | R14: 1125.697 | S14: 1125.697 | T14: 1131.092 | U14: 1133.912 | V14: 1134.854 | W14: 1232.9 | X14: - | Y14: - | Z14: - | AA14: - | AB14: - | AC14: - | AD14: - | AE14: - | AF14: -
B15: Total km | C15: 991 | D15: 1028 | E15: 1042 | F15: 1045 | G15: 1050 | H15: 1057 | I15: 1057 | J15: 1056 | K15: 1153 | L15: 1156.35 | M15: 1178.302 | N15: 1235.11 | O15: 1289.05 | P15: 1289.05 | Q15: 1289.05 | R15: 1289.05 | S15: 1289.05 | T15: 1346.959 | U15: 1354.349 | V15: 1355.097 | W15: 1453.143 | X15: - | Y15: - | Z15: - | AA15: - | AB15: - | AC15: - | AD15: - | AE15: - | AF15: -
B17: Continuidad del suministro mensual peninsular | C17: 2003-01-01 | D17: 2003-02-01 | E17: 2003-03-01 | F17: 2003-04-01 | G17: 2003-05-01 | H17: 2003-06-01 | I17: 2003-07-01 | J17: 2003-08-01 | K17: 2003-09-01 | L17: 2003-10-01 | M17: 2003-11-01 | N17: 2003-12-01 | O17: 2003 | P17: 2004-01-01 | Q17: 2004-02-01 | R17: 2004-03-01 | S17: 2004-04-01 | T17: 2004-05-01 | U17: 2004-06-01 | V17: 2004-07-01 | W17: 2004-08-01 | X17: 2004-09-01 | Y17: 2004-10-01 | Z17: 2004-11-01 | AA17: 2004-12-01 | AB17: 2004 | AC17: 2005-01-01 | AD17: 2005-02-01 | AE17: 2005-03-01 | AF17: 2005-04-01 | AG17: 2005-05-01 | AH17: 2005-06-01 | AI17: 2005-07-01 | AJ17: 2005-08-01 | AK17: 2005-09-01 | AL17: 2005-10-01 | AM17: 2005-11-01 | AN17: 2005-12-01 | AO17: 2005 | AP17: 2006-01-01 | AQ17: 2006-02-01 | AR17: 2006-03-01 | AS17: 2006-04-01 | AT17: 2006-05-01 | AU17: 2006-06-01 | AV17: 2006-07-01 | AW17: 2006-08-01 | AX17: 2006-09-01 | AY17: 2006-10-01 | AZ17: 2006-11-01 | BA17: 2006-12-01 | BB17: 2006 | BC17: 2007-01-01 | BD17: 2007-02-01 | BE17: 2007-03-01 | BF17: 2007-04-01 | BG17: 2007-05-01 | BH17: 2007-06-01 | BI17: 2007-07-01 | BJ17: 2007-08-01 | BK17: 2007-09-01 | BL17: 2007-10-01 | BM17: 2007-11-01 | BN17: 2007-12-01 | BO17: 2007 | BP17: 2008-01-01 | BQ17: 2008-02-01 | BR17: 2008-03-01 | BS17: 2008-04-01 | BT17: 2008-05-01 | BU17: 2008-06-01 | BV17: 2008-07-01 | BW17: 2008-08-01 | BX17: 2008-09-01 | BY17: 2008-10-01 | BZ17: 2008-11-01 | CA17: 2008-12-01 | CB17: 2008 | CC17: 2009-01-01 | CD17: 2009-02-01 | CE17: 2009-03-01 | CF17: 2009-04-01 | CG17: 2009-05-01 | CH17: 2009-06-01 | CI17: 2009-07-01 | CJ17: 2009-08-01 | CK17: 2009-09-01 | CL17: 2009-10-01 | CM17: 2009-11-01 | CN17: 2009-12-01 | CO17: 2009 | CP17: 2010-01-01 | CQ17: 2010-02-01 | CR17: 2010-03-01 | CS17: 2010-04-01 | CT17: 2010-05-01 | CU17: 2010-06-01 | CV17: 2010-07-01 | CW17: 2010-08-01 | CX17: 2010-09-01 | CY17: 2010-10-01 | CZ17: 2010-11-01 | DA17: 2010-12-01 | DB17: 2010 | DC17: 2011-01-01 | DD17: 2011-02-01 | DE17: 2011-03-01 | DF17: 2011-04-01 | DG17: 2011-05-01 | DH17: 2011-06-01 | DI17: 2011-07-01 | DJ17: 2011-08-01 | DK17: 2011-09-01 | DL17: 2011-10-01 | DM17: 2011-11-01 | DN17: 2011-12-01 | DO17: 2011 | DP17: 2012-01-01 | DQ17: 2012-02-01 | DR17: 2012-03-01 | DS17: 2012-04-01 | DT17: 2012-05-01 | DU17: 2012-06-01 | DV17: 2012-07-01 | DW17: 2012-08-01 | DX17: 2012-09-01 | DY17: 2012-10-01 | DZ17: 2012-11-01 | EA17: 2012-12-01 | EB17: 2012 | EC17: 2013-01-01 | ED17: 2013-02-01 | EE17: 2013-03-01 | EF17: 2013-04-01 | EG17: 2013-05-01 | EH17: 2013-06-01 | EI17: 2013-07-01 | EJ17: 2013-08-01 | EK17: 2013-09-01 | EL17: 2013-10-01 | EM17: 2013-11-01 | EN17: 2013-12-01 | EO17: 2013 | EP17: 2014-01-01 | EQ17: 2014-02-01 | ER17: 2014-03-01 | ES17: 2014-04-01 | ET17: 2014-05-01 | EU17: 2014-06-01 | EV17: 2014-07-01 | EW17: 2014-08-01 | EX17: 2014-09-01 | EY17: 2014-10-01 | EZ17: 2014-11-01 | FA17: 2014-12-01 | FB17: 2014 | FC17: 2015-01-01 | FD17: 2015-02-01 | FE17: 2015-03-01 | FF17: 2015-04-01 | FG17: 2015-05-01 | FH17: 2015-06-01 | FI17: 2015-07-01 | FJ17: 2015-08-01 | FK17: 2015-09-01 | FL17: 2015-10-01 | FM17: 2015-11-01 | FN17: 2015-12-01 | FO17: 2015 | FP17: 2016-01-01 | FQ17: 2016-02-01 | FR17: 2016-03-01 | FS17: 2016-04-01 | FT17: 2016-05-01 | FU17: 2016-06-01 | FV17: 2016-07-01 | FW17: 2016-08-01 | FX17: 2016-09-01 | FY17: 2016-10-01 | FZ17: 2016-11-01 | GA17: 2016-12-01 | GB17: 2016 | GC17: 2017-01-01 | GD17: 2017-02-01 | GE17: 2017-03-01 | GF17: 2017-04-01 | GG17: 2017-05-01 | GH17: 2017-06-01 | GI17: 2017-07-01 | GJ17: 2017-08-01 | GK17: 2017-09-01 | GL17: 2017-10-01 | GM17: 2017-11-01 | GN17: 2017-12-01 | GO17: 2017 | GP17: 2018-01-01 | GQ17: 2018-02-01 | GR17: 2018-03-01 | GS17: 2018-04-01 | GT17: 2018-05-01 | GU17: 2018-06-01 | GV17: 2018-07-01 | GW17: 2018-08-01 | GX17: 2018-09-01 | GY17: 2018-10-01 | GZ17: 2018-11-01 | HA17: 2018-12-01 | HB17: 2018
B18: Número de cortes | C18: 5 | D18: 0 | E18: 0 | F18: 1 | G18: 1 | H18: 3 | I18: 1 | J18: 4 | K18: 3 | L18: 1 | M18: 2 | N18: 4 | O18: 25 | P18: 0 | Q18: 2 | R18: 1 | S18: 0 | T18: 2 | U18: 1 | V18: 3 | W18: 1 | X18: 4 | Y18: 3 | Z18: 3 | AA18: 4 | AB18: 24 | AC18: 0 | AD18: 0 | AE18: 1 | AF18: 1 | AG18: 1 | AH18: 7 | AI18: 1 | AJ18: 2 | AK18: 2 | AL18: 3 | AM18: 2 | AN18: 2 | AO18: 22 | AP18: 2 | AQ18: 1 | AR18: 4 | AS18: 2 | AT18: 3 | AU18: 1 | AV18: 4 | AW18: 4 | AX18: 4 | AY18: 6 | AZ18: 5 | BA18: 4 | BB18: 40 | BC18: 2 | BD18: 7 | BE18: 5 | BF18: 4 | BG18: 2 | BH18: 1 | BI18: 0 | BJ18: 2 | BK18: 2 | BL18: 2 | BM18: 6 | BN18: 1 | BO18: 34 | BP18: 1 | BQ18: 3 | BR18: 2 | BS18: 4 | BT18: 3 | BU18: 3 | BV18: 1 | BW18: 2 | BX18: 2 | BY18: 6 | BZ18: 2 | CA18: 2 | CB18: 31 | CC18: 3 | CD18: 1 | CE18: 1 | CF18: 3 | CG18: 3 | CH18: 3 | CI18: 1 | CJ18: 6 | CK18: 3 | CL18: 3 | CM18: 3 | CN18: 2 | CO18: 32 | CP18: 5 | CQ18: 1 | CR18: 2 | CS18: 3 | CT18: 4 | CU18: 5 | CV18: 3 | CW18: 2 | CX18: 2 | CY18: 7 | CZ18: 3 | DA18: 3 | DB18: 40 | DC18: 3 | DD18: 0 | DE18: 2 | DF18: 0 | DG18: 0 | DH18: 4 | DI18: 7 | DJ18: 1 | DK18: 2 | DL18: 3 | DM18: 4 | DN18: 6 | DO18: 32 | DP18: 1 | DQ18: 4 | DR18: 2 | DS18: 3 | DT18: 3 | DU18: 4 | DV18: 1 | DW18: 1 | DX18: 2 | DY18: 1 | DZ18: 0 | EA18: 2 | EB18: 24 | EC18: 0 | ED18: 1 | EE18: 0 | EF18: 0 | EG18: 2 | EH18: 2 | EI18: 2 | EJ18: 3 | EK18: 2 | EL18: 2 | EM18: 2 | EN18: 2 | EO18: 18 | EP18: 3 | EQ18: 0 | ER18: 3 | ES18: 0 | ET18: 1 | EU18: 2 | EV18: 4 | EW18: 3 | EX18: 2 | EY18: 1 | EZ18: 2 | FA18: 3 | FB18: 24 | FC18: 2 | FD18: 0 | FE18: 1 | FF18: 2 | FG18: 1 | FH18: 1 | FI18: 3 | FJ18: 0 | FK18: 2 | FL18: 1 | FM18: 1 | FN18: 4 | FO18: 18 | FP18: 2 | FQ18: 2 | FR18: 1 | FS18: 2 | FT18: 0 | FU18: 1 | FV18: 1 | FW18: 2 | FX18: 1 | FY18: 1 | FZ18: 2 | GA18: 0 | GB18: 15 | GC18: 1 | GD18: 0 | GE18: 1 | GF18: 1 | GG18: 1 | GH18: 1 | GI18: 3 | GJ18: 2 | GK18: 0 | GL18: 1 | GM18: 1 | GN18: 0 | GO18: 12 | GP18: 0 | GQ18: 1 | GR18: 1 | GS18: 1 | GT18: 2 | GU18: 2 | GV18: 1 | GW18: 1 | GX18: 2 | GY18: 0 | GZ18: - | HA18: - | HB18: 11
B19: Energía no suministrada mensual (MWh) | C19: 105.97 | D19: 0 | E19: 0 | F19: 5 | G19: 13 | H19: 72.08 | I19: 14.5 | J19: 203.47 | K19: 2.51 | L19: 29.33 | M19: 13.34 | N19: 7.03 | O19: 466.23 | P19: 0 | Q19: 4.52 | R19: 6.81 | S19: 0 | T19: 6.9 | U19: 0.2 | V19: 14.83 | W19: 4.59 | X19: 279.48 | Y19: 6.27 | Z19: 859.47 | AA19: 66.58 | AB19: 1249.65 | AC19: 0 | AD19: 0 | AE19: 0.31 | AF19: 1.76 | AG19: 7.5 | AH19: 392.28 | AI19: 2.53 | AJ19: 5.96 | AK19: 42.09 | AL19: 60.31 | AM19: 5.11 | AN19: 30.94 | AO19: 548.79 | AP19: 4.2 | AQ19: 398.3 | AR19: 10.27 | AS19: 67.78 | AT19: 11.42 | AU19: 3.28 | AV19: 75.44 | AW19: 11.97 | AX19: 16.71 | AY19: 37.23 | AZ19: 212.78 | BA19: 86.42 | BB19: 935.8 | BC19: 6.31 | BD19: 40.63 | BE19: 246.18 | BF19: 1.5 | BG19: 4.29 | BH19: 1.91 | BI19: 0 | BJ19: 23.08 | BK19: 17.91 | BL19: 137.5 | BM19: 277.48 | BN19: 0.33 | BO19: 757.16 | BP19: 2.45 | BQ19: 168.56 | BR19: 2.14 | BS19: 147.17 | BT19: 46.25 | BU19: 47.02 | BV19: 2.5 | BW19: 2.14 | BX19: 4.8 | BY19: 142.87 | BZ19: 4.63 | CA19: 2.99 | CB19: 573.54 | CC19: 41.7445 | CD19: 0.32 | CE19: 1.614 | CF19: 5.35 | CG19: 18.27 | CH19: 15.7606 | CI19: 12.28 | CJ19: 68.63 | CK19: 4.7 | CL19: 28.02 | CM19: 2.6 | CN19: 238.21 | CO19: 437.4991 | CP19: 42.01 | CQ19: 6.25 | CR19: 1.33 | CS19: 32.07 | CT19: 713.39 | CU19: 326.39 | CV19: 128.9 | CW19: 1.51 | CX19: 104.26 | CY19: 196.91666 | CZ19: 8.01 | DA19: 9.45 | DB19: 1570.54 | DC19: 9.43 | DD19: 0 | DE19: 1.11 | DF19: 0 | DG19: 0 | DH19: 36.04 | DI19: 40.57 | DJ19: 0.09 | DK19: 52.9 | DL19: 71.28 | DM19: 26.7 | DN19: 41.57 | DO19: 279.69 | DP19: 2.1 | DQ19: 3.33 | DR19: 9.16 | DS19: 5.63 | DT19: 0.94 | DU19: 11.33 | DV19: 0.5 | DW19: 1.15 | DX19: 6.9 | DY19: 21.9 | DZ19: 0 | EA19: 69.82 | EB19: 132.77 | EC19: 0 | ED19: 16 | EE19: 0 | EF19: 0 | EG19: 30.45 | EH19: 407.91 | EI19: 0.41 | EJ19: 6.13 | EK19: 1.32 | EL19: 15.43 | EM19: 582.27 | EN19: 96.26 | EO19: 1156.18 | EP19: 98.97 | EQ19: 0 | ER19: 31.47 | ES19: 0 | ET19: 1.12 | EU19: 2.78 | EV19: 0.91 | EW19: 0.5 | EX19: 13.81 | EY19: 1.87 | EZ19: 0.19 | FA19: 52.72 | FB19: 204.34 | FC19: 0.23 | FD19: 0 | FE19: 8.8 | FF19: 1.88 | FG19: 0.09 | FH19: 0.11 | FI19: 1.05 | FJ19: 0 | FK19: 12.42 | FL19: 19.64 | FM19: 0.08 | FN19: 8.47 | FO19: 52.77 | FP19: 1.515 | FQ19: 3.31 | FR19: 0.05 | FS19: 1.137 | FT19: 0 | FU19: 0.49 | FV19: 16.91 | FW19: 9.05 | FX19: 22.48 | FY19: 3.503 | FZ19: 19.52 | GA19: 0 | GB19: 77.965 | GC19: 0.08 | GD19: 0 | GE19: 22.75 | GF19: 6.53 | GG19: 1.45 | GH19: 1.45 | GI19: 7.55 | GJ19: 7.02 | GK19: 0 | GL19: 12.89 | GM19: 0.433 | GN19: 0 | GO19: 60.153 | GP19: 0 | GQ19: 0.065 | GR19: 17.77 | GS19: 0.41 | GT19: 5.43 | GU19: 0.175 | GV19: 8.75 | GW19: 174.98 | GX19: 0.38 | GY19: 0 | GZ19: - | HA19: - | HB19: 207.96
B20: Tiempo de interrupción medio mensual (minutos) | C20: 0.238 | D20: 0 | E20: 0 | F20: 0.013 | G20: 0.034 | H20: 0.167 | I20: 0.033 | J20: 0.488 | K20: 0.006 | L20: 0.071 | M20: 0.031 | N20: 0.016 | O20: 1.095 | P20: 0 | Q20: 0.01 | R20: 0.015 | S20: 0 | T20: 0.017 | U20: 0 | V20: 0.032 | W20: 0.011 | X20: 0.627 | Y20: 0.015 | Z20: 1.853 | AA20: 0.142 | AB20: 2.798 | AC20: 0 | AD20: 0 | AE20: 0.001 | AF20: 0.004 | AG20: 0.018 | AH20: 0.831 | AI20: 0.005 | AJ20: 0.014 | AK20: 0.095 | AL20: 0.138 | AM20: 0.011 | AN20: 0.061 | AO20: 1.176 | AP20: 0.008 | AQ20: 0.76 | AR20: 0.021 | AS20: 0.158 | AT20: 0.025 | AU20: 0.007 | AV20: 0.147 | AW20: 0.026 | AX20: 0.035 | AY20: 0.082 | AZ20: 0.452 | BA20: 0.184 | BB20: 1.939 | BC20: 0.012 | BD20: 0.078 | BE20: 0.489 | BF20: 0.003 | BG20: 0.009 | BH20: 0.004 | BI20: 0 | BJ20: 0.049 | BK20: 0.037 | BL20: 0.29 | BM20: 0.533 | BN20: 0.001 | BO20: 1.523 | BP20: 0.005 | BQ20: 0.314 | BR20: 0.004 | BS20: 0.299 | BT20: 0.101 | BU20: 0.099 | BV20: 0.005 | BW20: 0.004 | BX20: 0.01 | BY20: 0.305 | BZ20: 0.009 | CA20: 0.006 | CB20: 1.147 | CC20: 0.079 | CD20: 0.001 | CE20: 0.003 | CF20: 0.012 | CG20: 0.042 | CH20: 0.033 | CI20: 0.024 | CJ20: 0.144 | CK20: 0.01 | CL20: 0.062 | CM20: 0.005 | CN20: 0.475 | CO20: 0.91 | CP20: 0.08 | CQ20: 0.012 | CR20: 0.003 | CS20: 0.07 | CT20: 1.558 | CU20: 0.691 | CV20: 0.282 | CW20: 0.003 | CX20: 0.218 | CY20: 0.431 | CZ20: 0.016 | DA20: 0.018 | DB20: 3.167 | DC20: 0.018 | DD20: 0 | DE20: 0.002 | DF20: 0 | DG20: 0 | DH20: 0.074 | DI20: 0.083 | DJ20: 0 | DK20: 0.109 | DL20: 0.158 | DM20: 0.056 | DN20: 0.086 | DO20: 0.577 | DP20: 0.004 | DQ20: 0.006 | DR20: 0.019 | DS20: 0.013 | DT20: 0.002 | DU20: 0.024 | DV20: 0.001 | DW20: 0.002 | DX20: 0.015 | DY20: 0.05 | DZ20: 0 | EA20: 0.146 | EB20: 0.278 | EC20: 0 | ED20: 0.031 | EE20: 0 | EF20: 0 | EG20: 0.07 | EH20: 0.92 | EI20: 0.001 | EJ20: 0.013 | EK20: 0.003 | EL20: 0.035 | EM20: 1.229 | EN20: 0.198 | EO20: 2.467 | EP20: 0.2 | EQ20: 0 | ER20: 0.067 | ES20: 0 | ET20: 0.003 | EU20: 0.006 | EV20: 0.002 | EW20: 0.001 | EX20: 0.029 | EY20: 0.004 | EZ20: 0 | FA20: 0.11 | FB20: 0.441 | FC20: 0.00045 | FD20: 0 | FE20: 0.01863 | FF20: 0.00434 | FG20: 0.0002 | FH20: 0.00023 | FI20: 0.002 | FJ20: 0 | FK20: 0.02739 | FL20: 0.04445 | FM20: 0.00017 | FN20: 0.01809 | FO20: 0.112 | FP20: 0.00315 | FQ20: 0.00663 | FR20: 0.0001 | FS20: 0.00247 | FT20: 0 | FU20: 0.00105 | FV20: 0.03395 | FW20: 0.01884 | FX20: 0.04664 | FY20: 0.00789 | FZ20: 0.04088 | GA20: 0 | GB20: 0.164 | GC20: 0.00015 | GD20: 0 | GE20: 0.04807 | GF20: 0.01498 | GG20: 0.0032 | GH20: 0.00289 | GI20: 0.01505 | GJ20: 0.01437 | GK20: 0 | GL20: 0.02841 | GM20: 0.00089 | GN20: 0 | GO20: 0.125 | GP20: 0 | GQ20: 0.00012 | GR20: 0.03598 | GS20: 0.00089 | GT20: 0.01208 | GU20: 0.00037 | GV20: 0.01762 | GW20: 0.35552 | GX20: 0.00079 | GY20: 0 | GZ20: - | HA20: - | HB20: 0.43
B22: Continuidad del suministro mensual Islas Baleares | C22: 2005-01-01 | D22: 2005-02-01 | E22: 2005-03-01 | F22: 2005-04-01 | G22: 2005-05-01 | H22: 2005-06-01 | I22: 2005-07-01 | J22: 2005-08-01 | K22: 2005-09-01 | L22: 2005-10-01 | M22: 2005-11-01 | N22: 2005-12-01 | O22: 2005 | P22: 2006-01-01 | Q22: 2006-02-01 | R22: 2006-03-01 | S22: 2006-04-01 | T22: 2006-05-01 | U22: 2006-06-01 | V22: 2006-07-01 | W22: 2006-08-01 | X22: 2006-09-01 | Y22: 2006-10-01 | Z22: 2006-11-01 | AA22: 2006-12-01 | AB22: 2006 | AC22: 2007-01-01 | AD22: 2007-02-01 | AE22: 2007-03-01 | AF22: 2007-04-01 | AG22: 2007-05-01 | AH22: 2007-06-01 | AI22: 2007-07-01 | AJ22: 2007-08-01 | AK22: 2007-09-01 | AL22: 2007-10-01 | AM22: 2007-11-01 | AN22: 2007-12-01 | AO22: 2007 | AP22: 2008-01-01 | AQ22: 2008-02-01 | AR22: 2008-03-01 | AS22: 2008-04-01 | AT22: 2008-05-01 | AU22: 2008-06-01 | AV22: 2008-07-01 | AW22: 2008-08-01 | AX22: 2008-09-01 | AY22: 2008-10-01 | AZ22: 2008-11-01 | BA22: 2008-12-01 | BB22: 2008 | BC22: 2009-01-01 | BD22: 2009-02-01 | BE22: 2009-03-01 | BF22: 2009-04-01 | BG22: 2009-05-01 | BH22: 2009-06-01 | BI22: 2009-07-01 | BJ22: 2009-08-01 | BK22: 2009-09-01 | BL22: 2009-10-01 | BM22: 2009-11-01 | BN22: 2009-12-01 | BO22: 2009 | BP22: 2010-01-01 | BQ22: 2010-02-01 | BR22: 2010-03-01 | BS22: 2010-04-01 | BT22: 2010-05-01 | BU22: 2010-06-01 | BV22: 2010-07-01 | BW22: 2010-08-01 | BX22: 2010-09-01 | BY22: 2010-10-01 | BZ22: 2010-11-01 | CA22: 2010-12-01 | CB22: 2010 | CC22: 2011-01-01 | CD22: 2011-02-01 | CE22: 2011-03-01 | CF22: 2011-04-01 | CG22: 2011-05-01 | CH22: 2011-06-01 | CI22: 2011-07-01 | CJ22: 2011-08-01 | CK22: 2011-09-01 | CL22: 2011-10-01 | CM22: 2011-11-01 | CN22: 2011-12-01 | CO22: 2011 | CP22: 2012-01-01 | CQ22: 2012-02-01 | CR22: 2012-03-01 | CS22: 2012-04-01 | CT22: 2012-05-01 | CU22: 2012-06-01 | CV22: 2012-07-01 | CW22: 2012-08-01 | CX22: 2012-09-01 | CY22: 2012-10-01 | CZ22: 2012-11-01 | DA22: 2012-12-01 | DB22: 2012 | DC22: 2013-01-01 | DD22: 2013-02-01 | DE22: 2013-03-01 | DF22: 2013-04-01 | DG22: 2013-05-01 | DH22: 2013-06-01 | DI22: 2013-07-01 | DJ22: 2013-08-01 | DK22: 2013-09-01 | DL22: 2013-10-01 | DM22: 2013-11-01 | DN22: 2013-12-01 | DO22: 2013 | DP22: 2014-01-01 | DQ22: 2014-02-01 | DR22: 2014-03-01 | DS22: 2014-04-01 | DT22: 2014-05-01 | DU22: 2014-06-01 | DV22: 2014-07-01 | DW22: 2014-08-01 | DX22: 2014-09-01 | DY22: 2014-10-01 | DZ22: 2014-11-01 | EA22: 2014-12-01 | EB22: 2014 | EC22: 2015-01-01 | ED22: 2015-02-01 | EE22: 2015-03-01 | EF22: 2015-04-01 | EG22: 2015-05-01 | EH22: 2015-06-01 | EI22: 2015-07-01 | EJ22: 2015-08-01 | EK22: 2015-09-01 | EL22: 2015-10-01 | EM22: 2015-11-01 | EN22: 2015-12-01 | EO22: 2015 | EP22: 2016-01-01 | EQ22: 2016-02-01 | ER22: 2016-03-01 | ES22: 2016-04-01 | ET22: 2016-05-01 | EU22: 2016-06-01 | EV22: 2016-07-01 | EW22: 2016-08-01 | EX22: 2016-09-01 | EY22: 2016-10-01 | EZ22: 2016-11-01 | FA22: 2016-12-01 | FB22: 2016 | FC22: 2017-01-01 | FD22: 2017-02-01 | FE22: 2017-03-01 | FF22: 2017-04-01 | FG22: 2017-05-01 | FH22: 2017-06-01 | FI22: 2017-07-01 | FJ22: 2017-08-01 | FK22: 2017-09-01 | FL22: 2017-10-01 | FM22: 2017-11-01 | FN22: 2017-12-01 | FO22: 2017 | FP22: 2018-01-01 | FQ22: 2018-02-01 | FR22: 2018-03-01 | FS22: 2018-04-01 | FT22: 2018-05-01 | FU22: 2018-06-01 | FV22: 2018-07-01 | FW22: 2018-08-01 | FX22: 2018-09-01 | FY22: 2018-10-01 | FZ22: 2018-11-01 | GA22: 2018-12-01 | GB22: 2018
B23: Número de cortes | C23: 0 | D23: 0 | E23: 0 | F23: 1 | G23: 0 | H23: 1 | I23: 0 | J23: 0 | K23: 2 | L23: 0 | M23: 0 | N23: 0 | O23: 4 | P23: 1 | Q23: 1 | R23: 0 | S23: 0 | T23: 0 | U23: 0 | V23: 0 | W23: 0 | X23: 0 | Y23: 0 | Z23: 1 | AA23: 0 | AB23: 3 | AC23: 0 | AD23: 1 | AE23: 1 | AF23: 1 | AG23: 0 | AH23: 0 | AI23: 1 | AJ23: 0 | AK23: 0 | AL23: 2 | AM23: 0 | AN23: 0 | AO23: 6 | AP23: 0 | AQ23: 0 | AR23: 0 | AS23: 1 | AT23: 0 | AU23: 0 | AV23: 0 | AW23: 0 | AX23: 0 | AY23: 1 | AZ23: 0 | BA23: 1 | BB23: 3 | BC23: 0 | BD23: 0 | BE23: 0 | BF23: 0 | BG23: 0 | BH23: 0 | BI23: 1 | BJ23: 0 | BK23: 2 | BL23: 0 | BM23: 1 | BN23: 2 | BO23: 6 | BP23: 0 | BQ23: 0 | BR23: 0 | BS23: 0 | BT23: 1 | BU23: 0 | BV23: 0 | BW23: 0 | BX23: 0 | BY23: 1 | BZ23: 1 | CA23: 0 | CB23: 3 | CC23: 0 | CD23: 0 | CE23: 1 | CF23: 0 | CG23: 2 | CH23: 1 | CI23: 1 | CJ23: 0 | CK23: 0 | CL23: 0 | CM23: 1 | CN23: 0 | CO23: 6 | CP23: 0 | CQ23: 0 | CR23: 1 | CS23: 0 | CT23: 0 | CU23: 0 | CV23: 0 | CW23: 0 | CX23: 1 | CY23: 0 | CZ23: 1 | DA23: 1 | DB23: 4 | DC23: 1 | DD23: 1 | DE23: 0 | DF23: 0 | DG23: 0 | DH23: 0 | DI23: 0 | DJ23: 1 | DK23: 0 | DL23: 1 | DM23: 0 | DN23: 0 | DO23: 4 | DP23: 0 | DQ23: 0 | DR23: 0 | DS23: 1 | DT23: 2 | DU23: 0 | DV23: 0 | DW23: 0 | DX23: 1 | DY23: 0 | DZ23: 1 | EA23: 0 | EB23: 5 | EC23: 0 | ED23: 0 | EE23: 0 | EF23: 1 | EG23: 1 | EH23: 1 | EI23: 0 | EJ23: 0 | EK23: 0 | EL23: 0 | EM23: 2 | EN23: 0 | EO23: 5 | EP23: 1 | EQ23: 0 | ER23: 0 | ES23: 0 | ET23: 0 | EU23: 0 | EV23: 0 | EW23: 0 | EX23: 0 | EY23: 0 | EZ23: 0 | FA23: 0 | FB23: 1 | FC23: 1 | FD23: 0 | FE23: 0 | FF23: 2 | FG23: 0 | FH23: 0 | FI23: 1 | FJ23: 0 | FK23: 0 | FL23: 0 | FM23: 1 | FN23: 0 | FO23: 5 | FP23: 0 | FQ23: 0 | FR23: 0 | FS23: 0 | FT23: 0 | FU23: 0 | FV23: 0 | FW23: 1 | FX23: 1 | FY23: 0 | FZ23: - | GA23: - | GB23: 2
B24: Energía no suministrada mensual (MWh) | C24: 0 | D24: 0 | E24: 0 | F24: 54.133 | G24: 0 | H24: 14.47 | I24: 0 | J24: 0 | K24: 173.722 | L24: 0 | M24: 0 | N24: 0 | O24: 242.325 | P24: 21.82999992 | Q24: 22.95000076 | R24: 0 | S24: 0 | T24: 0 | U24: 0 | V24: 0 | W24: 0 | X24: 0 | Y24: 0 | Z24: 1.289999962 | AA24: 0 | AB24: 46.07000065 | AC24: 0 | AD24: 1.470000029 | AE24: 2.430000067 | AF24: 2.74000001 | AG24: 0 | AH24: 0 | AI24: 317.2999878 | AJ24: 0 | AK24: 0 | AL24: 2.480000019 | AM24: 0 | AN24: 0 | AO24: 326.4199879 | AP24: 0 | AQ24: 0 | AR24: 0 | AS24: 4.78000021 | AT24: 0 | AU24: 0 | AV24: 0 | AW24: 0 | AX24: 0 | AY24: 1.059999943 | AZ24: 0 | BA24: 1.639999986 | BB24: 7.480000138 | BC24: 0 | BD24: 0 | BE24: 0 | BF24: 0 | BG24: 0 | BH24: 0 | BI24: 33.22000122 | BJ24: 0 | BK24: 3.431948662 | BL24: 0 | BM24: 0.5600000024 | BN24: 1.920000017 | BO24: 39.1319499 | BP24: 0 | BQ24: 0 | BR24: 0 | BS24: 0 | BT24: 2.93 | BU24: 0 | BV24: 0 | BW24: 0 | BX24: 0 | BY24: 1.97 | BZ24: 3.64 | CA24: 0 | CB24: 8.54 | CC24: 0 | CD24: 0 | CE24: 22.2 | CF24: 0 | CG24: 0.46 | CH24: 3.79 | CI24: 1.01 | CJ24: 0 | CK24: 0 | CL24: 0 | CM24: 11.23 | CN24: 0 | CO24: 38.69 | CP24: 0 | CQ24: 0 | CR24: 5.34 | CS24: 0 | CT24: 0 | CU24: 0 | CV24: 0 | CW24: 0 | CX24: 0.36 | CY24: 0 | CZ24: 0.83 | DA24: 0.96 | DB24: 7.49 | DC24: 0.58 | DD24: 65.63 | DE24: 0 | DF24: 0 | DG24: 0 | DH24: 0 | DI24: 0 | DJ24: 1.45 | DK24: 0 | DL24: 13.3 | DM24: 0 | DN24: 0 | DO24: 80.96 | DP24: 0 | DQ24: 0 | DR24: 0 | DS24: 2.6 | DT24: 0.43 | DU24: 0 | DV24: 0 | DW24: 0 | DX24: 8.66 | DY24: 0 | DZ24: 1.12 | EA24: 0 | EB24: 12.81 | EC24: 0 | ED24: 0 | EE24: 0 | EF24: 3.15 | EG24: 22.52 | EH24: 1.87 | EI24: 0 | EJ24: 0 | EK24: 0 | EL24: 0 | EM24: 1.82 | EN24: 0 | EO24: 29.36 | EP24: 0.3 | EQ24: 0 | ER24: 0 | ES24: 0 | ET24: 0 | EU24: 0 | EV24: 0 | EW24: 0 | EX24: 0 | EY24: 0 | EZ24: 0 | FA24: 0 | FB24: 0.3 | FC24: 9.49 | FD24: 0 | FE24: 0 | FF24: 1.55 | FG24: 0 | FH24: 0 | FI24: 21.16 | FJ24: 0 | FK24: 0 | FL24: 0 | FM24: 0.87 | FN24: 0 | FO24: 33.07 | FP24: 0 | FQ24: 0 | FR24: 0 | FS24: 0 | FT24: 0 | FU24: 0 | FV24: 0 | FW24: 33.11 | FX24: 0.7 | FY24: 0 | FZ24: - | GA24: - | GB24: 33.81
B25: Tiempo de interrupción medio mensual (minutos) | C25: 0 | D25: 0 | E25: 0 | F25: 6.006104199 | G25: 0 | H25: 1.218771256 | I25: 0 | J25: 0 | K25: 15.20565344 | L25: 0 | M25: 0 | N25: 0 | O25: 22.30514046 | P25: 1.964352469 | Q25: 2.060650009 | R25: 0 | S25: 0 | T25: 0 | U25: 0 | V25: 0 | W25: 0 | X25: 0 | Y25: 0 | Z25: 0.1490478233 | AA25: 0 | AB25: 4.120247956 | AC25: 0 | AD25: 0.1403637097 | AE25: 0.2351541598 | AF25: 0.2750409546 | AG25: 0 | AH25: 0 | AI25: 22.86780302 | AJ25: 0 | AK25: 0 | AL25: 0.2335742786 | AM25: 0 | AN25: 0 | AO25: 28.72535462 | AP25: 0 | AQ25: 0 | AR25: 0 | AS25: 0.4750157783 | AT25: 0 | AU25: 0 | AV25: 0 | AW25: 0 | AX25: 0 | AY25: 0.1002427717 | AZ25: 0 | BA25: 0.1442772585 | BB25: 0.6439875453 | BC25: 0 | BD25: 0 | BE25: 0 | BF25: 0 | BG25: 0 | BH25: 0 | BI25: 2.244519936 | BJ25: 0 | BK25: 0.2810449076 | BL25: 0 | BM25: 0.06266902946 | BN25: 0.1861134953 | BO25: 3.411988431 | BP25: 0 | BQ25: 0 | BR25: 0 | BS25: 0 | BT25: 0.3 | BU25: 0 | BV25: 0 | BW25: 0 | BX25: 0 | BY25: 0.194 | BZ25: 0.391 | CA25: 0 | CB25: 0.769 | CC25: 0 | CD25: 0 | CE25: 2.179 | CF25: 0 | CG25: 0.045 | CH25: 0.325 | CI25: 0.075 | CJ25: 0 | CK25: 0 | CL25: 0 | CM25: 1.308 | CN25: 0 | CO25: 3.541 | CP25: 0 | CQ25: 0 | CR25: 0.548 | CS25: 0 | CT25: 0 | CU25: 0 | CV25: 0 | CW25: 0 | CX25: 0.03 | CY25: 0 | CZ25: 0.097 | DA25: 0.101 | DB25: 0.678 | DC25: 0.058 | DD25: 6.243 | DE25: 0 | DF25: 0 | DG25: 0 | DH25: 0 | DI25: 0 | DJ25: 0.102 | DK25: 0 | DL25: 1.285 | DM25: 0 | DN25: 0 | DO25: 7.5 | DP25: 0 | DQ25: 0 | DR25: 0 | DS25: 0.289 | DT25: 0.044 | DU25: 0 | DV25: 0 | DW25: 0 | DX25: 0.656 | DY25: 0 | DZ25: 0.136 | EA25: 0 | EB25: 1.205 | EC25: 0 | ED25: 0 | EE25: 0 | EF25: 0.343 | EG25: 2.234 | EH25: 0.154 | EI25: 0 | EJ25: 0 | EK25: 0 | EL25: 0 | EM25: 0.212 | EN25: 0 | EO25: 2.662 | EP25: 0.033 | EQ25: 0 | ER25: 0 | ES25: 0 | ET25: 0 | EU25: 0 | EV25: 0 | EW25: 0 | EX25: 0 | EY25: 0 | EZ25: 0 | FA25: 0 | FB25: 0.027 | FC25: 0.887 | FD25: 0 | FE25: 0 | FF25: 0.161 | FG25: 0 | FH25: 0 | FI25: 1.392 | FJ25: 0 | FK25: 0 | FL25: 0 | FM25: 0.093 | FN25: 0 | FO25: 2.883 | FP25: 0 | FQ25: 0 | FR25: 0 | FS25: 0 | FT25: 0 | FU25: 0 | FV25: 0 | FW25: 2.1 | FX25: 0.052 | FY25: 0 | FZ25: - | GA25: - | GB25: 2.825
B27: Continuidad del suministro mensual Islas Canarias | C27: 2005-01-01 | D27: 2005-02-01 | E27: 2005-03-01 | F27: 2005-04-01 | G27: 2005-05-01 | H27: 2005-06-01 | I27: 2005-07-01 | J27: 2005-08-01 | K27: 2005-09-01 | L27: 2005-10-01 | M27: 2005-11-01 | N27: 2005-12-01 | O27: 2005 | P27: 2006-01-01 | Q27: 2006-02-01 | R27: 2006-03-01 | S27: 2006-04-01 | T27: 2006-05-01 | U27: 2006-06-01 | V27: 2006-07-01 | W27: 2006-08-01 | X27: 2006-09-01 | Y27: 2006-10-01 | Z27: 2006-11-01 | AA27: 2006-12-01 | AB27: 2006 | AC27: 2007-01-01 | AD27: 2007-02-01 | AE27: 2007-03-01 | AF27: 2007-04-01 | AG27: 2007-05-01 | AH27: 2007-06-01 | AI27: 2007-07-01 | AJ27: 2007-08-01 | AK27: 2007-09-01 | AL27: 2007-10-01 | AM27: 2007-11-01 | AN27: 2007-12-01 | AO27: 2007 | AP27: 2008-01-01 | AQ27: 2008-02-01 | AR27: 2008-03-01 | AS27: 2008-04-01 | AT27: 2008-05-01 | AU27: 2008-06-01 | AV27: 2008-07-01 | AW27: 2008-08-01 | AX27: 2008-09-01 | AY27: 2008-10-01 | AZ27: 2008-11-01 | BA27: 2008-12-01 | BB27: 2008 | BC27: 2009-01-01 | BD27: 2009-02-01 | BE27: 2009-03-01 | BF27: 2009-04-01 | BG27: 2009-05-01 | BH27: 2009-06-01 | BI27: 2009-07-01 | BJ27: 2009-08-01 | BK27: 2009-09-01 | BL27: 2009-10-01 | BM27: 2009-11-01 | BN27: 2009-12-01 | BO27: 2009 | BP27: 2010-01-01 | BQ27: 2010-02-01 | BR27: 2010-03-01 | BS27: 2010-04-01 | BT27: 2010-05-01 | BU27: 2010-06-01 | BV27: 2010-07-01 | BW27: 2010-08-01 | BX27: 2010-09-01 | BY27: 2010-10-01 | BZ27: 2010-11-01 | CA27: 2010-12-01 | CB27: 2010 | CC27: 2011-01-01 | CD27: 2011-02-01 | CE27: 2011-03-01 | CF27: 2011-04-01 | CG27: 2011-05-01 | CH27: 2011-06-01 | CI27: 2011-07-01 | CJ27: 2011-08-01 | CK27: 2011-09-01 | CL27: 2011-10-01 | CM27: 2011-11-01 | CN27: 2011-12-01 | CO27: 2011 | CP27: 2012-01-01 | CQ27: 2012-02-01 | CR27: 2012-03-01 | CS27: 2012-04-01 | CT27: 2012-05-01 | CU27: 2012-06-01 | CV27: 2012-07-01 | CW27: 2012-08-01 | CX27: 2012-09-01 | CY27: 2012-10-01 | CZ27: 2012-11-01 | DA27: 2012-12-01 | DB27: 2012 | DC27: 2013-01-01 | DD27: 2013-02-01 | DE27: 2013-03-01 | DF27: 2013-04-01 | DG27: 2013-05-01 | DH27: 2013-06-01 | DI27: 2013-07-01 | DJ27: 2013-08-01 | DK27: 2013-09-01 | DL27: 2013-10-01 | DM27: 2013-11-01 | DN27: 2013-12-01 | DO27: 2013 | DP27: 2014-01-01 | DQ27: 2014-02-01 | DR27: 2014-03-01 | DS27: 2014-04-01 | DT27: 2014-05-01 | DU27: 2014-06-01 | DV27: 2014-07-01 | DW27: 2014-08-01 | DX27: 2014-09-01 | DY27: 2014-10-01 | DZ27: 2014-11-01 | EA27: 2014-12-01 | EB27: 2014 | EC27: 2015-01-01 | ED27: 2015-02-01 | EE27: 2015-03-01 | EF27: 2015-04-01 | EG27: 2015-05-01 | EH27: 2015-06-01 | EI27: 2015-07-01 | EJ27: 2015-08-01 | EK27: 2015-09-01 | EL27: 2015-10-01 | EM27: 2015-11-01 | EN27: 2015-12-01 | EO27: 2015 | EP27: 2016-01-01 | EQ27: 2016-02-01 | ER27: 2016-03-01 | ES27: 2016-04-01 | ET27: 2016-05-01 | EU27: 2016-06-01 | EV27: 2016-07-01 | EW27: 2016-08-01 | EX27: 2016-09-01 | EY27: 2016-10-01 | EZ27: 2016-11-01 | FA27: 2016-12-01 | FB27: 2016 | FC27: 2017-01-01 | FD27: 2017-02-01 | FE27: 2017-03-01 | FF27: 2017-04-01 | FG27: 2017-05-01 | FH27: 2017-06-01 | FI27: 2017-07-01 | FJ27: 2017-08-01 | FK27: 2017-09-01 | FL27: 2017-10-01 | FM27: 2017-11-01 | FN27: 2017-12-01 | FO27: 2017 | FP27: 2018-01-01 | FQ27: 2018-02-01 | FR27: 2018-03-01 | FS27: 2018-04-01 | FT27: 2018-05-01 | FU27: 2018-06-01 | FV27: 2018-07-01 | FW27: 2018-08-01 | FX27: 2018-09-01 | FY27: 2018-10-01 | FZ27: 2018-11-01 | GA27: 2018-12-01 | GB27: 2018
B28: Número de cortes | C28: 4 | D28: 3 | E28: 0 | F28: 0 | G28: 3 | H28: 1 | I28: 6 | J28: 2 | K28: 1 | L28: 3 | M28: 1 | N28: 3 | O28: 27 | P28: 1 | Q28: 1 | R28: 0 | S28: 0 | T28: 3 | U28: 0 | V28: 0 | W28: 1 | X28: 0 | Y28: 2 | Z28: 0 | AA28: 2 | AB28: 10 | AC28: 2 | AD28: 0 | AE28: 0 | AF28: 0 | AG28: 1 | AH28: 1 | AI28: 0 | AJ28: 1 | AK28: 1 | AL28: 3 | AM28: 0 | AN28: 2 | AO28: 11 | AP28: 0 | AQ28: 1 | AR28: 1 | AS28: 2 | AT28: 0 | AU28: 1 | AV28: 1 | AW28: 3 | AX28: 1 | AY28: 0 | AZ28: 0 | BA28: 0 | BB28: 10 | BC28: 1 | BD28: 0 | BE28: 1 | BF28: 1 | BG28: 1 | BH28: 0 | BI28: 0 | BJ28: 0 | BK28: 0 | BL28: 0 | BM28: 0 | BN28: 0 | BO28: 4 | BP28: 2 | BQ28: 6 | BR28: 3 | BS28: 0 | BT28: 1 | BU28: 1 | BV28: 0 | BW28: 2 | BX28: 0 | BY28: 0 | BZ28: 3 | CA28: 0 | CB28: 18 | CC28: 0 | CD28: 0 | CE28: 0 | CF28: 1 | CG28: 0 | CH28: 1 | CI28: 0 | CJ28: 0 | CK28: 0 | CL28: 0 | CM28: 0 | CN28: 0 | CO28: 2 | CP28: 0 | CQ28: 0 | CR28: 0 | CS28: 0 | CT28: 0 | CU28: 1 | CV28: 0 | CW28: 1 | CX28: 1 | CY28: 0 | CZ28: 0 | DA28: 2 | DB28: 5 | DC28: 0 | DD28: 1 | DE28: 1 | DF28: 0 | DG28: 0 | DH28: 0 | DI28: 0 | DJ28: 0 | DK28: 0 | DL28: 1 | DM28: 2 | DN28: 0 | DO28: 5 | DP28: 0 | DQ28: 0 | DR28: 0 | DS28: 0 | DT28: 0 | DU28: 1 | DV28: 1 | DW28: 0 | DX28: 0 | DY28: 1 | DZ28: 4 | EA28: 0 | EB28: 7 | EC28: 1 | ED28: 0 | EE28: 2 | EF28: 0 | EG28: 0 | EH28: 1 | EI28: 0 | EJ28: 3 | EK28: 1 | EL28: 2 | EM28: 1 | EN28: 1 | EO28: 12 | EP28: 1 | EQ28: 0 | ER28: 0 | ES28: 1 | ET28: 0 | EU28: 2 | EV28: 3 | EW28: 0 | EX28: 3 | EY28: 3 | EZ28: 0 | FA28: 1 | FB28: 14 | FC28: 0 | FD28: 5 | FE28: 0 | FF28: 1 | FG28: 0 | FH28: 1 | FI28: 0 | FJ28: 0 | FK28: 2 | FL28: 0 | FM28: 3 | FN28: 0 | FO28: 12 | FP28: 0 | FQ28: 0 | FR28: 1 | FS28: 1 | FT28: 1 | FU28: 0 | FV28: 0 | FW28: 0 | FX28: 0 | FY28: 1 | FZ28: - | GA28: - | GB28: 4
B29: Energía no suministrada mensual (MWh) | C29: 19.5 | D29: 18.19 | E29: 0 | F29: 0 | G29: 333.16 | H29: 2 | I29: 152.11 | J29: 97.99 | K29: 22.13 | L29: 32.28 | M29: 1.5 | N29: 145.78 | O29: 824.64 | P29: 27.29305556 | Q29: 11.865 | R29: 0 | S29: 0 | T29: 26.23833333 | U29: 0 | V29: 0 | W29: 75.6875 | X29: 0 | Y29: 32.63083333 | Z29: 0 | AA29: 6.615 | AB29: 180.3297222 | AC29: 28.615 | AD29: 0 | AE29: 0 | AF29: 0 | AG29: 65.95916667 | AH29: 14.7 | AI29: 0 | AJ29: 20.64819444 | AK29: 0.8719027778 | AL29: 139.6122222 | AM29: 0 | AN29: 10.55416667 | AO29: 280.9606528 | AP29: 0 | AQ29: 96.435 | AR29: 0.6 | AS29: 51.61380556 | AT29: 0 | AU29: 43.4225 | AV29: 5.778333333 | AW29: 813.4001667 | AX29: 31.66 | AY29: 0 | AZ29: 0 | BA29: 0 | BB29: 1042.909806 | BC29: 0.405 | BD29: 0 | BE29: 1666.445 | BF29: 5.333333333 | BG29: 6.355833333 | BH29: 0 | BI29: 0 | BJ29: 0 | BK29: 0 | BL29: 0 | BM29: 0 | BN29: 0 | BO29: 1678.539167 | BP29: 10.38466667 | BQ29: 2477.021299 | BR29: 957.4814556 | BS29: 0 | BT29: 93.62019306 | BU29: 3.68745 | BV29: 0 | BW29: 535.3863792 | BX29: 0 | BY29: 0 | BZ29: 11.97732639 | CA29: 0 | CB29: 4089.558769 | CC29: 0 | CD29: 0 | CE29: 0 | CF29: 12.567075 | CG29: 0 | CH29: 4.701475 | CI29: 0 | CJ29: 0 | CK29: 0 | CL29: 0 | CM29: 0 | CN29: 0 | CO29: 17.26855 | CP29: 0 | CQ29: 0 | CR29: 0 | CS29: 0 | CT29: 0 | CU29: 4.502944444 | CV29: 0 | CW29: 3.107138889 | CX29: 2.728916667 | CY29: 0 | CZ29: 0 | DA29: 213.8 | DB29: 224.14 | DC29: 0 | DD29: 6.83 | DE29: 2.9 | DF29: 0 | DG29: 0 | DH29: 0 | DI29: 0 | DJ29: 0 | DK29: 0 | DL29: 5.67 | DM29: 56.62 | DN29: 0 | DO29: 72.02 | DP29: 0 | DQ29: 0 | DR29: 0 | DS29: 0 | DT29: 0 | DU29: 0.8 | DV29: 83.29 | DW29: 0 | DX29: 0 | DY29: 3.62 | DZ29: 59.86 | EA29: 0 | EB29: 147.57 | EC29: 24.14 | ED29: 0 | EE29: 11.88 | EF29: 0 | EG29: 0 | EH29: 5.61 | EI29: 0 | EJ29: 13.62 | EK29: 6.67 | EL29: 17.33 | EM29: 70.25 | EN29: 0.217 | EO29: 149.717 | EP29: 3.05 | EQ29: 0 | ER29: 0 | ES29: 0.19 | ET29: 0 | EU29: 47.17 | EV29: 12.86 | EW29: 0 | EX29: 379.06 | EY29: 10.05 | EZ29: 0 | FA29: 4.73 | FB29: 457.11 | FC29: 0 | FD29: 18.05 | FE29: 0 | FF29: 2.63 | FG29: 0 | FH29: 5.05 | FI29: 0 | FJ29: 0 | FK29: 11.16 | FL29: 0 | FM29: 10.02 | FN29: 0 | FO29: 46.91 | FP29: 0 | FQ29: 0 | FR29: 1.55 | FS29: 1.04 | FT29: 5.32 | FU29: 0 | FV29: 0 | FW29: 0 | FX29: 0 | FY29: 63.5 | FZ29: - | GA29: - | GB29: 71.41
B30: Tiempo de interrupción medio mensual (minutos) | C30: 1.25 | D30: 1.17 | E30: 0 | F30: 0 | G30: 21.67 | H30: 0.13 | I30: 9.22 | J30: 5.79 | K30: 1.28 | L30: 1.92 | M30: 0.09 | N30: 8.78 | O30: 51.09 | P30: 1.661109013 | Q30: 0.7314242381 | R30: 0 | S30: 0 | T30: 1.639787928 | U30: 0 | V30: 0 | W30: 4.306741006 | X30: 0 | Y30: 1.836426191 | Z30: 0 | AA30: 0.3872530274 | AB30: 10.66629942 | AC30: 1.649019785 | AD30: 0 | AE30: 0 | AF30: 0 | AG30: 3.909796876 | AH30: 0.8566630019 | AI30: 0 | AJ30: 1.140792695 | AK30: 0.04850104171 | AL30: 7.705247905 | AM30: 0 | AN30: 0.5978347211 | AO30: 16.03215521 | AP30: 0 | AQ30: 5.471994913 | AR30: 0.03452876817 | AS30: 2.934563287 | AT30: 0 | AU30: 2.49478262 | AV30: 0.3190996002 | AW30: 45.06567869 | AX30: 1.728613696 | AY30: 0 | AZ30: 0 | BA30: 0 | BB30: 58.93737909 | BC30: 0.02341962361 | BD30: 0 | BE30: 98.98948736 | BF30: 0.3242115987 | BG30: 0.3908717191 | BH30: 0 | BI30: 0 | BJ30: 0 | BK30: 0 | BL30: 0 | BM30: 0 | BN30: 0 | BO30: 96.88604789 | BP30: 0.6156148426 | BQ30: 148.6564511 | BR30: 56.97296398 | BS30: 0 | BT30: 5.793147286 | BU30: 0.2210394685 | BV30: 0 | BW30: 30.55119249 | BX30: 0 | BY30: 0 | BZ30: 0.6996735707 | CA30: 0 | CB30: 241.6833035 | CC30: 0 | CD30: 0 | CE30: 0 | CF30: 0.7782943109 | CG30: 0 | CH30: 0.2800190812 | CI30: 0 | CJ30: 0 | CK30: 0 | CL30: 0 | CM30: 0 | CN30: 0 | CO30: 1.023394058 | CP30: 0 | CQ30: 0 | CR30: 0 | CS30: 0 | CT30: 0 | CU30: 0.2677557088 | CV30: 0 | CW30: 0.1741426184 | CX30: 0.1545905401 | CY30: 0 | CZ30: 0 | DA30: 13.116 | DB30: 13.25 | DC30: 0 | DD30: 0.416 | DE30: 0.181 | DF30: 0 | DG30: 0 | DH30: 0 | DI30: 0 | DJ30: 0 | DK30: 0 | DL30: 0.338 | DM30: 3.436 | DN30: 0 | DO30: 4.38 | DP30: 0 | DQ30: 0 | DR30: 0 | DS30: 0 | DT30: 0 | DU30: 0.05 | DV30: 5.074 | DW30: 0 | DX30: 0 | DY30: 0.212 | DZ30: 3.648 | EA30: 0 | EB30: 9.04 | EC30: 1.474 | ED30: 0 | EE30: 0.742 | EF30: 0 | EG30: 0 | EH30: 0.353 | EI30: 0 | EJ30: 0.792 | EK30: 0.385 | EL30: 1.018 | EM30: 4.235 | EN30: 0.013 | EO30: 9.078 | EP30: 0.187 | EQ30: 0 | ER30: 0 | ES30: 0.012 | ET30: 0 | EU30: 2.873 | EV30: 0.751 | EW30: 0 | EX30: 21.808 | EY30: 0.587 | EZ30: 0 | FA30: 0.283 | FB30: 27.447 | FC30: 0 | FD30: 1.092 | FE30: 0 | FF30: 0.161 | FG30: 0 | FH30: 0.298 | FI30: 0 | FJ30: 0 | FK30: 0.633 | FL30: 0 | FM30: 0.581 | FN30: 0 | FO30: 2.752 | FP30: 0 | FQ30: 0 | FR30: 0.095 | FS30: 0.064 | FT30: 0.332 | FU30: 0 | FV30: 0 | FW30: 0 | FX30: 0 | FY30: 3.672 | FZ30: - | GA30: - | GB30: 1.674
B32: Indisponibilidad mensual peninsular según clasificación RD1955/2000 (%) | C32: 2004-01-01 | D32: 2004-02-01 | E32: 2004-03-01 | F32: 2004-04-01 | G32: 2004-05-01 | H32: 2004-06-01 | I32: 2004-07-01 | J32: 2004-08-01 | K32: 2004-09-01 | L32: 2004-10-01 | M32: 2004-11-01 | N32: 2004-12-01 | O32: 2004 | P32: 2005-01-01 | Q32: 2005-02-01 | R32: 2005-03-01 | S32: 2005-04-01 | T32: 2005-05-01 | U32: 2005-06-01 | V32: 2005-07-01 | W32: 2005-08-01 | X32: 2005-09-01 | Y32: 2005-10-01 | Z32: 2005-11-01 | AA32: 2005-12-01 | AB32: 2005 | AC32: 2006-01-01 | AD32: 2006-02-01 | AE32: 2006-03-01 | AF32: 2006-04-01 | AG32: 2006-05-01 | AH32: 2006-06-01 | AI32: 2006-07-01 | AJ32: 2006-08-01 | AK32: 2006-09-01 | AL32: 2006-10-01 | AM32: 2006-11-01 | AN32: 2006-12-01 | AO32: 2006 | AP32: 2007-01-01 | AQ32: 2007-02-01 | AR32: 2007-03-01 | AS32: 2007-04-01 | AT32: 2007-05-01 | AU32: 2007-06-01 | AV32: 2007-07-01 | AW32: 2007-08-01 | AX32: 2007-09-01 | AY32: 2007-10-01 | AZ32: 2007-11-01 | BA32: 2007-12-01 | BB32: 2007 | BC32: 2008-01-01 | BD32: 2008-02-01 | BE32: 2008-03-01 | BF32: 2008-04-01 | BG32: 2008-05-01 | BH32: 2008-06-01 | BI32: 2008-07-01 | BJ32: 2008-08-01 | BK32: 2008-09-01 | BL32: 2008-10-01 | BM32: 2008-11-01 | BN32: 2008-12-01 | BO32: 2008 | BP32: 2009-01-01 | BQ32: 2009-02-01 | BR32: 2009-03-01 | BS32: 2009-04-01 | BT32: 2009-05-01 | BU32: 2009-06-01 | BV32: 2009-07-01 | BW32: 2009-08-01 | BX32: 2009-09-01 | BY32: 2009-10-01 | BZ32: 2009-11-01 | CA32: 2009-12-01 | CB32: 2009 | CC32: 2010-01-01 | CD32: 2010-02-01 | CE32: 2010-03-01 | CF32: 2010-04-01 | CG32: 2010-05-01 | CH32: 2010-06-01 | CI32: 2010-07-01 | CJ32: 2010-08-01 | CK32: 2010-09-01 | CL32: 2010-10-01 | CM32: 2010-11-01 | CN32: 2010-12-01 | CO32: 2010 | CP32: 2011-01-01 | CQ32: 2011-02-01 | CR32: 2011-03-01 | CS32: 2011-04-01 | CT32: 2011-05-01 | CU32: 2011-06-01 | CV32: 2011-07-01 | CW32: 2011-08-01 | CX32: 2011-09-01 | CY32: 2011-10-01 | CZ32: 2011-11-01 | DA32: 2011-12-01 | DB32: 2011 | DC32: 2012-01-01 | DD32: 2012-02-01 | DE32: 2012-03-01 | DF32: 2012-04-01 | DG32: 2012-05-01 | DH32: 2012-06-01 | DI32: 2012-07-01 | DJ32: 2012-08-01 | DK32: 2012-09-01 | DL32: 2012-10-01 | DM32: 2012-11-01 | DN32: 2012-12-01 | DO32: 2012 | DP32: 2013-01-01 | DQ32: 2013-02-01 | DR32: 2013-03-01 | DS32: 2013-04-01 | DT32: 2013-05-01 | DU32: 2013-06-01 | DV32: 2013-07-01 | DW32: 2013-08-01 | DX32: 2013-09-01 | DY32: 2013-10-01 | DZ32: 2013-11-01 | EA32: 2013-12-01 | EB32: 2013 | EC32: 2014-01-01 | ED32: 2014-02-01 | EE32: 2014-03-01 | EF32: 2014-04-01 | EG32: 2014-05-01 | EH32: 2014-06-01 | EI32: 2014-07-01 | EJ32: 2014-08-01 | EK32: 2014-09-01 | EL32: 2014-10-01 | EM32: 2014-11-01 | EN32: 2014-12-01 | EO32: 2014 | EP32: 2015-01-01 | EQ32: 2015-02-01 | ER32: 2015-03-01 | ES32: 2015-04-01 | ET32: 2015-05-01 | EU32: 2015-06-01 | EV32: 2015-07-01 | EW32: 2015-08-01 | EX32: 2015-09-01 | EY32: 2015-10-01 | EZ32: 2015-11-01 | FA32: 2015-12-01 | FB32: 2015 | FC32: 2016-01-01 | FD32: 2016-02-01 | FE32: 2016-03-01 | FF32: 2016-04-01 | FG32: 2016-05-01 | FH32: 2016-06-01 | FI32: 2016-07-01 | FJ32: 2016-08-01 | FK32: 2016-09-01 | FL32: 2016-10-01 | FM32: 2016-11-01 | FN32: 2016-12-01 | FO32: 2016 | FP32: 2017-01-01 | FQ32: 2017-02-01 | FR32: 2017-03-01 | FS32: 2017-04-01 | FT32: 2017-05-01 | FU32: 2017-06-01 | FV32: 2017-07-01 | FW32: 2017-08-01 | FX32: 2017-09-01 | FY32: 2017-10-01 | FZ32: 2017-11-01 | GA32: 2017-12-01 | GB32: 2017 | GC32: 2018-01-01 | GD32: 2018-02-01 | GE32: 2018-03-01 | GF32: 2018-04-01 | GG32: 2018-05-01 | GH32: 2018-06-01 | GI32: 2018-07-01 | GJ32: 2018-08-01 | GK32: 2018-09-01 | GL32: 2018-10-01 | GM32: 2018-11-01 | GN32: 2018-12-01 | GO32: 2018
B34: Mantenimiento preventivo y predictivo | C34: 0.2683672936 | D34: 0.6330700746 | E34: 1.222984621 | F34: 0.9530286068 | G34: 0.8229939695 | H34: 0.6823747569 | I34: 0.3112603099 | J34: 0.653689599 | K34: 0.776830777 | L34: 0.5080770117 | M34: 0.4034265417 | N34: 0.1413666535 | O34: 0.6116257002 | P34: 0.06481831615 | Q34: 0.2713857041 | R34: 0.6276495991 | S34: 0.9449560466 | T34: 0.9163826686 | U34: 0.5167823002 | V34: 0.278486461 | W34: 0.2381703212 | X34: 0.4832254083 | Y34: 0.3825559519 | Z34: 0.4978501195 | AA34: 0.1019721789 | AB34: 0.4424601662 | AC34: 0.02115693842 | AD34: 0.2624958404 | AE34: 0.3397185216 | AF34: 0.3222498613 | AG34: 0.9494537849 | AH34: 0.6329437495 | AI34: 0.1750796812 | AJ34: 0.4521602778 | AK34: 0.427934694 | AL34: 0.7106197035 | AM34: 0.5895445627 | AN34: 0.085898713 | AO34: 0.4145577457 | AP34: 0.07 | AQ34: 0.11 | AR34: 0.28 | AS34: 0.44 | AT34: 0.39 | AU34: 0.32 | AV34: 0.18 | AW34: 0.29 | AX34: 0.37 | AY34: 0.22 | AZ34: 0.18 | BA34: 0.05 | BB34: 0.24 | BC34: 0.01 | BD34: 0.18 | BE34: 0.14 | BF34: 0.43 | BG34: 0.47 | BH34: 0.39 | BI34: 0.59 | BJ34: 0.42 | BK34: 0.66 | BL34: 0.47 | BM34: 0.39 | BN34: 0.2 | BO34: 0.36 | BP34: 0.13 | BQ34: 0.24 | BR34: 0.35 | BS34: 0.48 | BT34: 0.63 | BU34: 0.6 | BV34: 0.55 | BW34: 0.36 | BX34: 0.51 | BY34: 0.45 | BZ34: 0.45 | CA34: 0.05 | CB34: 0.4 | CC34: 0.07 | CD34: 0.35 | CE34: 0.36 | CF34: 0.47 | CG34: 0.75 | CH34: 0.51 | CI34: 0.36 | CJ34: 0.42 | CK34: 0.77 | CL34: 0.57 | CM34: 0.83 | CN34: 0.09 | CO34: 0.46 | CP34: 0.16 | CQ34: 0.23 | CR34: 0.39 | CS34: 0.31 | CT34: 0.67 | CU34: 0.45 | CV34: 0.44 | CW34: 0.35 | CX34: 0.81 | CY34: 0.79 | CZ34: 0.55 | DA34: 0.25 | DB34: 0.45 | DC34: 0.06 | DD34: 0.26 | DE34: 0.5 | DF34: 0.41 | DG34: 0.59 | DH34: 0.43 | DI34: 0.26 | DJ34: 0.32 | DK34: 0.6 | DL34: 0.73 | DM34: 0.7 | DN34: 0.18 | DO34: 0.42 | DP34: 0.09 | DQ34: 0.24 | DR34: 0.3 | DS34: 0.88 | DT34: 1.01 | DU34: 0.68 | DV34: 0.51 | DW34: 0.72 | DX34: 0.88 | DY34: 0.72 | DZ34: 0.53 | EA34: 0.18 | EB34: 0.56 | EC34: 0.07 | ED34: 0.19 | EE34: 0.7 | EF34: 0.76 | EG34: 0.69 | EH34: 0.85 | EI34: 0.63 | EJ34: 0.65 | EK34: 0.97 | EL34: 1.02 | EM34: 0.68 | EN34: 0.16 | EO34: 0.62 | EP34: 0.03 | EQ34: 0.3 | ER34: 0.68 | ES34: 0.61 | ET34: 0.69 | EU34: 0.66 | EV34: 0.61 | EW34: 0.5 | EX34: 1.07 | EY34: 1.09 | EZ34: 1.15 | FA34: 0.31 | FB34: 0.64 | FC34: 0.09 | FD34: 0.5 | FE34: 0.64 | FF34: 0.79 | FG34: 1.01 | FH34: 0.81 | FI34: 0.74 | FJ34: 0.75 | FK34: 1.12 | FL34: 1.1 | FM34: 1.1 | FN34: 0.15 | FO34: 0.73 | FP34: 0.19 | FQ34: 0.42 | FR34: 0.74 | FS34: 0.78 | FT34: 1.04 | FU34: 0.94 | FV34: 0.56 | FW34: 0.71 | FX34: 0.84 | FY34: 1.24 | FZ34: 1.29 | GA34: 0.37 | GB34: 0.76 | GC34: 0.1 | GD34: 0.48 | GE34: 0.32 | GF34: 0.94 | GG34: 1.2 | GH34: 0.75 | GI34: 0.53 | GJ34: 0.64 | GK34: 1.4 | GL34: 1.27 | GM34: - | GN34: - | GO34: 0.76
B35: Causas ajenas al mantenimiento | C35: 0.6273701899 | D35: 0.7056792209 | E35: 0.429314523 | F35: 1.035454222 | G35: 0.7608536102 | H35: 1.132196673 | I35: 0.492022099 | J35: 0.5457460259 | K35: 1.117348334 | L35: 1.933426393 | M35: 1.294413648 | N35: 0.433939064 | O35: 0.8871063771 | P35: 0.1748860608 | Q35: 0.1430174172 | R35: 0.7049642117 | S35: 0.9073499484 | T35: 1.374873385 | U35: 0.7991757813 | V35: 0.3671687602 | W35: 0.9530564345 | X35: 1.7024179 | Y35: 1.477512928 | Z35: 1.430242 | AA35: 0.499809163 | AB35: 0.8800522107 | AC35: 0.08300018691 | AD35: 0.1748245848 | AE35: 0.6726164009 | AF35: 1.034551938 | AG35: 1.185308217 | AH35: 0.6480145955 | AI35: 0.8923292448 | AJ35: 1.735972203 | AK35: 1.093838283 | AL35: 1.736574076 | AM35: 1.585568378 | AN35: 0.5277599473 | AO35: 0.954328208 | AP35: 0.54 | AQ35: 0.57 | AR35: 1.11 | AS35: 1.33 | AT35: 1.7 | AU35: 1.53 | AV35: 1.07 | AW35: 1.92 | AX35: 1.69 | AY35: 2.31 | AZ35: 1.65 | BA35: 0.35 | BB35: 1.32 | BC35: 0.16 | BD35: 0.42 | BE35: 1.12 | BF35: 1.28 | BG35: 1.68 | BH35: 1.06 | BI35: 0.76 | BJ35: 1.96 | BK35: 2.22 | BL35: 2.55 | BM35: 2.03 | BN35: 0.31 | BO35: 1.3 | BP35: 0.01 | BQ35: 0.19 | BR35: 1.23 | BS35: 1.53 | BT35: 1.94 | BU35: 1.5 | BV35: 1.1 | BW35: 1.45 | BX35: 1.75 | BY35: 2.42 | BZ35: 1.93 | CA35: 0.55 | CB35: 1.31 | CC35: 0.43 | CD35: 0.76 | CE35: 1.07 | CF35: 1.94 | CG35: 1.87 | CH35: 1.68 | CI35: 0.75 | CJ35: 1.48 | CK35: 1.52 | CL35: 1.98 | CM35: 1.58 | CN35: 0.73 | CO35: 1.32 | CP35: 0.16 | CQ35: 0.54 | CR35: 1.3 | CS35: 1.38 | CT35: 2.04 | CU35: 1.55 | CV35: 1.67 | CW35: 2.52 | CX35: 2.19 | CY35: 2.93 | CZ35: 2.05 | DA35: 1.02 | DB35: 1.63 | DC35: 0.57 | DD35: 1.01 | DE35: 2.39 | DF35: 2.25 | DG35: 2.2 | DH35: 1.42 | DI35: 1.35 | DJ35: 1.65 | DK35: 1.8 | DL35: 2.57 | DM35: 1.53 | DN35: 0.34 | DO35: 1.59 | DP35: 0.13 | DQ35: 0.45 | DR35: 0.33 | DS35: 1.06 | DT35: 1.28 | DU35: 1.31 | DV35: 1.2 | DW35: 1.5 | DX35: 1.61 | DY35: 2.05 | DZ35: 1.86 | EA35: 0.41 | EB35: 1.1 | EC35: 0.23 | ED35: 0.57 | EE35: 0.86 | EF35: 0.65 | EG35: 1.62 | EH35: 0.82 | EI35: 1.32 | EJ35: 1.11 | EK35: 1.64 | EL35: 1.69 | EM35: 1.23 | EN35: 0.49 | EO35: 1.02 | EP35: 0.54 | EQ35: 1.46 | ER35: 1.53 | ES35: 1.61 | ET35: 1.79 | EU35: 1.55 | EV35: 1.07 | EW35: 1.24 | EX35: 1.82 | EY35: 1.25 | EZ35: 0.72 | FA35: 0.25 | FB35: 1.23 | FC35: 0.08 | FD35: 0.35 | FE35: 1.06 | FF35: 0.9 | FG35: 1.05 | FH35: 0.73 | FI35: 0.8 | FJ35: 1.09 | FK35: 1.39 | FL35: 0.99 | FM35: 1.15 | FN35: 0.51 | FO35: 0.84 | FP35: 0.13 | FQ35: 0.36 | FR35: 0.45 | FS35: 0.79 | FT35: 1.16 | FU35: 0.99 | FV35: 0.57 | FW35: 1.15 | FX35: 1.23 | FY35: 1.61 | FZ35: 1.15 | GA35: 0.29 | GB35: 0.82 | GC35: 0.08 | GD35: 0.38 | GE35: 0.73 | GF35: 1.12 | GG35: 1.25 | GH35: 1.28 | GI35: 0.97 | GJ35: 1.13 | GK35: 1.38 | GL35: 1.64 | GM35: - | GN35: - | GO35: 1
B36: Mantenimiento correctivo | C36: 0.3725128073 | D36: 0.03814915347 | E36: 0.1386216369 | F36: 0.4183107848 | G36: 0.4618727468 | H36: 0.1762085923 | I36: 0.09142138397 | J36: 0.1207632554 | K36: 0.09350377543 | L36: 0.04528805575 | M36: 0.1542423114 | N36: 0.217852513 | O36: 0.1939765463 | P36: 0.3013562841 | Q36: 0.4704673657 | R36: 0.30815697 | S36: 0.2892047754 | T36: 0.2380222211 | U36: 0.2387308464 | V36: 0.293169707 | W36: 0.2489251059 | X36: 0.4154978484 | Y36: 0.2965375304 | Z36: 0.2617825601 | AA36: 0.4152743313 | AB36: 0.3148948021 | AC36: 0.3196264461 | AD36: 0.2469311751 | AE36: 0.2757853228 | AF36: 0.1678775501 | AG36: 0.164898537 | AH36: 0.1633613648 | AI36: 0.32375911 | AJ36: 0.2527659669 | AK36: 0.2230237431 | AL36: 0.3564129846 | AM36: 0.3124117045 | AN36: 0.3296883457 | AO36: 0.2621984467 | AP36: 0.3 | AQ36: 0.38 | AR36: 0.35 | AS36: 0.32 | AT36: 0.45 | AU36: 0.48 | AV36: 0.2 | AW36: 0.25 | AX36: 0.26 | AY36: 0.28 | AZ36: 0.31 | BA36: 0.14 | BB36: 0.31 | BC36: 0.18 | BD36: 0.17 | BE36: 0.25 | BF36: 0.15 | BG36: 0.16 | BH36: 0.25 | BI36: 0.14 | BJ36: 0.2 | BK36: 0.18 | BL36: 0.27 | BM36: 0.33 | BN36: 0.18 | BO36: 0.2 | BP36: 0.22 | BQ36: 0.33 | BR36: 0.27 | BS36: 0.19 | BT36: 0.14 | BU36: 0.21 | BV36: 0.27 | BW36: 0.2 | BX36: 0.19 | BY36: 0.14 | BZ36: 0.15 | CA36: 0.16 | CB36: 0.2 | CC36: 0.24 | CD36: 0.19 | CE36: 0.09 | CF36: 0.17 | CG36: 0.27 | CH36: 0.52 | CI36: 0.31 | CJ36: 0.18 | CK36: 0.23 | CL36: 0.35 | CM36: 0.31 | CN36: 0.29 | CO36: 0.26 | CP36: 0.11 | CQ36: 0.15 | CR36: 0.2 | CS36: 0.12 | CT36: 0.17 | CU36: 0.21 | CV36: 0.16 | CW36: 0.19 | CX36: 0.13 | CY36: 0.19 | CZ36: 0.3 | DA36: 0.22 | DB36: 0.18 | DC36: 0.34 | DD36: 0.4 | DE36: 0.16 | DF36: 0.17 | DG36: 0.23 | DH36: 0.25 | DI36: 0.23 | DJ36: 0.16 | DK36: 0.1 | DL36: 0.14 | DM36: 0.13 | DN36: 0.07 | DO36: 0.2 | DP36: 0.14 | DQ36: 0.15 | DR36: 0.05 | DS36: 0.04 | DT36: 0.14 | DU36: 0.36 | DV36: 0.07 | DW36: 0.06 | DX36: 0.05 | DY36: 0.13 | DZ36: 0.16 | EA36: 0.12 | EB36: 0.12 | EC36: 0.09 | ED36: 0.13 | EE36: 0.08 | EF36: 0.05 | EG36: 0.16 | EH36: 0.1 | EI36: 0.21 | EJ36: 0.06 | EK36: 0.16 | EL36: 0.25 | EM36: 0.38 | EN36: 0.3 | EO36: 0.17 | EP36: 0.22 | EQ36: 0.5 | ER36: 0.5 | ES36: 0.08 | ET36: 0.21 | EU36: 0.21 | EV36: 0.04 | EW36: 0.04 | EX36: 0.05 | EY36: 0.15 | EZ36: 0.15 | FA36: 0.06 | FB36: 0.18 | FC36: 0.1 | FD36: 0.17 | FE36: 0.19 | FF36: 0.2 | FG36: 0.09 | FH36: 0.18 | FI36: 0.05 | FJ36: 0.08 | FK36: 0.06 | FL36: 0.09 | FM36: 0.09 | FN36: 0.06 | FO36: 0.11 | FP36: 0.1 | FQ36: 0.22 | FR36: 0.21 | FS36: 0.33 | FT36: 0.22 | FU36: 0.05 | FV36: 0.05 | FW36: 0.03 | FX36: 0.01 | FY36: 0.03 | FZ36: 0.04 | GA36: 0.13 | GB36: 0.12 | GC36: 0.1 | GD36: 0.28 | GE36: 0.25 | GF36: 0.1 | GG36: 0.06 | GH36: 0.06 | GI36: 0.05 | GJ36: 0.08 | GK36: 0.05 | GL36: 0.16 | GM36: - | GN36: - | GO36: 0.12
B37: Circunstancias fortuitas previstas en las condiciones de diseño | C37: 0.02458406313 | D37: 0.02307694376 | E37: 0.002013786663 | F37: 0.02461080001 | G37: 0.01416905149 | H37: 0.1159940221 | I37: 0.1500021383 | J37: 0.1534973734 | K37: 0.137428036 | L37: 0.1463865984 | M37: 0.1308579942 | N37: 0.09528846185 | O37: 0.08564658984 | P37: 0.01609799014 | Q37: 0.008894299338 | R37: 0.003344213157 | S37: 0.0126177376 | T37: 0.00229761144 | U37: 0.01205392884 | V37: 0.01633809817 | W37: 0.02268994211 | X37: 0.00919071 | Y37: 0.0241283862 | Z37: 0.01328330396 | AA37: 0.03035218722 | AB37: 0.01474216572 | AC37: 0.02530560642 | AD37: 0.0057334152 | AE37: 0.03704634828 | AF37: 0.007831877845 | AG37: 0.007278171617 | AH37: 0.005703867344 | AI37: 0.03509499738 | AJ37: 0.01883707775 | AK37: 0.01801928692 | AL37: 0.01148603275 | AM37: 0.01174271995 | AN37: 0.01162040906 | AO37: 0.01644793616 | AP37: 0.04 | AQ37: 0.02 | AR37: 0.04 | AS37: 0.01 | AT37: 0.01 | AU37: 0.02 | AV37: 0.02 | AW37: 0.05 | AX37: 0.02 | AY37: 0.01 | AZ37: 0.02 | BA37: 0.01 | BB37: 0.02 | BC37: 0.01 | BD37: 0.01 | BE37: 0.01 | BF37: 0 | BG37: 0.01 | BH37: 0.02 | BI37: 0.03 | BJ37: 0.01 | BK37: 0.01 | BL37: 0.01 | BM37: 0.02 | BN37: 0.01 | BO37: 0.01 | BP37: 0.07 | BQ37: 0.01 | BR37: 0.02 | BS37: 0.01 | BT37: 0.01 | BU37: 0.01 | BV37: 0.02 | BW37: 0.02 | BX37: 0.01 | BY37: 0 | BZ37: 0.01 | CA37: 0.01 | CB37: 0.02 | CC37: 0.01 | CD37: 0.03 | CE37: 0.01 | CF37: 0.01 | CG37: 0 | CH37: 0 | CI37: 0.01 | CJ37: 0.01 | CK37: 0 | CL37: 0.01 | CM37: 0.01 | CN37: 0.01 | CO37: 0.01 | CP37: 0 | CQ37: 0.01 | CR37: 0.01 | CS37: 0.01 | CT37: 0.01 | CU37: 0.01 | CV37: 0.01 | CW37: 0.01 | CX37: 0.01 | CY37: 0.02 | CZ37: 0 | DA37: 0.01 | DB37: 0.01 | DC37: 0.02 | DD37: 0.02 | DE37: 0.01 | DF37: 0 | DG37: 0 | DH37: 0.01 | DI37: 0 | DJ37: 0.01 | DK37: 0.01 | DL37: 0 | DM37: 0.01 | DN37: 0 | DO37: 0.01 | DP37: 0.01 | DQ37: 0.03 | DR37: 0.01 | DS37: 0 | DT37: 0.01 | DU37: 0.01 | DV37: 0 | DW37: 0 | DX37: 0 | DY37: 0 | DZ37: 0.01 | EA37: 0.01 | EB37: 0.01 | EC37: 0 | ED37: 0.01 | EE37: 0.01 | EF37: 0 | EG37: 0 | EH37: 0 | EI37: 0.01 | EJ37: 0 | EK37: 0 | EL37: 0 | EM37: 0.01 | EN37: 0 | EO37: 0 | EP37: 0.01 | EQ37: 0.02 | ER37: 0.01 | ES37: 0.01 | ET37: 0 | EU37: 0.02 | EV37: 0 | EW37: 0.01 | EX37: 0.01 | EY37: 0.03 | EZ37: 0 | FA37: 0.01 | FB37: 0.01 | FC37: 0.01 | FD37: 0.01 | FE37: 0.01 | FF37: 0 | FG37: 0 | FH37: 0.01 | FI37: 0 | FJ37: 0.01 | FK37: 0.01 | FL37: 0.01 | FM37: 0.01 | FN37: 0 | FO37: 0.01 | FP37: 0.05 | FQ37: 0.03 | FR37: 0.02 | FS37: 0.01 | FT37: 0 | FU37: 0.01 | FV37: 0.01 | FW37: 0.01 | FX37: 0 | FY37: 0 | FZ37: 0 | GA37: 0 | GB37: 0.01 | GC37: 0 | GD37: 0.03 | GE37: 0.01 | GF37: 0 | GG37: 0 | GH37: 0 | GI37: 0 | GJ37: 0 | GK37: 0.01 | GL37: 0 | GM37: - | GN37: - | GO37: 0.01
B38: Causa de fuerza mayor o acciones de terceros | C38: 0.09203836438 | D38: 0.09356382426 | E38: 0.09098599948 | F38: 0.2751258943 | G38: 0.1910219998 | H38: 0.3199517838 | I38: 0.1906585886 | J38: 0.2692128819 | K38: 0.3773482617 | L38: 0.1778958984 | M38: 0.4607615433 | N38: 0.1924652069 | O38: 0.227831982 | P38: 0.08223731676 | Q38: 0.1269815881 | R38: 0.2978305288 | S38: 0.2212455463 | T38: 0.1661661248 | U38: 0.1880094925 | V38: 0.3826732556 | W38: 0.3188043854 | X38: 0.07393174938 | Y38: 0.1703932725 | Z38: 0.285547397 | AA38: 0.07259670068 | AB38: 0.1896086505 | AC38: 0.08623688083 | AD38: 0.1183418071 | AE38: 0.3925841831 | AF38: 0.3684587464 | AG38: 0.3836325176 | AH38: 0.1454672305 | AI38: 0.1451526633 | AJ38: 0.09982107425 | AK38: 0.270783766 | AL38: 0.3834225882 | AM38: 0.2704312631 | AN38: 0.1839263826 | AO38: 0.2380529377 | AP38: 0.08 | AQ38: 0.18 | AR38: 0.24 | AS38: 0.23 | AT38: 0.54 | AU38: 0.53 | AV38: 0.7 | AW38: 0.81 | AX38: 1.15 | AY38: 1.13 | AZ38: 0.86 | BA38: 0.55 | BB38: 0.62 | BC38: 0.31 | BD38: 0.48 | BE38: 0.36 | BF38: 0.29 | BG38: 0.48 | BH38: 0.79 | BI38: 0.49 | BJ38: 0.39 | BK38: 0.54 | BL38: 0.6 | BM38: 0.61 | BN38: 0.27 | BO38: 0.47 | BP38: 0.77 | BQ38: 1.62 | BR38: 0.16 | BS38: 0.13 | BT38: 0.43 | BU38: 0.62 | BV38: 0.16 | BW38: 0.31 | BX38: 0.34 | BY38: 0.43 | BZ38: 0.26 | CA38: 0.14 | CB38: 0.44 | CC38: 0.17 | CD38: 0.18 | CE38: 0.39 | CF38: 0.46 | CG38: 0.28 | CH38: 0.23 | CI38: 0.27 | CJ38: 0.25 | CK38: 0.35 | CL38: 0.38 | CM38: 0.31 | CN38: 0.34 | CO38: 0.3 | CP38: 0.06 | CQ38: 0.18 | CR38: 0.04 | CS38: 0.16 | CT38: 0.13 | CU38: 0.31 | CV38: 0.17 | CW38: 0.2 | CX38: 0.32 | CY38: 0.18 | CZ38: 0.25 | DA38: 0.06 | DB38: 0.17 | DC38: 0.15 | DD38: 0.06 | DE38: 0.03 | DF38: 0.16 | DG38: 0.11 | DH38: 0.18 | DI38: 0.09 | DJ38: 0.13 | DK38: 0.22 | DL38: 0.21 | DM38: 0.39 | DN38: 0.2 | DO38: 0.16 | DP38: 0.1 | DQ38: 0.11 | DR38: 0.48 | DS38: 0.49 | DT38: 0.38 | DU38: 0.25 | DV38: 0.26 | DW38: 0.22 | DX38: 0.17 | DY38: 0.66 | DZ38: 0.4 | EA38: 0.19 | EB38: 0.31 | EC38: 0.18 | ED38: 0.21 | EE38: 0.23 | EF38: 0.31 | EG38: 0.28 | EH38: 0.16 | EI38: 0.16 | EJ38: 0.23 | EK38: 0.1 | EL38: 0.4 | EM38: 0.39 | EN38: 0.15 | EO38: 0.23 | EP38: 0.15 | EQ38: 0.07 | ER38: 0.12 | ES38: 0.09 | ET38: 0.2 | EU38: 0.14 | EV38: 0.28 | EW38: 0.19 | EX38: 0.11 | EY38: 0.24 | EZ38: 0.16 | FA38: 0.11 | FB38: 0.16 | FC38: 0.07 | FD38: 0.1 | FE38: 0.16 | FF38: 0.19 | FG38: 0.27 | FH38: 0.32 | FI38: 0.18 | FJ38: 0.18 | FK38: 0.26 | FL38: 0.17 | FM38: 0.21 | FN38: 0.16 | FO38: 0.19 | FP38: 0.09 | FQ38: 0.89 | FR38: 1.02 | FS38: 0.98 | FT38: 0.21 | FU38: 0.29 | FV38: 0.25 | FW38: 0.36 | FX38: 0.52 | FY38: 0.45 | FZ38: 0.34 | GA38: 0.09 | GB38: 0.45 | GC38: 0.05 | GD38: 0.01 | GE38: 0.59 | GF38: 0.51 | GG38: 0.16 | GH38: 0.2 | GI38: 0.3 | GJ38: 0.17 | GK38: 0.16 | GL38: 0.33 | GM38: - | GN38: - | GO38: 0.25
B39: Sin clasificar (*) | C39: 0.001837329811 | D39: 0.0004770159257 | E39: 0.005832169855 | F39: 0.0003680276084 | G39: 0.006361540931 | H39: 0.0003825753705 | I39: 0.004864426409 | J39: 0.02927393274 | K39: 0.003270076903 | L39: 0.003131969856 | M39: 0.0009338478676 | N39: 0.0007544041278 | O39: 0.004864016234 | P39: 0 | Q39: 0 | R39: 0 | S39: 0 | T39: 0 | U39: 0 | V39: 0 | W39: 0 | X39: 0 | Y39: 0 | Z39: 0 | AA39: 0 | AB39: 0 | AC39: 0 | AD39: 0 | AE39: 0 | AF39: 0 | AG39: 0 | AH39: 0 | AI39: 0 | AJ39: 0 | AK39: 0 | AL39: 0 | AM39: 0 | AN39: 0 | AO39: 0 | AP39: 0 | AQ39: 0 | AR39: 0 | AS39: 0 | AT39: 0 | AU39: 0 | AV39: 0 | AW39: 0 | AX39: 0 | AY39: 0 | AZ39: 0 | BA39: 0 | BB39: 0 | BC39: 0 | BD39: 0 | BE39: 0 | BF39: 0 | BG39: 0 | BH39: 0 | BI39: 0 | BJ39: 0 | BK39: 0 | BL39: 0 | BM39: 0 | BN39: 0 | BO39: 0 | BP39: 0 | BQ39: 0 | BR39: 0 | BS39: 0 | BT39: 0 | BU39: 0 | BV39: 0 | BW39: 0 | BX39: 0 | BY39: 0 | BZ39: 0 | CA39: 0 | CB39: 0 | CC39: 0 | CD39: 0 | CE39: 0 | CF39: 0 | CG39: 0 | CH39: 0 | CI39: 0 | CJ39: 0 | CK39: 0 | CL39: 0 | CM39: 0 | CN39: 0 | CO39: 0 | CP39: 0 | CQ39: 0 | CR39: 0 | CS39: 0 | CT39: 0 | CU39: 0 | CV39: 0 | CW39: 0 | CX39: 0 | CY39: 0 | CZ39: 0 | DA39: 0 | DB39: 0 | DC39: 0 | DD39: 0 | DE39: 0 | DF39: 0 | DG39: 0 | DH39: 0 | DI39: 0 | DJ39: 0 | DK39: 0 | DL39: 0 | DM39: 0 | DN39: 0 | DO39: 0 | DP39: 0 | DQ39: 0 | DR39: 0 | DS39: 0 | DT39: 0 | DU39: 0 | DV39: 0 | DW39: 0 | DX39: 0 | DY39: 0 | DZ39: 0 | EA39: 0 | EB39: 0 | EC39: 0 | ED39: 0 | EE39: 0 | EF39: 0 | EG39: 0 | EH39: 0 | EI39: 0 | EJ39: 0 | EK39: 0 | EL39: 0 | EM39: 0 | EN39: 0 | EO39: 0 | EP39: 0 | EQ39: 0 | ER39: 0 | ES39: 0 | ET39: 0 | EU39: 0 | EV39: 0 | EW39: 0 | EX39: 0 | EY39: 0 | EZ39: 0 | FA39: 0 | FB39: 0 | FC39: 0 | FD39: 0 | FE39: 0 | FF39: 0 | FG39: 0 | FH39: 0 | FI39: 0 | FJ39: 0 | FK39: 0 | FL39: 0 | FM39: 0 | FN39: 0 | FO39: 0 | FP39: 0 | FQ39: 0 | FR39: 0 | FS39: 0 | FT39: 0 | FU39: 0 | FV39: 0 | FW39: 0 | FX39: 0 | FY39: 0 | FZ39: 0 | GA39: 0 | GB39: 0 | GC39: 0 | GD39: 0 | GE39: 0 | GF39: 0 | GG39: 0 | GH39: 0 | GI39: 0 | GJ39: 0 | GK39: 0 | GL39: 0 | GM39: - | GN39: - | GO39: 0
B40: Total | C40: 1.294671684 | D40: 1.400452409 | E40: 1.798766737 | F40: 2.431772442 | G40: 2.066250919 | H40: 2.107156619 | I40: 1.049570358 | J40: 1.502970186 | K40: 2.128381 | L40: 2.636310029 | M40: 1.983874343 | N40: 0.8892010965 | O40: 1.78321923 | P40: 0.5571586512 | Q40: 0.8937647864 | R40: 1.644114994 | S40: 2.154128508 | T40: 2.531575886 | U40: 1.566742857 | V40: 0.9551630263 | W40: 1.462841804 | X40: 2.610331867 | Y40: 2.180734796 | Z40: 2.203157983 | AA40: 1.04740786 | AB40: 1.652149345 | AC40: 0.4490891779 | AD40: 0.6899850155 | AE40: 1.325166594 | AF40: 1.532511227 | AG40: 2.306938711 | AH40: 1.450023577 | AI40: 1.426263033 | AJ40: 2.459735525 | AK40: 1.762816007 | AL40: 2.815092797 | AM40: 2.499267365 | AN40: 0.9549674151 | AO40: 1.647532337 | AP40: 0.94 | AQ40: 1.08 | AR40: 1.78 | AS40: 2.1 | AT40: 2.55 | AU40: 2.36 | AV40: 1.48 | AW40: 2.51 | AX40: 2.34 | AY40: 2.82 | AZ40: 2.15 | BA40: 0.55 | BB40: 1.89 | BC40: 0.36 | BD40: 0.77 | BE40: 1.52 | BF40: 1.86 | BG40: 2.33 | BH40: 1.72 | BI40: 1.53 | BJ40: 2.59 | BK40: 3.07 | BL40: 3.3 | BM40: 2.78 | BN40: 0.7 | BO40: 1.88 | BP40: 0.42 | BQ40: 0.76 | BR40: 1.87 | BS40: 2.21 | BT40: 2.72 | BU40: 2.32 | BV40: 1.94 | BW40: 2.04 | BX40: 2.46 | BY40: 3.01 | BZ40: 2.55 | CA40: 0.77 | CB40: 1.93 | CC40: 0.74 | CD40: 1.33 | CE40: 1.53 | CF40: 2.59 | CG40: 2.9 | CH40: 2.72 | CI40: 1.43 | CJ40: 2.09 | CK40: 2.51 | CL40: 2.9 | CM40: 2.73 | CN40: 1.12 | CO40: 2.05 | CP40: 0.43 | CQ40: 0.93 | CR40: 1.9 | CS40: 1.83 | CT40: 2.9 | CU40: 2.22 | CV40: 2.28 | CW40: 3.07 | CX40: 3.13 | CY40: 3.93 | CZ40: 2.91 | DA40: 1.49 | DB40: 2.27 | DC40: 0.99 | DD40: 1.68 | DE40: 3.06 | DF40: 2.83 | DG40: 3.02 | DH40: 2.1 | DI40: 1.84 | DJ40: 2.13 | DK40: 2.51 | DL40: 3.45 | DM40: 2.37 | DN40: 0.6 | DO40: 2.21 | DP40: 0.38 | DQ40: 0.87 | DR40: 0.69 | DS40: 1.98 | DT40: 2.43 | DU40: 2.36 | DV40: 1.78 | DW40: 2.29 | DX40: 2.54 | DY40: 2.9 | DZ40: 2.56 | EA40: 0.72 | EB40: 1.8 | EC40: 0.39 | ED40: 0.9 | EE40: 1.64 | EF40: 1.47 | EG40: 2.47 | EH40: 1.77 | EI40: 2.17 | EJ40: 1.82 | EK40: 2.78 | EL40: 2.96 | EM40: 2.29 | EN40: 0.95 | EO40: 1.81 | EP40: 0.8 | EQ40: 2.29 | ER40: 2.72 | ES40: 2.29 | ET40: 2.69 | EU40: 2.44 | EV40: 1.72 | EW40: 1.79 | EX40: 2.95 | EY40: 2.51 | EZ40: 2.01 | FA40: 0.63 | FB40: 2.06 | FC40: 0.28 | FD40: 1.03 | FE40: 1.9 | FF40: 1.89 | FG40: 2.15 | FH40: 1.73 | FI40: 1.59 | FJ40: 1.93 | FK40: 2.58 | FL40: 2.19 | FM40: 2.35 | FN40: 0.72 | FO40: 1.67 | FP40: 0.47 | FQ40: 1.03 | FR40: 1.42 | FS40: 1.91 | FT40: 2.42 | FU40: 1.99 | FV40: 1.19 | FW40: 1.9 | FX40: 2.08 | FY40: 2.88 | FZ40: 2.48 | GA40: 0.79 | GB40: 1.71 | GC40: 0.28 | GD40: 1.17 | GE40: 1.31 | GF40: 2.16 | GG40: 2.51 | GH40: 2.09 | GI40: 1.55 | GJ40: 1.85 | GK40: 2.84 | GL40: 3.07 | GM40: - | GN40: - | GO40: 1.89
B42: Indisponibilidad mensual Islas Baleares según clasificación RD1955/2000 (%) | C42: 2005-01-01 | D42: 2005-02-01 | E42: 2005-03-01 | F42: 2005-04-01 | G42: 2005-05-01 | H42: 2005-06-01 | I42: 2005-07-01 | J42: 2005-08-01 | K42: 2005-09-01 | L42: 2005-10-01 | M42: 2005-11-01 | N42: 2005-12-01 | O42: 2005 | P42: 2006-01-01 | Q42: 2006-02-01 | R42: 2006-03-01 | S42: 2006-04-01 | T42: 2006-05-01 | U42: 2006-06-01 | V42: 2006-07-01 | W42: 2006-08-01 | X42: 2006-09-01 | Y42: 2006-10-01 | Z42: 2006-11-01 | AA42: 2006-12-01 | AB42: 2006 | AC42: 2007-01-01 | AD42: 2007-02-01 | AE42: 2007-03-01 | AF42: 2007-04-01 | AG42: 2007-05-01 | AH42: 2007-06-01 | AI42: 2007-07-01 | AJ42: 2007-08-01 | AK42: 2007-09-01 | AL42: 2007-10-01 | AM42: 2007-11-01 | AN42: 2007-12-01 | AO42: 2007 | AP42: 2008-01-01 | AQ42: 2008-02-01 | AR42: 2008-03-01 | AS42: 2008-04-01 | AT42: 2008-05-01 | AU42: 2008-06-01 | AV42: 2008-07-01 | AW42: 2008-08-01 | AX42: 2008-09-01 | AY42: 2008-10-01 | AZ42: 2008-11-01 | BA42: 2008-12-01 | BB42: 2008 | BC42: 2009-01-01 | BD42: 2009-02-01 | BE42: 2009-03-01 | BF42: 2009-04-01 | BG42: 2009-05-01 | BH42: 2009-06-01 | BI42: 2009-07-01 | BJ42: 2009-08-01 | BK42: 2009-09-01 | BL42: 2009-10-01 | BM42: 2009-11-01 | BN42: 2009-12-01 | BO42: 2009 | BP42: 2010-01-01 | BQ42: 2010-02-01 | BR42: 2010-03-01 | BS42: 2010-04-01 | BT42: 2010-05-01 | BU42: 2010-06-01 | BV42: 2010-07-01 | BW42: 2010-08-01 | BX42: 2010-09-01 | BY42: 2010-10-01 | BZ42: 2010-11-01 | CA42: 2010-12-01 | CB42: 2010 | CC42: 2011-01-01 | CD42: 2011-02-01 | CE42: 2011-03-01 | CF42: 2011-04-01 | CG42: 2011-05-01 | CH42: 2011-06-01 | CI42: 2011-07-01 | CJ42: 2011-08-01 | CK42: 2011-09-01 | CL42: 2011-10-01 | CM42: 2011-11-01 | CN42: 2011-12-01 | CO42: 2011 | CP42: 2012-01-01 | CQ42: 2012-02-01 | CR42: 2012-03-01 | CS42: 2012-04-01 | CT42: 2012-05-01 | CU42: 2012-06-01 | CV42: 2012-07-01 | CW42: 2012-08-01 | CX42: 2012-09-01 | CY42: 2012-10-01 | CZ42: 2012-11-01 | DA42: 2012-12-01 | DB42: 2012 | DC42: 2013-01-01 | DD42: 2013-02-01 | DE42: 2013-03-01 | DF42: 2013-04-01 | DG42: 2013-05-01 | DH42: 2013-06-01 | DI42: 2013-07-01 | DJ42: 2013-08-01 | DK42: 2013-09-01 | DL42: 2013-10-01 | DM42: 2013-11-01 | DN42: 2013-12-01 | DO42: 2013 | DP42: 2014-01-01 | DQ42: 2014-02-01 | DR42: 2014-03-01 | DS42: 2014-04-01 | DT42: 2014-05-01 | DU42: 2014-06-01 | DV42: 2014-07-01 | DW42: 2014-08-01 | DX42: 2014-09-01 | DY42: 2014-10-01 | DZ42: 2014-11-01 | EA42: 2014-12-01 | EB42: 2014 | EC42: 2015-01-01 | ED42: 2015-02-01 | EE42: 2015-03-01 | EF42: 2015-04-01 | EG42: 2015-05-01 | EH42: 2015-06-01 | EI42: 2015-07-01 | EJ42: 2015-08-01 | EK42: 2015-09-01 | EL42: 2015-10-01 | EM42: 2015-11-01 | EN42: 2015-12-01 | EO42: 2015 | EP42: 2016-01-01 | EQ42: 2016-02-01 | ER42: 2016-03-01 | ES42: 2016-04-01 | ET42: 2016-05-01 | EU42: 2016-06-01 | EV42: 2016-07-01 | EW42: 2016-08-01 | EX42: 2016-09-01 | EY42: 2016-10-01 | EZ42: 2016-11-01 | FA42: 2016-12-01 | FB42: 2016 | FC42: 2017-01-01 | FD42: 2017-02-01 | FE42: 2017-03-01 | FF42: 2017-04-01 | FG42: 2017-05-01 | FH42: 2017-06-01 | FI42: 2017-07-01 | FJ42: 2017-08-01 | FK42: 2017-09-01 | FL42: 2017-10-01 | FM42: 2017-11-01 | FN42: 2017-12-01 | FO42: 2017 | FP42: 2018-01-01 | FQ42: 2018-02-01 | FR42: 2018-03-01 | FS42: 2018-04-01 | FT42: 2018-05-01 | FU42: 2018-06-01 | FV42: 2018-07-01 | FW42: 2018-08-01 | FX42: 2018-09-01 | FY42: 2018-10-01 | FZ42: 2018-11-01 | GA42: 2018-12-01 | GB42: 2018
B43: Mantenimiento preventivo y predictivo | C43: 0.6514324392 | D43: 3.468150684 | E43: 1.464587086 | F43: 0.5318868257 | G43: 0.2218087536 | H43: 2.266636084 | I43: 0.9615951549 | J43: 0.05032837799 | K43: 1.149307948 | L43: 1.251839338 | M43: 0.8825579467 | N43: 0.01420322768 | O43: 0.087 | P43: 0.46 | Q43: 0.37 | R43: 1.57 | S43: 0.87 | T43: 0.58 | U43: 0.21 | V43: 0.12 | W43: 0 | X43: 0.31 | Y43: 3.82 | Z43: 1.25 | AA43: 0.19 | AB43: 0.82 | AC43: 0.1900574774 | AD43: 0.2109547559 | AE43: 0.8013649642 | AF43: 0.4823403665 | AG43: 0.3316779126 | AH43: 0.237809139 | AI43: 0 | AJ43: 0.001745975037 | AK43: 0.1739495612 | AL43: 0.4579007463 | AM43: 0.4653701808 | AN43: 0.1960889447 | AO43: 0.2940245029 | AP43: 0.1354339987 | AQ43: 0.1238477648 | AR43: 0.2005329511 | AS43: 0.457799793 | AT43: 1.008119492 | AU43: 0.63417888 | AV43: 0 | AW43: 0 | AX43: 0.2796566009 | AY43: 0.1926348219 | AZ43: 0.7751211294 | BA43: 0.4779667106 | BB43: 0.3571343022 | BC43: 0.97 | BD43: 0.37 | BE43: 1.09 | BF43: 0.16 | BG43: 0.53 | BH43: 0.01 | BI43: 0 | BJ43: 0 | BK43: 0.18 | BL43: 0.43 | BM43: 0.87 | BN43: 0.2 | BO43: 0.4 | BP43: 0.55 | BQ43: 0.96 | BR43: 0.5 | BS43: 0.36 | BT43: 0.15 | BU43: 0.28 | BV43: 0.05 | BW43: 0.02 | BX43: 0.41 | BY43: 1.87 | BZ43: 0.28 | CA43: 0.01 | CB43: 0.45 | CC43: 0 | CD43: 0.14 | CE43: 0.18 | CF43: 0.43 | CG43: 0.64 | CH43: 0.37 | CI43: 0 | CJ43: 0.02 | CK43: 0.46 | CL43: 2.53 | CM43: 3.41 | CN43: 0.94 | CO43: 0.79 | CP43: 0.1 | CQ43: 0.26 | CR43: 0.65 | CS43: 0.55 | CT43: 0.32 | CU43: 0.17 | CV43: 0.04 | CW43: 0.11 | CX43: 0.21 | CY43: 0.24 | CZ43: 0.65 | DA43: 0.43 | DB43: 0.31 | DC43: 0.11 | DD43: 0.06 | DE43: 0.01 | DF43: 0.15 | DG43: 0.18 | DH43: 0.07 | DI43: 0.02 | DJ43: 0 | DK43: 0.03 | DL43: 0.28 | DM43: 0.42 | DN43: 0.79 | DO43: 0.18 | DP43: 0.02 | DQ43: 0.23 | DR43: 0.08 | DS43: 0.2 | DT43: 0.19 | DU43: 0.26 | DV43: 0.48 | DW43: 0.12 | DX43: 0.07 | DY43: 0.49 | DZ43: 0.84 | EA43: 0.08 | EB43: 0.25 | EC43: 0.33 | ED43: 0.4 | EE43: 0.8 | EF43: 0.84 | EG43: 3.38 | EH43: 0.36 | EI43: 0.07 | EJ43: 0.01 | EK43: 0.42 | EL43: 1.19 | EM43: 1.52 | EN43: 0.16 | EO43: 0.8 | EP43: 0 | EQ43: 0.53 | ER43: 0.24 | ES43: 1.35 | ET43: 1.74 | EU43: 0.57 | EV43: 0.34 | EW43: 0.02 | EX43: 0.36 | EY43: 1.28 | EZ43: 1.06 | FA43: 0.51 | FB43: 0.67 | FC43: 0.49 | FD43: 0.53 | FE43: 0.74 | FF43: 2.95 | FG43: 1.15 | FH43: 0.09 | FI43: 0.04 | FJ43: 0.03 | FK43: 0.16 | FL43: 1.39 | FM43: 1.39 | FN43: 0.6 | FO43: 0.8 | FP43: 0.78 | FQ43: 1.13 | FR43: 1.2 | FS43: 2.19 | FT43: 1.53 | FU43: 0.88 | FV43: 0.48 | FW43: 1.07 | FX43: 1.64 | FY43: 1.72 | FZ43: - | GA43: - | GB43: 1.26
B44: Causas ajenas al mantenimiento | C44: 0.7542013938 | D44: 0.9002275131 | E44: 2.878343932 | F44: 3.495110799 | G44: 3.057160164 | H44: 3.552028447 | I44: 1.859793216 | J44: 0 | K44: 0.1770652221 | L44: 2.55698818 | M44: 4.275352018 | N44: 2.965310693 | O44: 0.187 | P44: 0.89 | Q44: 1.62 | R44: 4.19 | S44: 5.43 | T44: 3.99 | U44: 0.82 | V44: 0.99 | W44: 0.85 | X44: 1.18 | Y44: 1.83 | Z44: 2.95 | AA44: 1.83 | AB44: 2.193 | AC44: 1.049125959 | AD44: 2.231324831 | AE44: 2.60797758 | AF44: 2.617605104 | AG44: 2.138181161 | AH44: 1.692233603 | AI44: 0.02108356126 | AJ44: 0 | AK44: 0.307148892 | AL44: 1.764354803 | AM44: 1.782911672 | AN44: 1.04502269 | AO44: 1.414435735 | AP44: 1.085612764 | AQ44: 0.8746565675 | AR44: 0.4594552294 | AS44: 0.3762288817 | AT44: 3.15608616 | AU44: 1.654414515 | AV44: 0.7096764456 | AW44: 0.6015248673 | AX44: 0.1727901784 | AY44: 1.039233818 | AZ44: 0.8818508434 | BA44: 0.3249838133 | BB44: 0.9462870234 | BC44: 0 | BD44: 0.6 | BE44: 1.37 | BF44: 1.27 | BG44: 1.83 | BH44: 1.94 | BI44: 0.37 | BJ44: 0 | BK44: 0 | BL44: 0.04 | BM44: 0.34 | BN44: 0 | BO44: 0.63 | BP44: 0 | BQ44: 0.01 | BR44: 0.24 | BS44: 0.27 | BT44: 1.36 | BU44: 0.43 | BV44: 0.01 | BW44: 0.24 | BX44: 0.04 | BY44: 0.4 | BZ44: 0.52 | CA44: 0.21 | CB44: 0.31 | CC44: 0.01 | CD44: 0.01 | CE44: 0 | CF44: 0.17 | CG44: 0.48 | CH44: 0.64 | CI44: 0.12 | CJ44: 0.18 | CK44: 0.82 | CL44: 2.37 | CM44: 3.99 | CN44: 2.18 | CO44: 0.96 | CP44: 0.97 | CQ44: 1.21 | CR44: 2.33 | CS44: 1.36 | CT44: 1.77 | CU44: 1.65 | CV44: 0.33 | CW44: 0.08 | CX44: 0.86 | CY44: 2.87 | CZ44: 4.03 | DA44: 1.57 | DB44: 1.59 | DC44: 3.17 | DD44: 1.89 | DE44: 2.79 | DF44: 1.76 | DG44: 2.01 | DH44: 1.36 | DI44: 1 | DJ44: 0.52 | DK44: 1.35 | DL44: 3.09 | DM44: 1.53 | DN44: 1.32 | DO44: 1.82 | DP44: 0.42 | DQ44: 1.15 | DR44: 3.01 | DS44: 2.6 | DT44: 3.92 | DU44: 1.12 | DV44: 0.3 | DW44: 0.22 | DX44: 0.86 | DY44: 3.18 | DZ44: 2.23 | EA44: 0.72 | EB44: 1.65 | EC44: 0.47 | ED44: 2.26 | EE44: 2.16 | EF44: 4.76 | EG44: 1.75 | EH44: 0.93 | EI44: 0.29 | EJ44: 0.15 | EK44: 0.7 | EL44: 4.42 | EM44: 4.76 | EN44: 4.58 | EO44: 2.28 | EP44: 4.73 | EQ44: 5.91 | ER44: 7.2 | ES44: 2.84 | ET44: 1.07 | EU44: 0.17 | EV44: 0.1 | EW44: 0.63 | EX44: 1.61 | EY44: 1.8 | EZ44: 1.38 | FA44: 0.23 | FB44: 2.27 | FC44: 0.36 | FD44: 1.06 | FE44: 2.3 | FF44: 1.43 | FG44: 3.32 | FH44: 0.55 | FI44: 0 | FJ44: 0.01 | FK44: 0.74 | FL44: 2.34 | FM44: 1.5 | FN44: 1.85 | FO44: 1.29 | FP44: 0.26 | FQ44: 0.59 | FR44: 0.71 | FS44: 3.49 | FT44: 2.48 | FU44: 1.4 | FV44: 0.18 | FW44: 0.31 | FX44: 0.1 | FY44: 2.23 | FZ44: - | GA44: - | GB44: 1.17
B45: Mantenimiento correctivo | C45: 0.0001901964758 | D45: 0.1576284937 | E45: 0.01374053564 | F45: 0.0173244403 | G45: 0 | H45: 0.01381914245 | I45: 0.02990627775 | J45: 0.003534272055 | K45: 0.02502168786 | L45: 0.04133297107 | M45: 0.02592200753 | N45: 0.0062675953 | O45: 0.002 | P45: 0.04 | Q45: 0.1 | R45: 0.03 | S45: 0.01 | T45: 0.11 | U45: 0.03 | V45: 0.01 | W45: 0.17 | X45: 0.02 | Y45: 0.01 | Z45: 0 | AA45: 0.02 | AB45: 0.046 | AC45: 0.005449209598 | AD45: 0 | AE45: 0.0001570377406 | AF45: 0.01466853279 | AG45: 0.06038286172 | AH45: 0.006884800887 | AI45: 0.0922059002 | AJ45: 0.7024407509 | AK45: 0.6635458088 | AL45: 1.547811684 | AM45: 0.6599953524 | AN45: 0.6578638498 | AO45: 0.3819862324 | AP45: 0.6382610748 | AQ45: 0.6412709146 | AR45: 0.6325469114 | AS45: 0.6358399298 | AT45: 0.6289703378 | AU45: 0.6404544061 | AV45: 0.1707514042 | AW45: 0.01241802156 | AX45: 0.0004132120252 | AY45: 0.02056743873 | AZ45: 0.002423542865 | BA45: 0.2142255022 | BB45: 0.350149943 | BC45: 0.42 | BD45: 0 | BE45: 0.01 | BF45: 0.05 | BG45: 0.43 | BH45: 0.13 | BI45: 0.24 | BJ45: 0.004 | BK45: 0.07 | BL45: 0.01 | BM45: 0 | BN45: 0.11 | BO45: 0.12 | BP45: 0.04 | BQ45: 0.48 | BR45: 0.01 | BS45: 0.02 | BT45: 0.02 | BU45: 0.01 | BV45: 0.01 | BW45: 0.12 | BX45: 0 | BY45: 0.02 | BZ45: 0.01 | CA45: 0.02 | CB45: 0.06 | CC45: 0 | CD45: 0.23 | CE45: 0.01 | CF45: 0.01 | CG45: 0 | CH45: 0.01 | CI45: 0.04 | CJ45: 0.01 | CK45: 0.01 | CL45: 0.13 | CM45: 0.02 | CN45: 0.04 | CO45: 0.04 | CP45: 0 | CQ45: 0.01 | CR45: 0.06 | CS45: 0 | CT45: 0 | CU45: 0.11 | CV45: 0.07 | CW45: 0.02 | CX45: 0.01 | CY45: 0 | CZ45: 0 | DA45: 0.01 | DB45: 0.02 | DC45: 0.04 | DD45: 0 | DE45: 0 | DF45: 0.05 | DG45: 0.01 | DH45: 0 | DI45: 0.01 | DJ45: 0.02 | DK45: 0.05 | DL45: 0.08 | DM45: 0.01 | DN45: 0.09 | DO45: 0.03 | DP45: 0 | DQ45: 0.04 | DR45: 0.02 | DS45: 0.02 | DT45: 0.13 | DU45: 0.17 | DV45: 0.24 | DW45: 0.21 | DX45: 0.03 | DY45: 0.03 | DZ45: 0.05 | EA45: 0.05 | EB45: 0.08 | EC45: 0 | ED45: 0.01 | EE45: 0 | EF45: 0.02 | EG45: 0.09 | EH45: 0.06 | EI45: 0.05 | EJ45: 0 | EK45: 0 | EL45: 0 | EM45: 0 | EN45: 0.18 | EO45: 0.04 | EP45: 0.29 | EQ45: 0.15 | ER45: 0 | ES45: 0 | ET45: 0.06 | EU45: 0.07 | EV45: 0.05 | EW45: 0.09 | EX45: 0.02 | EY45: 0.23 | EZ45: 0.36 | FA45: 0 | FB45: 0.11 | FC45: 0.06 | FD45: 0.01 | FE45: 0.01 | FF45: 0.14 | FG45: 0.01 | FH45: 0.14 | FI45: 0.07 | FJ45: 0.02 | FK45: 0.01 | FL45: 0.01 | FM45: 0.05 | FN45: 0.21 | FO45: 0.06 | FP45: 0.03 | FQ45: 0.01 | FR45: 0.01 | FS45: 0.02 | FT45: 0.02 | FU45: 0.04 | FV45: 0 | FW45: 0.01 | FX45: 0.09 | FY45: 0.24 | FZ45: - | GA45: - | GB45: 0.05
B46: Circunstancias fortuitas previstas en las condiciones de diseño | C46: 0.000266275066 | D46: 0.01414882021 | E46: 0.0234388163 | F46: 0.006594034498 | G46: 0.003807640666 | H46: 0.007458804961 | I46: 0.002363401594 | J46: 6.185263929e-08 | K46: 0.09865424862 | L46: 0.6215296851 | M46: 1.197603866e-07 | N46: 0.003442117747 | O46: 0.006 | P46: 0.07 | Q46: 0.02 | R46: 0 | S46: 0 | T46: 0 | U46: 0 | V46: 0.01 | W46: 0 | X46: 0 | Y46: 0 | Z46: 0 | AA46: 0 | AB46: 0.008 | AC46: 0 | AD46: 0.004433511926 | AE46: 0.000535106101 | AF46: 0.002886323988 | AG46: 0.002259240227 | AH46: 0.002321262767 | AI46: 0.05163156705 | AJ46: 7.757831818e-05 | AK46: 0.0001251251251 | AL46: 0.001245511567 | AM46: 7.814610898e-05 | AN46: 0 | AO46: 0.005521471276 | AP46: 2.904906401e-05 | AQ46: 0 | AR46: 2.904906401e-05 | AS46: 0.005333573472 | AT46: 0.0001668707136 | AU46: 0.0003698902768 | AV46: 0 | AW46: 0 | AX46: 0.0001731542517 | AY46: 0.0001287956762 | AZ46: 0.04071713224 | BA46: 0.000523525354 | BB46: 0.003933563657 | BC46: 0 | BD46: 0 | BE46: 0 | BF46: 0 | BG46: 0 | BH46: 0 | BI46: 0.02 | BJ46: 0 | BK46: 0.01 | BL46: 0 | BM46: 0 | BN46: 0 | BO46: 0 | BP46: 0.01 | BQ46: 0 | BR46: 0 | BS46: 0 | BT46: 0 | BU46: 0 | BV46: 0.01 | BW46: 0.03 | BX46: 0 | BY46: 0 | BZ46: 0 | CA46: 0 | CB46: 0 | CC46: 0 | CD46: 0 | CE46: 0 | CF46: 0 | CG46: 0 | CH46: 0 | CI46: 0 | CJ46: 0 | CK46: 0 | CL46: 0 | CM46: 0.02 | CN46: 0 | CO46: 0 | CP46: 0 | CQ46: 0 | CR46: 0.03 | CS46: 0 | CT46: 0 | CU46: 0 | CV46: 0 | CW46: 0 | CX46: 0 | CY46: 0 | CZ46: 0 | DA46: 0.01 | DB46: 0 | DC46: 0 | DD46: 0.01 | DE46: 0 | DF46: 0 | DG46: 0 | DH46: 0 | DI46: 0 | DJ46: 0 | DK46: 0 | DL46: 0 | DM46: 0 | DN46: 0 | DO46: 0 | DP46: 0 | DQ46: 0 | DR46: 0 | DS46: 0 | DT46: 0.01 | DU46: 0 | DV46: 0 | DW46: 0 | DX46: 0 | DY46: 0 | DZ46: 0 | EA46: 0.02 | EB46: 0 | EC46: 0 | ED46: 0 | EE46: 0 | EF46: 0.09 | EG46: 0.07 | EH46: 0 | EI46: 0.01 | EJ46: 0 | EK46: 0 | EL46: 0 | EM46: 0 | EN46: 0 | EO46: 0.01 | EP46: 0 | EQ46: 0 | ER46: 0 | ES46: 0 | ET46: 0 | EU46: 0.02 | EV46: 0 | EW46: 0 | EX46: 0 | EY46: 0.05 | EZ46: 0 | FA46: 0 | FB46: 0.01 | FC46: 0.01 | FD46: 0 | FE46: 0 | FF46: 0 | FG46: 0 | FH46: 0 | FI46: 0.02 | FJ46: 0 | FK46: 0 | FL46: 0.02 | FM46: 0 | FN46: 0 | FO46: 0 | FP46: 0 | FQ46: 0 | FR46: 0 | FS46: 0 | FT46: 0 | FU46: 0 | FV46: 0 | FW46: 0 | FX46: 0 | FY46: 0 | FZ46: - | GA46: - | GB46: 0
B47: Causa de fuerza mayor o acciones de terceros | C47: 0 | D47: 5.654700273e-06 | E47: 0.02591812014 | F47: 0.03885825798 | G47: 0.001251469616 | H47: 0.0001874813051 | I47: 0 | J47: 0 | K47: 0.08711358243 | L47: 0.08752022545 | M47: 0 | N47: 0 | O47: 0.002 | P47: 0 | Q47: 0 | R47: 0 | S47: 0 | T47: 0 | U47: 0 | V47: 0 | W47: 0 | X47: 0 | Y47: 0 | Z47: 0 | AA47: 0 | AB47: 0 | AC47: 0 | AD47: 0 | AE47: 0 | AF47: 0 | AG47: 0 | AH47: 0 | AI47: 0 | AJ47: 0 | AK47: 0 | AL47: 0.04309244136 | AM47: 0 | AN47: 0 | AO47: 0.003760948574 | AP47: 0 | AQ47: 0 | AR47: 0 | AS47: 0 | AT47: 0 | AU47: 0 | AV47: 0 | AW47: 0 | AX47: 0 | AY47: 0 | AZ47: 0 | BA47: 0 | BB47: 0 | BC47: 0 | BD47: 0 | BE47: 0 | BF47: 0 | BG47: 0 | BH47: 0 | BI47: 0 | BJ47: 0 | BK47: 0 | BL47: 0 | BM47: 0 | BN47: 0 | BO47: 0 | BP47: 0 | BQ47: 0 | BR47: 0 | BS47: 0 | BT47: 0 | BU47: 0 | BV47: 0 | BW47: 0 | BX47: 0 | BY47: 0 | BZ47: 0 | CA47: 0 | CB47: 0 | CC47: 0 | CD47: 0 | CE47: 1.83 | CF47: 0.58 | CG47: 0 | CH47: 0.21 | CI47: 0.02 | CJ47: 0.01 | CK47: 0 | CL47: 0 | CM47: 0 | CN47: 0 | CO47: 0.22 | CP47: 0 | CQ47: 0 | CR47: 0 | CS47: 0 | CT47: 0 | CU47: 0 | CV47: 0 | CW47: 0 | CX47: 0 | CY47: 0 | CZ47: 0 | DA47: 0 | DB47: 0 | DC47: 0 | DD47: 0.08 | DE47: 0 | DF47: 0 | DG47: 0.01 | DH47: 0 | DI47: 0 | DJ47: 0 | DK47: 0 | DL47: 0 | DM47: 0.07 | DN47: 0 | DO47: 0.01 | DP47: 0 | DQ47: 0 | DR47: 0 | DS47: 0 | DT47: 0.05 | DU47: 0 | DV47: 0.06 | DW47: 0 | DX47: 0.12 | DY47: 0 | DZ47: 0.01 | EA47: 0 | EB47: 0.02 | EC47: 0 | ED47: 0 | EE47: 0 | EF47: 0.02 | EG47: 0 | EH47: 0.88 | EI47: 0.67 | EJ47: 0.04 | EK47: 0.01 | EL47: 0 | EM47: 0 | EN47: 0 | EO47: 0.14 | EP47: 0 | EQ47: 0 | ER47: 0 | ES47: 0.01 | ET47: 0 | EU47: 0 | EV47: 0.07 | EW47: 0.32 | EX47: 0.02 | EY47: 0 | EZ47: 0 | FA47: 0.03 | FB47: 0.04 | FC47: 0 | FD47: 0 | FE47: 0 | FF47: 0 | FG47: 0 | FH47: 0 | FI47: 0 | FJ47: 0 | FK47: 0 | FL47: 0 | FM47: 0.03 | FN47: 0 | FO47: 0 | FP47: 0.01 | FQ47: 0 | FR47: 0 | FS47: 0.03 | FT47: 0 | FU47: 0 | FV47: 0.01 | FW47: 0.02 | FX47: 0 | FY47: 0.16 | FZ47: - | GA47: - | GB47: 0.02
B48: Sin clasificar (*) | C48: 0 | D48: 0 | E48: 0 | F48: 0 | G48: 0 | H48: 0 | I48: 0 | J48: 0 | K48: 0 | L48: 0 | M48: 0 | N48: 0 | O48: 0 | P48: 0 | Q48: 0 | R48: 0 | T48: 0 | U48: 0 | V48: 0 | W48: 0 | X48: 0 | Y48: 0 | Z48: 0 | AA48: 0 | AB48: 0 | AC48: 0 | AD48: 0 | AE48: 0 | AF48: 0 | AG48: 0 | AH48: 0 | AI48: 0 | AJ48: 0 | AK48: 0 | AL48: 0 | AM48: 0 | AN48: 0 | AO48: 0 | AP48: 0 | AQ48: 0 | AR48: 0 | AS48: 0 | AT48: 0 | AU48: 0 | AV48: 0 | AW48: 0 | AX48: 0 | AY48: 0 | AZ48: 0 | BA48: 0 | BB48: 0 | BC48: 0 | BD48: 0 | BE48: 0 | BF48: 0 | BG48: 0 | BH48: 0 | BI48: 0 | BJ48: 0 | BK48: 0 | BL48: 0 | BM48: 0 | BN48: 0 | BO48: 0 | BP48: 0 | BQ48: 0 | BR48: 0 | BS48: 0 | BT48: 0 | BU48: 0 | BV48: 0 | BW48: 0 | BX48: 0 | BY48: 0 | BZ48: 0 | CA48: 0 | CB48: 0 | CC48: 0 | CD48: 0 | CE48: 0 | CF48: 0 | CG48: 0 | CH48: 0 | CI48: 0 | CJ48: 0 | CK48: 0 | CL48: 0 | CM48: 0 | CN48: 0 | CO48: 0 | CP48: 0 | CQ48: 0 | CR48: 0 | CS48: 0 | CT48: 0 | CU48: 0 | CV48: 0 | CW48: 0 | CX48: 0 | CY48: 0 | CZ48: 0 | DA48: 0 | DB48: 0 | DC48: 0 | DD48: 0 | DE48: 0 | DF48: 0 | DG48: 0 | DH48: 0 | DI48: 0 | DJ48: 0 | DK48: 0 | DL48: 0 | DM48: 0 | DN48: 0 | DO48: 0 | DP48: 0 | DQ48: 0 | DR48: 0 | DS48: 0 | DT48: 0 | DU48: 0 | DV48: 0 | DW48: 0 | DX48: 0 | DY48: 0 | DZ48: 0 | EA48: 0 | EB48: 0 | EC48: 0 | ED48: 0 | EE48: 0 | EF48: 0 | EG48: 0 | EH48: 0 | EI48: 0 | EJ48: 0 | EK48: 0 | EL48: 0 | EM48: 0 | EN48: 0 | EO48: 0 | EP48: 0 | EQ48: 0 | ER48: 0 | ES48: 0 | ET48: 0 | EU48: 0 | EV48: 0 | EW48: 0 | EX48: 0 | EY48: 0 | EZ48: 0 | FA48: 0 | FB48: 0 | FC48: 0 | FD48: 0 | FE48: 0 | FF48: 0 | FG48: 0 | FH48: 0 | FI48: 0 | FJ48: 0 | FK48: 0 | FL48: 0 | FM48: 0 | FN48: 0 | FO48: 0 | FP48: 0 | FQ48: 0 | FR48: 0 | FS48: 0 | FT48: 0 | FU48: 0 | FV48: 0 | FW48: 0 | FX48: 0 | FY48: 0 | FZ48: - | GA48: - | GB48: 0
B49: Total | C49: 1.406090305 | D49: 4.540155511 | E49: 4.380110371 | F49: 4.050916099 | G49: 3.282776559 | H49: 5.839942478 | I49: 2.853658051 | J49: 0.0538627119 | K49: 1.450049106 | L49: 4.471690175 | M49: 5.183832092 | N49: 2.989223634 | O49: 0.279 | P49: 1.46 | Q49: 2.11 | R49: 5.79 | S49: 6.31 | T49: 4.68 | U49: 1.06 | V49: 1.13 | W49: 1.02 | X49: 1.51 | Y49: 5.66 | Z49: 4.2 | AA49: 2.04 | AB49: 3.067 | AC49: 1.244632646 | AD49: 2.446713099 | AE49: 3.410034688 | AF49: 3.117500327 | AG49: 2.532501176 | AH49: 1.939248806 | AI49: 0.1649210285 | AJ49: 0.7042643043 | AK49: 1.144769387 | AL49: 3.771312745 | AM49: 2.908355351 | AN49: 1.898975484 | AO49: 2.095967941 | AP49: 1.859336886 | AQ49: 1.639775247 | AR49: 1.292564141 | AS49: 1.475202178 | AT49: 4.793342861 | AU49: 2.929417691 | AV49: 0.8804278497 | AW49: 0.6139428889 | AX49: 0.4530331456 | AY49: 1.252564874 | AZ49: 1.700112648 | BA49: 1.017699551 | BB49: 1.657504832 | BC49: 1.39 | BD49: 0.97 | BE49: 2.47 | BF49: 1.48 | BG49: 2.79 | BH49: 2.08 | BI49: 0.63 | BJ49: 0.004 | BK49: 0.26 | BL49: 0.48 | BM49: 1.21 | BN49: 0.31 | BO49: 1.16 | BP49: 0.59 | BQ49: 1.45 | BR49: 0.76 | BS49: 0.65 | BT49: 1.53 | BU49: 0.72 | BV49: 0.08 | BW49: 0.41 | BX49: 0.45 | BY49: 2.3 | BZ49: 0.81 | CA49: 0.24 | CB49: 0.83 | CC49: 0.01 | CD49: 0.38 | CE49: 0.2 | CF49: 0.62 | CG49: 1.12 | CH49: 1.02 | CI49: 0.16 | CJ49: 0.21 | CK49: 1.3 | CL49: 5.03 | CM49: 7.43 | CN49: 3.16 | CO49: 1.79 | CP49: 1.07 | CQ49: 1.48 | CR49: 3.07 | CS49: 1.91 | CT49: 2.1 | CU49: 1.93 | CV49: 0.44 | CW49: 0.21 | CX49: 1.08 | CY49: 3.12 | CZ49: 4.68 | DA49: 2.01 | DB49: 1.93 | DC49: 3.32 | DD49: 1.97 | DE49: 2.81 | DF49: 1.95 | DG49: 2.19 | DH49: 1.43 | DI49: 1.04 | DJ49: 0.54 | DK49: 1.42 | DL49: 3.45 | DM49: 1.96 | DN49: 2.2 | DO49: 2.03 | DP49: 0.45 | DQ49: 1.42 | DR49: 3.11 | DS49: 2.82 | DT49: 4.25 | DU49: 1.55 | DV49: 1.02 | DW49: 0.55 | DX49: 0.96 | DY49: 3.7 | DZ49: 3.12 | EA49: 0.87 | EB49: 1.99 | EC49: 0.8 | ED49: 2.67 | EE49: 2.96 | EF49: 5.7 | EG49: 5.29 | EH49: 1.35 | EI49: 0.42 | EJ49: 0.15 | EK49: 1.13 | EL49: 5.62 | EM49: 6.29 | EN49: 4.93 | EO49: 3.12 | EP49: 5.02 | EQ49: 6.59 | ER49: 7.44 | ES49: 4.19 | ET49: 2.87 | EU49: 0.83 | EV49: 0.49 | EW49: 0.74 | EX49: 1.99 | EY49: 3.36 | EZ49: 2.8 | FA49: 0.74 | FB49: 3.06 | FC49: 0.92 | FD49: 1.6 | FE49: 3.05 | FF49: 4.52 | FG49: 4.48 | FH49: 0.78 | FI49: 0.13 | FJ49: 0.06 | FK49: 0.91 | FL49: 3.76 | FM49: 2.94 | FN49: 2.66 | FO49: 2.15 | FP49: 1.07 | FQ49: 1.73 | FR49: 1.92 | FS49: 5.7 | FT49: 4.03 | FU49: 2.32 | FV49: 0.66 | FW49: 1.39 | FX49: 1.83 | FY49: 4.19 | FZ49: - | GA49: - | GB49: 2.48
B51: Indisponibilidad mensual Islas Canarias según clasificación RD1955/2000 (%) | C51: 2005-01-01 | D51: 2005-02-01 | E51: 2005-03-01 | F51: 2005-04-01 | G51: 2005-05-01 | H51: 2005-06-01 | I51: 2005-07-01 | J51: 2005-08-01 | K51: 2005-09-01 | L51: 2005-10-01 | M51: 2005-11-01 | N51: 2005-12-01 | O51: 2005 | P51: 2006-01-01 | Q51: 2006-02-01 | R51: 2006-03-01 | S51: 2006-04-01 | T51: 2006-05-01 | U51: 2006-06-01 | V51: 2006-07-01 | W51: 2006-08-01 | X51: 2006-09-01 | Y51: 2006-10-01 | Z51: 2006-11-01 | AA51: 2006-12-01 | AB51: 2006 | AC51: 2007-01-01 | AD51: 2007-02-01 | AE51: 2007-03-01 | AF51: 2007-04-01 | AG51: 2007-05-01 | AH51: 2007-06-01 | AI51: 2007-07-01 | AJ51: 2007-08-01 | AK51: 2007-09-01 | AL51: 2007-10-01 | AM51: 2007-11-01 | AN51: 2007-12-01 | AO51: 2007 | AP51: 2008-01-01 | AQ51: 2008-02-01 | AR51: 2008-03-01 | AS51: 2008-04-01 | AT51: 2008-05-01 | AU51: 2008-06-01 | AV51: 2008-07-01 | AW51: 2008-08-01 | AX51: 2008-09-01 | AY51: 2008-10-01 | AZ51: 2008-11-01 | BA51: 2008-12-01 | BB51: 2008 | BC51: 2009-01-01 | BD51: 2009-02-01 | BE51: 2009-03-01 | BF51: 2009-04-01 | BG51: 2009-05-01 | BH51: 2009-06-01 | BI51: 2009-07-01 | BJ51: 2009-08-01 | BK51: 2009-09-01 | BL51: 2009-10-01 | BM51: 2009-11-01 | BN51: 2009-12-01 | BO51: 2009 | BP51: 2010-01-01 | BQ51: 2010-02-01 | BR51: 2010-03-01 | BS51: 2010-04-01 | BT51: 2010-05-01 | BU51: 2010-06-01 | BV51: 2010-07-01 | BW51: 2010-08-01 | BX51: 2010-09-01 | BY51: 2010-10-01 | BZ51: 2010-11-01 | CA51: 2010-12-01 | CB51: 2010 | CC51: 2011-01-01 | CD51: 2011-02-01 | CE51: 2011-03-01 | CF51: 2011-04-01 | CG51: 2011-05-01 | CH51: 2011-06-01 | CI51: 2011-07-01 | CJ51: 2011-08-01 | CK51: 2011-09-01 | CL51: 2011-10-01 | CM51: 2011-11-01 | CN51: 2011-12-01 | CO51: 2011 | CP51: 2012-01-01 | CQ51: 2012-02-01 | CR51: 2012-03-01 | CS51: 2012-04-01 | CT51: 2012-05-01 | CU51: 2012-06-01 | CV51: 2012-07-01 | CW51: 2012-08-01 | CX51: 2012-09-01 | CY51: 2012-10-01 | CZ51: 2012-11-01 | DA51: 2012-12-01 | DB51: 2012 | DC51: 2013-01-01 | DD51: 2013-02-01 | DE51: 2013-03-01 | DF51: 2013-04-01 | DG51: 2013-05-01 | DH51: 2013-06-01 | DI51: 2013-07-01 | DJ51: 2013-08-01 | DK51: 2013-09-01 | DL51: 2013-10-01 | DM51: 2013-11-01 | DN51: 2013-12-01 | DO51: 2013 | DP51: 2014-01-01 | DQ51: 2014-02-01 | DR51: 2014-03-01 | DS51: 2014-04-01 | DT51: 2014-05-01 | DU51: 2014-06-01 | DV51: 2014-07-01 | DW51: 2014-08-01 | DX51: 2014-09-01 | DY51: 2014-10-01 | DZ51: 2014-11-01 | EA51: 2014-12-01 | EB51: 2014 | EC51: 2015-01-01 | ED51: 2015-02-01 | EE51: 2015-03-01 | EF51: 2015-04-01 | EG51: 2015-05-01 | EH51: 2015-06-01 | EI51: 2015-07-01 | EJ51: 2015-08-01 | EK51: 2015-09-01 | EL51: 2015-10-01 | EM51: 2015-11-01 | EN51: 2015-12-01 | EO51: 2015 | EP51: 2016-01-01 | EQ51: 2016-02-01 | ER51: 2016-03-01 | ES51: 2016-04-01 | ET51: 2016-05-01 | EU51: 2016-06-01 | EV51: 2016-07-01 | EW51: 2016-08-01 | EX51: 2016-09-01 | EY51: 2016-10-01 | EZ51: 2016-11-01 | FA51: 2016-12-01 | FB51: 2016 | FC51: 2017-01-01 | FD51: 2017-02-01 | FE51: 2017-03-01 | FF51: 2017-04-01 | FG51: 2017-05-01 | FH51: 2017-06-01 | FI51: 2017-07-01 | FJ51: 2017-08-01 | FK51: 2017-09-01 | FL51: 2017-10-01 | FM51: 2017-11-01 | FN51: 2017-12-01 | FO51: 2017 | FP51: 2018-01-01 | FQ51: 2018-02-01 | FR51: 2018-03-01 | FS51: 2018-04-01 | FT51: 2018-05-01 | FU51: 2018-06-01 | FV51: 2018-07-01 | FW51: 2018-08-01 | FX51: 2018-09-01 | FY51: 2018-10-01 | FZ51: 2018-11-01 | GA51: 2018-12-01 | GB51: 2018
B52: Mantenimiento preventivo y predictivo | C52: 0.04 | D52: 0.03 | E52: 0.09 | F52: 0.06 | G52: 0.32 | H52: 0.23 | I52: 0.37 | J52: 0.19 | K52: 0.15 | L52: 0.29 | M52: 0.44 | N52: 0.05 | O52: 0.19 | P52: 0.04143272316 | Q52: 0.486632195 | R52: 0.09017277845 | S52: 0.06944161767 | T52: 0.3909513372 | U52: 0.09281873461 | V52: 0.3721190871 | W52: 0.05374621678 | X52: 0.03500906429 | Y52: 0.1741576762 | Z52: 0.1272456652 | AA52: 0.04756815199 | AB52: 0.1632657818 | AC52: 1.165315628 | AD52: 0.3619504535 | AE52: 0.3976247869 | AF52: 0.1881543242 | AG52: 0.165313975 | AH52: 0.2121205822 | AI52: 0.3858340442 | AJ52: 0.02040522924 | AK52: 0.06396223418 | AL52: 0.02213325373 | AM52: 0.02775549473 | AN52: 0.03798630292 | AO52: 0.2504298921 | AP52: 0.04299370945 | AQ52: 0.1159386554 | AR52: 0.1366505847 | AS52: 0.1241032785 | AT52: 0.1111111724 | AU52: 0.1091025943 | AV52: 0.1149814584 | AW52: 0.1059488497 | AX52: 0.05948516593 | AY52: 0.1251755208 | AZ52: 0.1762892391 | BA52: 0.01449655996 | BB52: 0.102797057 | BC52: 0.02285180111 | BD52: 0.03625918985 | BE52: 0.2039334367 | BF52: 0.2371064216 | BG52: 0.2428162688 | BH52: 0.2429987383 | BI52: 0.1924345702 | BJ52: 0.4392294409 | BK52: 0.2568986373 | BL52: 0.186749779 | BM52: 0.09906232032 | BN52: 0.05460724752 | BO52: 0.19 | BP52: 0.00196358118 | BQ52: 0.02468003553 | BR52: 0.3205203428 | BS52: 0.2220861972 | BT52: 0.2808987014 | BU52: 0.2042617611 | BV52: 0.05742046841 | BW52: 0.4341539975 | BX52: 0.1005916788 | BY52: 0.2188129946 | BZ52: 0.1853251018 | CA52: 0.1100541705 | CB52: 0.1812540582 | CC52: 0.03959120319 | CD52: 0.03993068056 | CE52: 0.1658318632 | CF52: 0.1672217439 | CG52: 0.9102668458 | CH52: 0.7795252646 | CI52: 1.204921067 | CJ52: 0.7735678551 | CK52: 1.13341833 | CL52: 1.275726364 | CM52: 2.683634294 | CN52: 1.101649498 | CO52: 0.8593157359 | CP52: 0.75 | CQ52: 0.71 | CR52: 0.79 | CS52: 0.9 | CT52: 0.97 | CU52: 0.68 | CV52: 0.3 | CW52: 0.37 | CX52: 0.35 | CY52: 0.83 | CZ52: 0.65 | DA52: 0.42 | DB52: 0.64 | DC52: 0.19 | DD52: 0.14 | DE52: 0.2 | DF52: 0.23 | DG52: 1.03 | DH52: 1.15 | DI52: 0.8 | DJ52: 0.44 | DK52: 1.13 | DL52: 1.49 | DM52: 0.52 | DN52: 0.08 | DO52: 0.62 | DP52: 0.08 | DQ52: 0.1 | DR52: 0.58 | DS52: 0.6 | DT52: 0.73 | DU52: 0.64 | DV52: 0.78 | DW52: 0.8 | DX52: 0.67 | DY52: 1.38 | DZ52: 0.54 | EA52: 0.48 | EB52: 0.62 | EC52: 0.15 | ED52: 0.47 | EE52: 1.26 | EF52: 0.6 | EG52: 0.67 | EH52: 0.83 | EI52: 0.74 | EJ52: 0.65 | EK52: 0.32 | EL52: 0.94 | EM52: 0.54 | EN52: 0.6 | EO52: 0.65 | EP52: 0.72 | EQ52: 1.04 | ER52: 1.2 | ES52: 0.66 | ET52: 0.74 | EU52: 0.81 | EV52: 0.37 | EW52: 0.49 | EX52: 0.61 | EY52: 0.28 | EZ52: 0.71 | FA52: 0.57 | FB52: 0.68 | FC52: 0.4 | FD52: 0.59 | FE52: 0.68 | FF52: 0.48 | FG52: 0.85 | FH52: 0.71 | FI52: 1.19 | FJ52: 0.42 | FK52: 0.93 | FL52: 1.17 | FM52: 0.8 | FN52: 1.09 | FO52: 0.78 | FP52: 0.13 | FQ52: 0.34 | FR52: 0.64 | FS52: 0.7 | FT52: 0.35 | FU52: 0.33 | FV52: 0.17 | FW52: 0.19 | FX52: 0.34 | FY52: 0.56 | FZ52: - | GA52: - | GB52: 0.37
B53: Causas ajenas al mantenimiento | C53: 0 | D53: 0.03 | E53: 0.19 | F53: 0 | G53: 0.02 | H53: 0 | I53: 0 | J53: 0 | K53: 0 | L53: 0 | M53: 0 | N53: 0 | O53: 0.02 | P53: 1.165086341 | Q53: 1.081382858 | R53: 1.065808948 | S53: 0.9950248756 | T53: 1.039582553 | U53: 1.255111298 | V53: 0.02721607019 | W53: 0.02273578345 | X53: 0.03651635202 | Y53: 0.05945991608 | Z53: 0.0404479939 | AA53: 0.01886134506 | AB53: 0.3232290142 | AC53: 0.07433183847 | AD53: 0.3507818244 | AE53: 0.5116814031 | AF53: 1.237386592 | AG53: 0.6038795972 | AH53: 0.6458216875 | AI53: 0.3378886521 | AJ53: 0.1348686868 | AK53: 0.3204743652 | AL53: 0.4705637992 | AM53: 0.5846019091 | AN53: 0.4229380959 | AO53: 0.4720993327 | AP53: 0.09701157273 | AQ53: 0.7301110209 | AR53: 0.2125371273 | AS53: 0.2166493087 | AT53: 0.6293141458 | AU53: 0.4320034234 | AV53: 0.2074836238 | AW53: 0.3607323589 | AX53: 0.4010416667 | AY53: 0.06096083636 | AZ53: 0.01286800107 | BA53: 0.1134071048 | BB53: 0.287363228 | BC53: 0.2738768345 | BD53: 0.03493899591 | BE53: 0.0007816013808 | BF53: 0 | BG53: 0.003892647577 | BH53: 0.02674896288 | BI53: 0.01132796742 | BJ53: 0.2709489823 | BK53: 0.1967006852 | BL53: 0.2556006772 | BM53: 0.4753407389 | BN53: 0.4820782541 | BO53: 0.17 | BP53: 0.1215182077 | BQ53: 0.05594624105 | BR53: 0.393211169 | BS53: 0.1117445434 | BT53: 0.1244157011 | BU53: 0.3023275414 | BV53: 0.3974287904 | BW53: 0 | BX53: 0.1263811301 | BY53: 0.1887935915 | BZ53: 0.02216930078 | CA53: 0 | CB53: 0.1548006126 | CC53: 0 | CD53: 0.01066474504 | CE53: 0.003999852765 | CF53: 0 | CG53: 0.00571947895 | CH53: 0.5443309205 | CI53: 0.3259767093 | CJ53: 0.03157117378 | CK53: 0.4753590063 | CL53: 0.03259160199 | CM53: 0.03039011163 | CN53: 0.2583120158 | CO53: 0.1430255064 | CP53: 0 | CQ53: 0.01 | CR53: 0 | CS53: 0.87 | CT53: 0.71 | CU53: 0.12 | CV53: 0.15 | CW53: 0.02 | CX53: 0.94 | CY53: 0.84 | CZ53: 0.22 | DA53: 0.25 | DB53: 0.34 | DC53: 0.24 | DD53: 0.42 | DE53: 2.05 | DF53: 1.25 | DG53: 2.77 | DH53: 0.64 | DI53: 0.95 | DJ53: 1.77 | DK53: 0.28 | DL53: 0.79 | DM53: 0.6 | DN53: 0.19 | DO53: 1 | DP53: 0.14 | DQ53: 0.4 | DR53: 0.52 | DS53: 1.51 | DT53: 2.49 | DU53: 1.99 | DV53: 0.55 | DW53: 0.5 | DX53: 0.8 | DY53: 1.06 | DZ53: 0.45 | EA53: 1.01 | EB53: 0.95 | EC53: 0.45 | ED53: 0.68 | EE53: 0.66 | EF53: 2.09 | EG53: 2.39 | EH53: 1.6 | EI53: 1.03 | EJ53: 1.21 | EK53: 1.09 | EL53: 1.26 | EM53: 1.82 | EN53: 0.15 | EO53: 1.2 | EP53: 0.66 | EQ53: 0.31 | ER53: 0.86 | ES53: 1.77 | ET53: 0.98 | EU53: 0.91 | EV53: 0.59 | EW53: 0.78 | EX53: 0.25 | EY53: 1.32 | EZ53: 0.88 | FA53: 0.41 | FB53: 0.81 | FC53: 0.91 | FD53: 0 | FE53: 0.05 | FF53: 0.21 | FG53: 1.8 | FH53: 2.23 | FI53: 1.3 | FJ53: 2.38 | FK53: 0.71 | FL53: 0.45 | FM53: 1.53 | FN53: 0.63 | FO53: 1.03 | FP53: 0.23 | FQ53: 0.46 | FR53: 0.04 | FS53: 0.07 | FT53: 0.26 | FU53: 0.9 | FV53: 1.36 | FW53: 1.52 | FX53: 1.55 | FY53: 1.31 | FZ53: - | GA53: - | GB53: 0.78
B54: Mantenimiento correctivo | C54: 0.06 | D54: 0.09 | E54: 0.21 | F54: 0.05 | G54: 0.14 | H54: 0.06 | I54: 0.02 | J54: 0.02 | K54: 0.01 | L54: 0 | M54: 0 | N54: 0.02 | O54: 0.06 | P54: 0 | Q54: 0 | R54: 0 | S54: 0 | T54: 0 | U54: 0 | V54: 0 | W54: 0.04410830924 | X54: 0 | Y54: 0 | Z54: 0 | AA54: 0.006635459152 | AB54: 0.00430525884 | AC54: 0.01321795519 | AD54: 0.1052439887 | AE54: 0.1737952293 | AF54: 0.02294395768 | AG54: 0.05235652169 | AH54: 0.003510174018 | AI54: 0.0645997294 | AJ54: 0.03147882056 | AK54: 0.07008910218 | AL54: 0.2623611113 | AM54: 0.03333644374 | AN54: 0.004703620734 | AO54: 0.0696804161 | AP54: 0.0001777891563 | AQ54: 0.01723692295 | AR54: 0 | AS54: 0.09922725476 | AT54: 0.007147124083 | AU54: 0.02219631201 | AV54: 0.00275144046 | AW54: 0.2619940856 | AX54: 0.115844635 | AY54: 0.08011577875 | AZ54: 0.01212522046 | BA54: 0.03613871134 | BB54: 0.05469876023 | BC54: 0.01473096436 | BD54: 0.0123848448 | BE54: 0.1210068696 | BF54: 0.004337078562 | BG54: 0.0457058316 | BH54: 0.2934825086 | BI54: 0.005312989277 | BJ54: 0.009460340865 | BK54: 0 | BL54: 0.02456401729 | BM54: 0 | BN54: 0.03000912576 | BO54: 0.05 | BP54: 0.1414259372 | BQ54: 0.1359386769 | BR54: 0.3466278071 | BS54: 0.1424531265 | BT54: 0.1373205643 | BU54: 0.04385302866 | BV54: 0.0120716665 | BW54: 0.03055433048 | BX54: 0.08815845047 | BY54: 0.07113586654 | BZ54: 0.1667912844 | CA54: 0.1185534624 | CB54: 0.1196508647 | CC54: 0 | CD54: 0 | CE54: 0.004240069752 | CF54: 0.1974560955 | CG54: 0.02709314525 | CH54: 0.01392768304 | CI54: 0.0128427171 | CJ54: 0.04367602107 | CK54: 0.02395144956 | CL54: 0.02259507512 | CM54: 0.045906313 | CN54: 0.1699923311 | CO54: 0.04693388048 | CP54: 0.16 | CQ54: 0 | CR54: 0.02 | CS54: 0.02 | CT54: 0.13 | CU54: 0.08 | CV54: 0.09 | CW54: 0.02 | CX54: 0.1 | CY54: 0.2 | CZ54: 0.1 | DA54: 0.19 | DB54: 0.09 | DC54: 0 | DD54: 0.11 | DE54: 0.04 | DF54: 0.4 | DG54: 0.09 | DH54: 0 | DI54: 0.04 | DJ54: 0.01 | DK54: 0.02 | DL54: 0.03 | DM54: 0.1 | DN54: 0.07 | DO54: 0.07 | DP54: 0.01 | DQ54: 0 | DR54: 0.05 | DS54: 0 | DT54: 0.09 | DU54: 0.18 | DV54: 0.14 | DW54: 0.11 | DX54: 0.05 | DY54: 0.02 | DZ54: 0.05 | EA54: 0.08 | EB54: 0.06 | EC54: 0.05 | ED54: 0.07 | EE54: 1.29 | EF54: 1.68 | EG54: 2.71 | EH54: 3.32 | EI54: 3.29 | EJ54: 1.96 | EK54: 1.66 | EL54: 0.49 | EM54: 0.33 | EN54: 0 | EO54: 1.41 | EP54: 0.02 | EQ54: 0.75 | ER54: 1.64 | ES54: 1.64 | ET54: 1.2 | EU54: 0.01 | EV54: 0.03 | EW54: 0.01 | EX54: 0.02 | EY54: 0.07 | EZ54: 0 | FA54: 0.04 | FB54: 0.45 | FC54: 0 | FD54: 0.11 | FE54: 0.11 | FF54: 0.08 | FG54: 0.03 | FH54: 0.15 | FI54: 0.35 | FJ54: 0.01 | FK54: 0.05 | FL54: 0 | FM54: 0.01 | FN54: 0 | FO54: 0.07 | FP54: 0.04 | FQ54: 0.01 | FR54: 0.01 | FS54: 0.06 | FT54: 0.04 | FU54: 0.04 | FV54: 0.03 | FW54: 0.02 | FX54: 0.01 | FY54: 0.11 | FZ54: - | GA54: - | GB54: 0.04
B55: Circunstancias fortuitas previstas en las condiciones de diseño | C55: 0.01 | D55: 0.02 | E55: 0.02 | F55: 0.07 | G55: 0.02 | H55: 0 | I55: 0.12 | J55: 0.02 | K55: 0 | L55: 0.01 | M55: 0.01 | N55: 0.04 | O55: 0.03 | P55: 0.04086498151 | Q55: 0.01234316134 | R55: 0 | S55: 0 | T55: 0.001527235388 | U55: 0 | V55: 0.006806145227 | W55: 0.08432151136 | X55: 0 | Y55: 0.03117203653 | Z55: 9.95173409e-05 | AA55: 0.0004414075604 | AB55: 0.01496668403 | AC55: 0.1043152364 | AD55: 0.02587753852 | AE55: 0.003552109688 | AF55: 0 | AG55: 0.003366484635 | AH55: 0.008345368457 | AI55: 0.01921444735 | AJ55: 0.0403141092 | AK55: 0.1118078358 | AL55: 0.0119458382 | AM55: 0.02168319957 | AN55: 0.06789518382 | AO55: 0.03503424046 | AP55: 0.001875982132 | AQ55: 0.001630971692 | AR55: 0.0001103518901 | AS55: 0.01798247059 | AT55: 0.0187818917 | AU55: 0.003808136441 | AV55: 0.01936874918 | AW55: 0.02376881622 | AX55: 0.2165788422 | AY55: 0.01641576325 | AZ55: 0.00466542247 | BA55: 0 | BB55: 0.02685331289 | BC55: 0.01079297826 | BD55: 0.01124851165 | BE55: 0.07648800002 | BF55: 0 | BG55: 0.0003973187445 | BH55: 0 | BI55: 0 | BJ55: 0 | BK55: 0.0006153274879 | BL55: 0.001945128369 | BM55: 0 | BN55: 0.0002239563772 | BO55: 0.01 | BP55: 0.01426377301 | BQ55: 0.2368980667 | BR55: 0.07312358709 | BS55: 0 | BT55: 0.09965574166 | BU55: 0 | BV55: 0.001213272717 | BW55: 0.02303393923 | BX55: 0 | BY55: 0 | BZ55: 0.05482921532 | CA55: 0 | CB55: 0.04070421509 | CC55: 0 | CD55: 0 | CE55: 0 | CF55: 0.002493603341 | CG55: 0 | CH55: 0.006331137137 | CI55: 0 | CJ55: 0 | CK55: 0 | CL55: 0 | CM55: 0 | CN55: 0.01080477753 | CO55: 0.001642987172 | CP55: 0 | CQ55: 0 | CR55: 0.02 | CS55: 0.01 | CT55: 0.02 | CU55: 0.01 | CV55: 0 | CW55: 0.01 | CX55: 0.08 | CY55: 0 | CZ55: 0 | DA55: 0.01 | DB55: 0.01 | DC55: 0 | DD55: 0 | DE55: 0.01 | DF55: 0 | DG55: 0 | DH55: 0 | DI55: 0 | DJ55: 0 | DK55: 0 | DL55: 0 | DM55: 0 | DN55: 0 | DO55: 0 | DP55: 0 | DQ55: 0 | DR55: 0 | DS55: 0 | DT55: 0 | DU55: 0 | DV55: 0 | DW55: 0 | DX55: 0 | DY55: 0 | DZ55: 0.01 | EA55: 0 | EB55: 0 | EC55: 0 | ED55: 0 | EE55: 0 | EF55: 0 | EG55: 0.01 | EH55: 0 | EI55: 0 | EJ55: 0 | EK55: 0 | EL55: 0 | EM55: 0.02 | EN55: 0 | EO55: 0 | EP55: 0 | EQ55: 0 | ER55: 0 | ES55: 0 | ET55: 0 | EU55: 0 | EV55: 0 | EW55: 0 | EX55: 0.02 | EY55: 0 | EZ55: 0 | FA55: 0 | FB55: 0 | FC55: 0 | FD55: 0.01 | FE55: 0.01 | FF55: 0 | FG55: 0 | FH55: 0 | FI55: 0 | FJ55: 0 | FK55: 0.01 | FL55: 0 | FM55: 0 | FN55: 0 | FO55: 0 | FP55: 0 | FQ55: 0 | FR55: 0.01 | FS55: 0.01 | FT55: 0 | FU55: 0 | FV55: 0 | FW55: 0 | FX55: 0 | FY55: 0 | FZ55: - | GA55: - | GB55: 0
B56: Causa de fuerza mayor o acciones de terceros | C56: 0 | D56: 0.08 | E56: 0 | F56: 0.05 | G56: 0 | H56: 0 | I56: 0 | J56: 0.06 | K56: 0 | L56: 0.01 | M56: 1.47 | N56: 5.1 | O56: 0.57 | P56: 0.9950248756 | Q56: 0.1589646016 | R56: 0 | S56: 0 | T56: 0.003001346315 | U56: 0.002456851545 | V56: 0 | W56: 0 | X56: 0 | Y56: 0 | Z56: 0.02533220823 | AA56: 0 | AB56: 0.002553671646 | AC56: 0 | AD56: 0 | AE56: 0 | AF56: 0 | AG56: 0 | AH56: 0 | AI56: 0 | AJ56: 0 | AK56: 0 | AL56: 0.0001378251679 | AM56: 0 | AN56: 0 | AO56: 1.18442798e-05 | AP56: 0 | AQ56: 0 | AR56: 0 | AS56: 0 | AT56: 0 | AU56: 0 | AV56: 0 | AW56: 0 | AX56: 0 | AY56: 0 | AZ56: 0 | BA56: 0 | BB56: 0 | BC56: 0 | BD56: 0 | BE56: 0 | BF56: 0 | BG56: 0 | BH56: 0 | BI56: 0 | BJ56: 0 | BK56: 0 | BL56: 0 | BM56: 0 | BN56: 0 | BO56: 0 | BP56: 0 | BQ56: 0 | BR56: 0 | BS56: 0 | BT56: 0 | BU56: 0 | BV56: 0 | BW56: 0 | BX56: 0 | BY56: 0 | BZ56: 0 | CA56: 0 | CB56: 0 | CC56: 0 | CD56: 0 | CE56: 0 | CF56: 0 | CG56: 0.0007381708989 | CH56: 0 | CI56: 0.02755015031 | CJ56: 0 | CK56: 0 | CL56: 0.0578191843 | CM56: 0.005390344982 | CN56: 0 | CO56: 0.007756282247 | CP56: 0 | CQ56: 0 | CR56: 0 | CS56: 0.07 | CT56: 0.04 | CU56: 0.02 | CV56: 0 | CW56: 0 | CX56: 0.01 | CY56: 0.03 | CZ56: 0 | DA56: 0.03 | DB56: 0.02 | DC56: 0.15 | DD56: 0.01 | DE56: 0.07 | DF56: 0.08 | DG56: 0 | DH56: 0.12 | DI56: 0.03 | DJ56: 0.01 | DK56: 0.14 | DL56: 0.16 | DM56: 0.53 | DN56: 0.41 | DO56: 0.14 | DP56: 0.08 | DQ56: 0.05 | DR56: 0 | DS56: 0.23 | DT56: 0.52 | DU56: 0.3 | DV56: 0.06 | DW56: 0.2 | DX56: 0.38 | DY56: 0.02 | DZ56: 0.3 | EA56: 0.64 | EB56: 0.23 | EC56: 0.12 | ED56: 0.15 | EE56: 0.03 | EF56: 0.08 | EG56: 0.04 | EH56: 0.03 | EI56: 0.03 | EJ56: 0.39 | EK56: 0.11 | EL56: 0.03 | EM56: 0 | EN56: 0 | EO56: 0.08 | EP56: 0 | EQ56: 0 | ER56: 0 | ES56: 0 | ET56: 0 | EU56: 0 | EV56: 0.01 | EW56: 0.01 | EX56: 0.02 | EY56: 0.03 | EZ56: 0.02 | FA56: 0 | FB56: 0.01 | FC56: 0 | FD56: 0 | FE56: 0.04 | FF56: 0.01 | FG56: 0.01 | FH56: 0 | FI56: 0.03 | FJ56: 0 | FK56: 0 | FL56: 0 | FM56: 0.01 | FN56: 0 | FO56: 0.01 | FP56: 0.05 | FQ56: 0.03 | FR56: 0.07 | FS56: 0.14 | FT56: 0 | FU56: 0.16 | FV56: 0 | FW56: 0.01 | FX56: 0 | FY56: 0.05 | FZ56: - | GA56: - | GB56: 0.05
B57: Sin clasificar (*) | C57: 0 | D57: 0 | E57: 0 | F57: 0 | G57: 0 | H57: 0 | I57: 0 | J57: 0 | K57: 0 | L57: 0 | M57: 0 | N57: 0 | O57: 0 | P57: 0 | Q57: 0 | R57: 0 | S57: 0 | T57: 0 | U57: 0 | V57: 0 | W57: 0 | X57: 0 | Y57: 0 | Z57: 0 | AA57: 0 | AB57: 0 | AC57: 0 | AD57: 0 | AE57: 0 | AF57: 0 | AG57: 0 | AH57: 0 | AI57: 0 | AJ57: 0 | AK57: 0 | AL57: 0 | AM57: 0 | AN57: 0 | AO57: 0 | AP57: 0 | AQ57: 0 | AR57: 0 | AS57: 0 | AT57: 0 | AU57: 0 | AV57: 0 | AW57: 0 | AX57: 0 | AY57: 0 | AZ57: 0 | BA57: 0.0006086519805 | BB57: 5.155249016e-05 | BC57: 0 | BD57: 0 | BE57: 0 | BF57: 0 | BG57: 0.002107995196 | BH57: 0 | BI57: 6.821859626e-05 | BJ57: 0 | BK57: 0 | BL57: 0 | BM57: 0 | BN57: 0 | BO57: 0.0001412788145 | BP57: 0 | BQ57: 0 | BR57: 0 | BS57: 0 | BT57: 0 | BU57: 0 | BV57: 0 | BW57: 0 | BX57: 0 | BY57: 0 | BZ57: 0 | CA57: 0 | CB57: 0 | CC57: 0 | CD57: 0 | CE57: 0 | CF57: 0 | CG57: 0 | CH57: 0 | CI57: 0 | CJ57: 0 | CK57: 0 | CL57: 0 | CM57: 0 | CN57: 0 | CO57: 0 | CP57: 0 | CQ57: 0 | CR57: 0 | CS57: 0 | CT57: 0 | CU57: 0 | CV57: 0 | CW57: 0 | CX57: 0 | CY57: 0 | CZ57: 0 | DA57: 0 | DB57: 0 | DC57: 0 | DD57: 0 | DE57: 0 | DF57: 0 | DG57: 0 | DH57: 0 | DI57: 0 | DJ57: 0 | DK57: 0 | DL57: 0 | DM57: 0 | DN57: 0 | DO57: 0 | DP57: 0 | DQ57: 0 | DR57: 0 | DS57: 0 | DT57: 0 | DU57: 0 | DV57: 0 | DW57: 0 | DX57: 0 | DY57: 0 | DZ57: 0 | EA57: 0 | EB57: 0 | EC57: 0 | ED57: 0 | EE57: 0 | EF57: 0 | EG57: 0 | EH57: 0 | EI57: 0 | EJ57: 0 | EK57: 0 | EL57: 0 | EM57: 0 | EN57: 0 | EO57: 0 | EP57: 0 | EQ57: 0 | ER57: 0 | ES57: 0 | ET57: 0 | EU57: 0 | EV57: 0 | EW57: 0 | EX57: 0 | EY57: 0 | EZ57: 0 | FA57: 0 | FB57: 0 | FC57: 1.31 | FD57: 0 | FE57: 0 | FF57: 0 | FG57: 0 | FH57: 0 | FI57: 0 | FJ57: 0 | FK57: 0 | FL57: 0 | FM57: 0 | FN57: 0 | FO57: 0 | FP57: 0 | FQ57: 0 | FR57: 0 | FS57: 0 | FT57: 0 | FU57: 0 | FV57: 0 | FW57: 0 | FX57: 0 | FY57: 0.04 | FZ57: - | GA57: - | GB57: 0
B58: Total | C58: 0.11 | D58: 0.17 | E58: 0.51 | F58: 0.18 | G58: 0.5 | H58: 0.29 | I58: 0.51 | J58: 0.23 | K58: 0.16 | L58: 0.3 | M58: 0.45 | N58: 0.11 | O58: 0.29 | P58: 1.247384045 | Q58: 1.580358215 | R58: 1.155981727 | S58: 1.064466493 | T58: 1.432061126 | U58: 1.347930033 | V58: 0.4061413026 | W58: 0.2049118208 | X58: 0.07152541632 | Y58: 0.2647896289 | Z58: 0.1677931765 | AA58: 0.07350636376 | AB58: 0.5057667388 | AC58: 1.357180658 | AD58: 0.8438538052 | AE58: 1.086653529 | AF58: 1.448484874 | AG58: 0.8249165786 | AH58: 0.8697978121 | AI58: 0.8075368731 | AJ58: 0.2270668458 | AK58: 0.5663335373 | AL58: 0.7670040025 | AM58: 0.6673770472 | AN58: 0.5335232034 | AO58: 0.8272438814 | AP58: 0.1420590535 | AQ58: 0.864917571 | AR58: 0.3492980639 | AS58: 0.4579623126 | AT58: 0.766354334 | AU58: 0.5671104662 | AV58: 0.3445852718 | AW58: 0.7524441104 | AX58: 0.7929503098 | AY58: 0.2826678992 | AZ58: 0.2059478831 | BA58: 0.1640423761 | BB58: 0.4717123582 | BC58: 0.3222525782 | BD58: 0.09483154221 | BE58: 0.4022099077 | BF58: 0.2414435002 | BG58: 0.2928120668 | BH58: 0.5632302098 | BI58: 0.2090755269 | BJ58: 0.7196387641 | BK58: 0.4542146499 | BL58: 0.4688596018 | BM58: 0.5744030593 | BN58: 0.5669185838 | BO58: 0.41 | BP58: 0.2791714992 | BQ58: 0.4534630201 | BR58: 1.133482906 | BS58: 0.476283867 | BT58: 0.6422907085 | BU58: 0.5504423312 | BV58: 0.468134198 | BW58: 0.4877422673 | BX58: 0.3151312594 | BY58: 0.4787424527 | BZ58: 0.4291149022 | CA58: 0.2286076329 | CB58: 0.4964097506 | CC58: 0.03959120319 | CD58: 0.05059542561 | CE58: 0.1740717858 | CF58: 0.3671714427 | CG58: 0.94307947 | CH58: 1.344115005 | CI58: 1.543740493 | CJ58: 0.84881505 | CK58: 1.632728786 | CL58: 1.330913041 | CM58: 2.759930719 | CN58: 1.540758622 | CO58: 1.05091811 | CP58: 0.91 | CQ58: 0.72 | CR58: 0.82 | CS58: 1.8 | CT58: 1.83 | CU58: 0.88 | CV58: 0.55 | CW58: 0.43 | CX58: 1.47 | CY58: 1.87 | CZ58: 0.96 | DA58: 0.87 | DB58: 1.09 | DC58: 0.43 | DD58: 0.67 | DE58: 2.3 | DF58: 1.89 | DG58: 3.89 | DH58: 1.79 | DI58: 1.79 | DJ58: 2.22 | DK58: 1.42 | DL58: 2.32 | DM58: 1.22 | DN58: 0.34 | DO58: 1.7 | DP58: 0.22 | DQ58: 0.5 | DR58: 1.15 | DS58: 2.11 | DT58: 3.32 | DU58: 2.81 | DV58: 1.47 | DW58: 1.41 | DX58: 1.52 | DY58: 2.47 | DZ58: 1.05 | EA58: 1.56 | EB58: 1.63 | EC58: 0.65 | ED58: 1.23 | EE58: 3.22 | EF58: 4.37 | EG58: 5.77 | EH58: 5.74 | EI58: 5.07 | EJ58: 3.82 | EK58: 3.07 | EL58: 2.68 | EM58: 2.7 | EN58: 0.75 | EO58: 3.26 | EP58: 1.4 | EQ58: 2.1 | ER58: 3.7 | ES58: 4.07 | ET58: 2.92 | EU58: 1.73 | EV58: 0.99 | EW58: 1.28 | EX58: 0.9 | EY58: 1.67 | EZ58: 1.59 | FA58: 1.02 | FB58: 1.94 | FC58: 1.31 | FD58: 0.71 | FE58: 0.85 | FF58: 0.77 | FG58: 2.68 | FH58: 3.09 | FI58: 2.84 | FJ58: 2.81 | FK58: 1.7 | FL58: 1.62 | FM58: 2.34 | FN58: 1.72 | FO58: 1.88 | FP58: 0.4 | FQ58: 0.81 | FR58: 0.7 | FS58: 0.84 | FT58: 0.65 | FU58: 1.27 | FV58: 1.56 | FW58: 1.73 | FX58: 1.9 | FY58: 2.02 | FZ58: - | GA58: - | GB58: 1.19
B60: Continuidad del suministro anual peninsular | C60: 2003 | D60: 2004 | E60: 2005 | F60: 2006 | G60: 2007 | H60: 2008 | I60: 2009 | J60: 2010 | K60: 2011 | L60: 2012 | M60: 2013 | N60: 2014 | O60: 2015 | P60: 2016 | Q60: 2017 | R60: 2018 | S60: 2019 | T60: 2020 | U60: 2021 | V60: 2022
B61: Número de cortes | C61: 25 | D61: 24 | E61: 22 | F61: 40 | G61: 34 | H61: 31 | I61: 32 | J61: 40 | K61: 32 | L61: 24 | M61: 18 | N61: 24 | O61: 18 | P61: 15 | Q61: 12 | R61: 11 | S61: - | T61: - | U61: - | V61: -
B62: Energía no suministrada mensual (MWh) | C62: 466.23 | D62: 1249.65 | E62: 548.79 | F62: 935.8 | G62: 757.16 | H62: 573.54 | I62: 437.4991 | J62: 1570.54 | K62: 279.69 | L62: 132.77 | M62: 1156.18 | N62: 204.34 | O62: 52.77 | P62: 77.965 | Q62: 60.153 | R62: 207.96 | S62: - | T62: - | U62: - | V62: -
B63: Tiempo de interrupción medio mensual (minutos) | C63: 1.095 | D63: 2.798 | E63: 1.176 | F63: 1.939 | G63: 1.523 | H63: 1.147 | I63: 0.91 | J63: 3.167 | K63: 0.577 | L63: 0.278 | M63: 2.467 | N63: 0.441 | O63: 0.112 | P63: 0.164 | Q63: 0.125 | R63: 0.427 | S63: - | T63: - | U63: - | V63: -
B65: Continuidad del suministro anual Islas Baleares | C65: 2005 | D65: 2006 | E65: 2007 | F65: 2008 | G65: 2009 | H65: 2010 | I65: 2011 | J65: 2012 | K65: 2013 | L65: 2014 | M65: 2015 | N65: 2016 | O65: 2017 | P65: 2018 | Q65: 2019 | R65: 2020 | S65: 2021 | T65: 2022 | U65: 2023 | V65: 2024
B66: Número de cortes | C66: 4 | D66: 3 | E66: 6 | F66: 3 | G66: 6 | H66: 3 | I66: 6 | J66: 4 | K66: 4 | L66: 5 | M66: 5 | N66: 1 | O66: 5 | P66: 2 | Q66: - | R66: - | S66: - | T66: - | U66: - | V66: -
B67: Energía no suministrada mensual (MWh) | C67: 242.325 | D67: 46.07000065 | E67: 326.4199879 | F67: 7.480000138 | G67: 39.1319499 | H67: 8.54 | I67: 38.69 | J67: 7.49 | K67: 80.96 | L67: 12.81 | M67: 29.36 | N67: 0.3 | O67: 33.07 | P67: 33.81 | Q67: - | R67: - | S67: - | T67: - | U67: - | V67: -
B68: Tiempo de interrupción medio mensual (minutos) | C68: 22.30514046 | D68: 4.120247956 | E68: 28.72535462 | F68: 0.6439875453 | G68: 3.411988431 | H68: 0.769 | I68: 3.541 | J68: 0.678 | K68: 7.5 | L68: 1.205 | M68: 2.662 | N68: 0.027 | O68: 2.883 | P68: 2.788 | Q68: - | R68: - | S68: - | T68: - | U68: - | V68: -
B70: Continuidad del suministro anual Islas Canarias | C70: 2005 | D70: 2006 | E70: 2007 | F70: 2008 | G70: 2009 | H70: 2010 | I70: 2011 | J70: 2012 | K70: 2013 | L70: 2014 | M70: 2015 | N70: 2016 | O70: 2017 | P70: 2018 | Q70: 2019 | R70: 2020 | S70: 2021 | T70: 2022 | U70: 2023 | V70: 2024
B71: Número de cortes | C71: 27 | D71: 10 | E71: 11 | F71: 10 | G71: 4 | H71: 18 | I71: 2 | J71: 5 | K71: 5 | L71: 7 | M71: 12 | N71: 14 | O71: 12 | P71: 3 | Q71: - | R71: - | S71: - | T71: - | U71: - | V71: -
B72: Energía no suministrada mensual (MWh) | C72: 824.64 | D72: 180.3297222 | E72: 280.9606528 | F72: 1042.909806 | G72: 1678.539167 | H72: 4089.558769 | I72: 17.26855 | J72: 224.14 | K72: 72.02 | L72: 147.57 | M72: 149.717 | N72: 457.11 | O72: 46.91 | P72: 7.91 | Q72: - | R72: - | S72: - | T72: - | U72: - | V72: -
B73: Tiempo de interrupción medio mensual (minutos) | C73: 51.09 | D73: 10.66629942 | E73: 16.03215521 | F73: 58.93737909 | G73: 96.88604789 | H73: 241.6833035 | I73: 1.023394058 | J73: 13.25 | K73: 4.38 | L73: 9.04 | M73: 9.078 | N73: 27.447 | O73: 2.752 | P73: 0.207 | Q73: - | R73: - | S73: - | T73: - | U73: - | V73: -
B75: Indisponibilidad anual peninsular según clasificación RD1955/2000 (%) | C75: 2004 | D75: 2005 | E75: 2006 | F75: 2007 | G75: 2008 | H75: 2009 | I75: 2010 | J75: 2011 | K75: 2012 | L75: 2013 | M75: 2014 | N75: 2015 | O75: 2016 | P75: 2017 | Q75: 2018 | R75: 2019 | S75: 2020 | T75: 2021 | U75: 2022 | V75: 2023
B77: Mantenimiento preventivo y predictivo | C77: 0.6116257002 | D77: 0.4424601662 | E77: 0.4145577457 | F77: 0.24 | G77: 0.36 | H77: 0.4 | I77: 0.46 | J77: 0.45 | K77: 0.42 | L77: 0.56 | M77: 0.62 | N77: 0.64 | O77: 0.73 | P77: 0.76 | Q77: 0.73 | R77: - | S77: - | T77: - | U77: - | V77: -
B78: Causas ajenas al mantenimiento | C78: 0.8871063771 | D78: 0.8800522107 | E78: 0.954328208 | F78: 1.32 | G78: 1.3 | H78: 1.31 | I78: 1.32 | J78: 1.63 | K78: 1.59 | L78: 1.1 | M78: 1.02 | N78: 1.23 | O78: 0.84 | P78: 0.82 | Q78: 0.91 | R78: - | S78: - | T78: - | U78: - | V78: -
B79: Mantenimiento correctivo | C79: 0.1939765463 | D79: 0.3148948021 | E79: 0.2621984467 | F79: 0.31 | G79: 0.2 | H79: 0.2 | I79: 0.26 | J79: 0.18 | K79: 0.2 | L79: 0.12 | M79: 0.17 | N79: 0.18 | O79: 0.11 | P79: 0.12 | Q79: 0.12 | R79: - | S79: - | T79: - | U79: - | V79: -
B80: Circunstancias fortuitas previstas en las condiciones de diseño | C80: 0.08564658984 | D80: 0.01474216572 | E80: 0.01644793616 | F80: 0.02 | G80: 0.01 | H80: 0.02 | I80: 0.01 | J80: 0.01 | K80: 0.01 | L80: 0.01 | M80: 0 | N80: 0.01 | O80: 0.01 | P80: 0.01 | Q80: 0.01 | R80: - | S80: - | T80: - | U80: - | V80: -
B81: Causa de fuerza mayor o acciones de terceros | C81: 0.227831982 | D81: 0.1896086505 | E81: 0.2380529377 | F81: 0.62 | G81: 0.47 | H81: 0.44 | I81: 0.3 | J81: 0.17 | K81: 0.16 | L81: 0.31 | M81: 0.23 | N81: 0.16 | O81: 0.19 | P81: 0.45 | Q81: 0.24 | R81: - | S81: - | T81: - | U81: - | V81: -
B82: Sin clasificar (*) | C82: 0.004864016234 | D82: 0 | E82: 0 | F82: 0 | G82: 0 | H82: 0 | I82: 0 | J82: 0 | K82: 0 | L82: 0 | M82: 0 | N82: 0 | O82: 0 | P82: 0 | Q82: 0 | R82: - | S82: - | T82: - | U82: - | V82: -
B83: Total | C83: 1.78321923 | D83: 1.652149345 | E83: 1.647532337 | F83: 1.89 | G83: 1.88 | H83: 1.93 | I83: 2.05 | J83: 2.27 | K83: 2.21 | L83: 1.8 | M83: 1.81 | N83: 2.06 | O83: 1.67 | P83: 1.71 | Q83: 1.77 | R83: - | S83: - | T83: - | U83: - | V83: -
B85: Indisponibilidad anual Islas Baleares según clasificación RD1955/2000 (%) | C85: 2005 | D85: 2006 | E85: 2007 | F85: 2008 | G85: 2009 | H85: 2010 | I85: 2011 | J85: 2012 | K85: 2013 | L85: 2014 | M85: 2015 | N85: 2016 | O85: 2017 | P85: 2018 | Q85: 2019 | R85: 2020 | S85: 2021 | T85: 2022 | U85: 2023 | V85: 2024
B86: Mantenimiento preventivo y predictivo | C86: 0.087 | D86: 0.82 | E86: 0.2940245029 | F86: 0.3571343022 | G86: 0.4 | H86: 0.45 | I86: 0.79 | J86: 0.31 | K86: 0.18 | L86: 0.25 | M86: 0.8 | N86: 0.67 | O86: 0.8 | P86: 1.21 | Q86: - | R86: - | S86: - | T86: - | U86: - | V86: -
B87: Causas ajenas al mantenimiento | C87: 0.187 | D87: 2.193 | E87: 1.414435735 | F87: 0.9462870234 | G87: 0.63 | H87: 0.31 | I87: 0.96 | J87: 1.59 | K87: 1.82 | L87: 1.65 | M87: 2.28 | N87: 2.27 | O87: 1.29 | P87: 1.05 | Q87: - | R87: - | S87: - | T87: - | U87: - | V87: -
B88: Mantenimiento correctivo | C88: 0.002 | D88: 0.046 | E88: 0.3819862324 | F88: 0.350149943 | G88: 0.12 | H88: 0.06 | I88: 0.04 | J88: 0.02 | K88: 0.03 | L88: 0.08 | M88: 0.04 | N88: 0.11 | O88: 0.06 | P88: 0.03 | Q88: - | R88: - | S88: - | T88: - | U88: - | V88: -
B89: Circunstancias fortuitas previstas en las condiciones de diseño | C89: 0.006 | D89: 0.008 | E89: 0.005521471276 | F89: 0.003933563657 | G89: 0 | H89: 0 | I89: 0 | J89: 0 | K89: 0 | L89: 0 | M89: 0.01 | N89: 0.01 | O89: 0 | P89: 0 | Q89: - | R89: - | S89: - | T89: - | U89: - | V89: -
B90: Causa de fuerza mayor o acciones de terceros | C90: 0.002 | D90: 0 | E90: 0.003760948574 | F90: 0 | G90: 0 | H90: 0 | I90: 0.22 | J90: 0 | K90: 0.01 | L90: 0.02 | M90: 0.14 | N90: 0.04 | O90: 0 | P90: 0.01 | Q90: - | R90: - | S90: - | T90: - | U90: - | V90: -
B91: Sin clasificar (*) | C91: 0 | D91: 0 | E91: 0 | F91: 0 | G91: 0 | H91: 0 | I91: 0 | J91: 0 | K91: 0 | L91: 0 | M91: 0 | N91: 0 | O91: 0 | P91: 0 | Q91: - | R91: - | S91: - | T91: - | U91: - | V91: -
B92: Total | C92: 0.279 | D92: 3.067 | E92: 2.095967941 | F92: 1.657504832 | G92: 1.16 | H92: 0.83 | I92: 1.79 | J92: 1.93 | K92: 2.03 | L92: 1.99 | M92: 3.12 | N92: 3.06 | O92: 2.15 | P92: 2.29 | Q92: - | R92: - | S92: - | T92: - | U92: - | V92: -
B94: Indisponibilidad anual Islas Canarias según clasificación RD1955/2000 (%) | C94: 2005 | D94: 2006 | E94: 2007 | F94: 2008 | G94: 2009 | H94: 2010 | I94: 2011 | J94: 2012 | K94: 2013 | L94: 2014 | M94: 2015 | N94: 2016 | O94: 2017 | P94: 2018 | Q94: 2019 | R94: 2020 | S94: 2021 | T94: 2022 | U94: 2023 | V94: 2024
B95: Mantenimiento preventivo y predictivo | C95: 0.19 | D95: 0.1632657818 | E95: 0.2504298921 | F95: 0.102797057 | G95: 0.19 | H95: 0.1812540582 | I95: 0.8593157359 | J95: 0.64 | K95: 0.62 | L95: 0.62 | M95: 0.65 | N95: 0.68 | O95: 0.78 | P95: 1.01 | Q95: - | R95: - | S95: - | T95: - | U95: - | V95: -
B96: Causas ajenas al mantenimiento | C96: 0.02 | D96: 0.3232290142 | E96: 0.4720993327 | F96: 0.287363228 | G96: 0.17 | H96: 0.1548006126 | I96: 0.1430255064 | J96: 0.34 | K96: 1 | L96: 0.95 | M96: 1.2 | N96: 0.81 | O96: 1.03 | P96: 0.67 | Q96: - | R96: - | S96: - | T96: - | U96: - | V96: -
B97: Mantenimiento correctivo | C97: 0.06 | D97: 0.00430525884 | E97: 0.0696804161 | F97: 0.05469876023 | G97: 0.05 | H97: 0.1196508647 | I97: 0.04693388048 | J97: 0.09 | K97: 0.07 | L97: 0.06 | M97: 1.41 | N97: 0.45 | O97: 0.07 | P97: 0.03 | Q97: - | R97: - | S97: - | T97: - | U97: - | V97: -
B98: Circunstancias fortuitas previstas en las condiciones de diseño | C98: 0.03 | D98: 0.01496668403 | E98: 0.03503424046 | F98: 0.02685331289 | G98: 0.01 | H98: 0.04070421509 | I98: 0.001642987172 | J98: 0.01 | K98: 0 | L98: 0 | M98: 0 | N98: 0 | O98: 0 | P98: 0 | Q98: - | R98: - | S98: - | T98: - | U98: - | V98: -
B99: Causa de fuerza mayor o acciones de terceros | C99: 0.57 | D99: 0.002553671646 | E99: 1.18442798e-05 | F99: 0 | G99: 0 | H99: 0 | I99: 0.007756282247 | J99: 0.02 | K99: 0.14 | L99: 0.23 | M99: 0.08 | N99: 0.01 | O99: 0.01 | P99: 0.05 | Q99: - | R99: - | S99: - | T99: - | U99: - | V99: -
B100: Sin clasificar (*) | C100: 0 | D100: 0 | E100: 0 | F100: 5.155249016e-05 | G100: 0.0001412788145 | H100: 0 | I100: 0 | J100: 0 | K100: 0 | L100: 0 | M100: 0 | N100: 0 | O100: 0 | P100: 0 | Q100: - | R100: - | S100: - | T100: - | U100: - | V100: -
B101: Total | C101: 0.29 | D101: 0.5057667388 | E101: 0.8272438814 | F101: 0.4717123582 | G101: 0.41 | H101: 0.4964097506 | I101: 1.05091811 | J101: 1.09 | K101: 1.7 | L101: 1.63 | M101: 3.26 | N101: 1.94 | O101: 1.88 | P101: 1.71 | Q101: - | R101: - | S101: - | T101: - | U101: - | V101: -
B103: Datos RdT nacional | C103: 1998 | D103: 1999 | E103: 2000 | F103: 2001 | G103: 2002 | H103: 2003 | I103: 2004 | J103: 2005 | K103: 2006 | L103: 2007 | M103: 2008 | N103: 2009 | O103: 2010 | P103: 2011 | Q103: 2012 | R103: 2013 | S103: 2014 | T103: 2015 | U103: 2016 | V103: 2017 | W103: 2018 | X103: 2019 | Y103: 2020 | Z103: 2021 | AA103: 2022 | AB103: 2023 | AC103: 2024 | AD103: 2025 | AE103: 2026 | AF103: 2027
B104: km de circuito a 400 kV | C104: =+K3 -> 14538.47 | D104: =+L3 -> 14538.47 | E104: 14918 | F104: 15364.269 | G104: 16066.739 | H104: 16592.459 | I104: 16840.612 | J104: 16845.694 | K104: 17051.9434 | L104: 17190.6064 | M104: 17764.621 | N104: 18056.47 | O104: 18792.419 | P104: 19671.35 | Q104: 20108.846 | R104: 20639.478 | S104: 21093.728 | T104: 21183.826 | U104: =+AC3 -> 21619.966 | V104: =+AD3 -> 21728.155 | W104: =+AE3 -> 21732.689 | X104: - | Y104: - | Z104: - | AA104: - | AB104: - | AC104: - | AD104: - | AE104: - | AF104: -
B105: km de circuito ≤ 220 kV | C105: =+K4+C8+C9+C13+C14 -> 17974.92 | D105: =+L4+D8+D9+D13+D14 -> 18123.92 | E105: 18255.74 | F105: 18303.467 | G105: 18501.158 | H105: 18566.168 | I105: 18691.0718 | J105: 18724.7999 | K105: 19088.72906 | L105: 19206.90306 | M105: 19607.62606 | N105: 19814.07306 | O105: 19972.636 | P105: 20833.234 | Q105: 21205.11206 | R105: 21478.41206 | S105: 21618.98056 | T105: 21945.90256 | U105: =+AC4+U8+U9+U13+U14 -> 22167.62356 | V105: =+AD4+V8+V9+V13+V14 -> 22202.01727 | W105: =+AE4+W8+W9+W13+W14 -> 22331.24827 | X105: - | Y105: - | Z105: - | AA105: - | AB105: - | AC105: - | AD105: - | AE105: - | AF105: -
B106: Total km | C106: =SUM(C104:C105) -> 32513.39 | D106: 32662.39 | E106: 33173.74 | F106: 33667.736 | G106: 34567.897 | H106: 35158.627 | I106: 35531.6838 | J106: 35570.4939 | K106: 36140.67246 | L106: 36397.50946 | M106: 37372.24706 | N106: 37870.54306 | O106: 38765.055 | P106: 40504.584 | Q106: 41313.95806 | R106: 42117.89006 | S106: 42712.70856 | T106: 43129.72856 | U106: 43787.58956 | V106: =SUM(V104:V105) -> 43930.17227 | W106: 44063.93727 | X106: - | Y106: - | Z106: - | AA106: - | AB106: - | AC106: - | AD106: - | AE106: - | AF106: -

Sheet Año (hidden)
X1: 1 | Y1: 4 | Z1: 1
B2: 1990-1999 | C2: 1998-2007 | D2: 2003 | E2: 2003-2012 | F2: 2005-2014 | G2: 2004-2013 | N2: Red de transporte | O2: Peninsular | P2: Anual
B3: 2000-2009 | C3: 2008-2017 | D3: 2004 | E3: 2013-2022 | F3: 2015-2024 | G3: 2014-2023 | N3: Continuidad del suministro | O3: Canarias | P3: Mensual
B4: 2010-2019 | C4: 2018-2027 | D4: 2005 | N4: Indisponibilidad | O4: Baleares
D5: 2006 | O5: Nacional
D6: 2007
D7: 2008
D8: 2009
D9: 2010
D10: 2011
D11: 2012
D12: 2013
D13: 2014
D14: 2015
D15: 2016
D16: 2017
D17: 2018
